Workbook

Sheet Admin_Panel (hidden)

Sheet Integrationsmonitoring
B1: Migration und Teilhabe in Niedersachsen - Integrationsmonitoring 2019 - aktuelle Ergebnisse

Sheet Impressum
B1: =Kopf -> Migration und Teilhabe in Niedersachsen - Integrationsmonitoring 2019 - aktuelle Ergebnisse
B5: Zeichenerklärung
B7: – | C7: = | D7: Nichts vorhanden
B8: 0 | C8: = | D8: Mehr als nichts, aber weniger als die Hälfte der kleinsten dargestellten Einheit.
B9: . | C9: = | D9: Zahlenwert unbekannt oder aus Geheimhaltungsgründen nicht veröffentlicht.
B10: x | C10: = | D10: Nachweis ist nicht sinnvoll, unmöglich oder Fragestellung trifft nicht zu.
B11: / | C11: = | D11: Nicht veröffentlicht, weil nicht ausreichend genau oder nicht repräsentativ.
B12: () | C12: = | D12: Aussagewert eingeschränkt, da der Zahlenwert statistisch relativ unsicher ist.
B13: dav. | C13: = | D13: davon. Mit diesem Wort wird die Aufgliederung einer Gesamtmasse in sämtliche Teilmassen eingeleitet.
B14: dar. | C14: = | D14: darunter. Mit diesem Wort wird die Ausgliederung einzelner Teilmassen angekündigt.
B15: € | C15: = | D15: Euro
B17: Abkürzungsverzeichnis
B19: AZR | C19: = | D19: Ausländerzentralregister
B20: EP | C20: = | D20: Erwerbspersonen
B21: EU | C21: = | D21: Europäische Union
B22: EWR | C22: = | D22: Europäischer Wirtschaftsraum
B23: IntMK | C23: = | D23: Konferenz der für Integration zuständigen Ministerinnen und Minister / Senatorinnen und Senatoren der Länder
B24: NUTS | C24: = | D24: Systematik der Gebietseinheiten für die Statistik (Nomenclature des unités territoriales statistiques, NUTS)
B25: OECD | C25: = | D25: Organisation für wirtschaftliche Zusammenarbeit und Entwicklung (Organisation for Economic Co-operation and Development, OECD)
B26: SGB | C26: = | D26: Sozialgesetzbuch
B28: Impressum
B30: Niedersächsisches Ministerium für Soziales, Gesundheit und Gleichstellung (Hrsg.)
B31: Hannah-Arendt-Platz 2
B32: 30159 Hannover
B33: www.ms.niedersachsen.de
B34: Erstellt im Landesamt für Statistik Niedersachsen (LSN)
B35: unter der Leitung von Dr. Christoph Biester
B36: www.statistik.niedersachsen.de
B37: Erschienen im Dezember 2019
B38: © Landesamt für Statistik Niedersachsen, Hannover 2019

Sheet Inhaltsverzeichnis
B1: =Kopf -> Migration und Teilhabe in Niedersachsen - Integrationsmonitoring 2019 - aktuelle Ergebnisse
B7: Inhaltsverzeichnis
B9: Methodische Vorbemerkungen
B11: A | Bevölkerung
B13: =IndikatorA1 -> Indikator A1: Bevölkerung in Niedersachsen
B14: =IndikatorA2 -> Indikator A2: Ausländerinnen und Ausländer in Niedersachsen
B15: =IndikatorA3 -> Indikator A3: Ausländerinnen und Ausländer in Niedersachsen nach Aufenthaltsdauer
B16: =IndikatorA4 -> Indikator A4: Ausländerinnen und Ausländer nach ausgewählten Staatsangehörigkeiten
B17: =IndikatorA5 -> Indikator A5: Geflüchtete und geduldete Personen in Niedersachsen
B18: =IndikatorA6 -> Indikator A6: Ausländerinnen und Ausländer nach ausgewählten Staatsangehörigkeiten und Geschlecht
B19: =IndikatorA7 -> Indikator A7: Ausländerinnen und Ausländer nach Altersgruppen
B20: =IndikatorA8 -> Indikator A8: Ausländerinnen und Ausländer nach Aufenthaltsstatus und Staatsangehörigkeit
B21: =IndikatorA9 -> Indikator A9: Ausländerinnen und Ausländer nach Aufenthaltsstatus
B22: =IndikatorA10 -> Indikator A10: Menschen mit Zuwanderungsgeschichte
B23: =IndikatorA11 -> Indikator A11: Menschen mit Zuwanderungsgeschichte in den regionalen Anpassungsschichten
B24: =IndikatorA12 -> Indikator A12: Menschen mit Zuwanderungsgeschichte nach Altersgruppen und Geschlecht
B25: =IndikatorA13 -> Indikator A13: Menschen mit Zuwanderungsgeschichte nach Herkunftsland und Geschlecht
B26: =IndikatorA14 -> Indikator A14: Bei Bundes- und Landtagswahlen wahlberechtigte Bevölkerung mit Zuwanderungsgeschichte
B27: =IndikatorA15 -> Indikator A15: Einbürgerungen in Niedersachsen
B28: =IndikatorA16 -> Indikator A16: Einbürgerungen in Niedersachsen nach ausgewählten Staatsangehörigkeiten
B29: =IndikatorA17 -> Indikator A17: Lebendgeborene Deutsche und Ausländerinnen und Ausländer in Niedersachsen
B30: =IndikatorA18 -> Indikator A18: Zuzüge über die Bundesgrenzen nach Niedersachsen
B31: =IndikatorA19 -> Indikator A19: Fortzüge über die Bundesgrenzen aus Niedersachsen
B32: =IndikatorA20 -> Indikator A20: Saldo der Zu- und Fortzüge über die Bundesgrenzen von und nach Niedersachsen nach ausgewählten Staatsangehörigkeiten
B33: =IndikatorA21 -> Indikator A21: Zu- und Fortzüge über die Bundesgrenzen von und nach Niedersachsen nach Altersgruppen
B34: =IndikatorA22 -> Indikator A22: Saldo der Zu- und Fortzüge über die Bundesgrenzen von und nach Niedersachsen
B36: B | Bildung und Qualifikation
B38: =IndikatorB1 -> Indikator B1: Betreuungsquote von Kindern bis unter 6 Jahren mit und ohne Zuwanderungsgeschichte in Kindertagesbetreuung
B39: =IndikatorB2 -> Indikator B2: Anteil der betreuten Kinder bis unter 6 Jahren mit Zuwanderungsgeschichte in Tageseinrichtungen
B40: =IndikatorB3 -> Indikator B3: Betreute Kinder bis unter 3 Jahren und von 3 bis unter 6 Jahren mit Zuwanderungsgeschichte in Kindertagesbetreuung
B41: =IndikatorB4 -> Indikator B4: Verteilung der Schülerinnen und Schüler im 8. Schuljahrgang
B42: =IndikatorB5 -> Indikator B5: Schulabgängerinnen und Schulabgänger ohne Hauptschulabschluss nach Nationalität
B43: =IndikatorB6 -> Indikator B6: Schulabgängerinnen und Schulabgänger nach Nationalität und Abschlussart
B44: =IndikatorB7 -> Indikator B7: Höchster Schulabschluss an allgemein bildenden Schulen nach Zuwanderungsgeschichte und Altersgruppen
B45: =IndikatorB8 -> Indikator B8: Schulabgängerinnen und Schulabgänger an berufsbildenden Schulen nach Schulart und Schulabschluss
B46: =IndikatorB9 -> Indikator B9: Höchster beruflicher Abschluss der 25- bis unter 35-Jährigen nach Zuwanderungsgeschichte und Geschlecht
B47: =IndikatorB10 -> Indikator B10: Ausbildungsbeteiligungsquote im dualen System nach Geschlecht und Nationalität
B48: =IndikatorB11 -> Indikator B11: Ausländische Studentinnen und Studenten nach Land des Erwerbs der Studienberechtigung
B49: =IndikatorB12 -> Indikator B12: Hochschulabschlüsse im Prüfungsjahr nach Fächergruppe, Nationalität und Geschlecht der Absolventinnen und Absolventen
B50: =IndikatorB13 -> Indikator B13: Frühe Schulabgängerinnen und Schulabgänger nach Geschlecht, Zuwanderungsgeschichte und eigener Migrationserfahrung
B52: C | Erwerbstätigkeit und Arbeitsmarkt
B54: =IndikatorC1 -> Indikator C1: Erwerbstätige Menschen mit Zuwanderungsgeschichte in Niedersachsen nach Wirtschaftsabschnitten und Geschlecht
B55: =IndikatorC2 -> Indikator C2: Erwerbsquote, Erwerbstätigenquote und Erwerbslosenanteil nach Zuwanderungsgeschichte
B56: =IndikatorC3 -> Indikator C3: Erwerbslosenanteil nach Zuwanderungsgeschichte
B57: =IndikatorC4 -> Indikator C4: Sozialversicherungspflichtig beschäftigte Ausländerinnen und Ausländer nach Art der Ausbildung
B58: =IndikatorC6 -> Indikator C6: Entwicklung der Arbeitslosenquote
B59: =IndikatorC7 -> Indikator C7: Arbeitslose nach Zuwanderungsgeschichte, Rechtskreis und Geschlecht
B60: =IndikatorC8 -> Indikator C8: Anerkennungsverfahren nach dem Berufsqualifikationsfeststellungsgesetz (BQFG) sowie dem Niedersächsischen Berufsqualifikationsfeststellungsgesetz (NBQFG)
B62: D | Soziales
B64: =IndikatorD1 -> Indikator D1: Armutsgefährdungsquoten in Niedersachsen und Deutschland
B65: =IndikatorD2 -> Indikator D2: Empfängerinnen und Empfänger von Mindestsicherungsleistungen
B66: =IndikatorD3 -> Indikator D3: Empfängerinnen und Empfänger von Mindestsicherungsleistungen nach Altersgruppen
B67: =IndikatorD4 -> Indikator D4: Empfängerinnen und Empfänger von Mindestsicherungsleistungen nach Jahren
B68: =IndikatorD5 -> Indikator D5: Mittlere Wohnfläche in m² und mittlere Bruttokaltmiete in Niedersachsen nach Zuwanderungsgeschichte
B69: =IndikatorD6 -> Indikator D6: Bevölkerung am Ort der Hauptwohnung nach Zuwanderungsgeschichte und überwiegendem Lebensunterhalt
B70: =IndikatorD7 -> Indikator D7: Paare ohne Kinder und Familien nach Paar-Familientyp und Zuwanderungsgeschichte sowie Familien nach Zahl der Kinder

Sheet Methodische Vorbemerkungen
B1: =Kopf -> Migration und Teilhabe in Niedersachsen - Integrationsmonitoring 2019 - aktuelle Ergebnisse

Sheet A1
D1: =Kopf -> Migration und Teilhabe in Niedersachsen - Integrationsmonitoring 2019 - aktuelle Ergebnisse
D3: Indikator A1: Bevölkerung in Niedersachsen
D4: Tabelle A1-1: Bevölkerung 2005 bis 2018 nach Statistischen Regionen
D6: Land Statistische Region | E6: Einwohnerinnen und Einwohner am 31.12.1) | S6: Veränderung
E7: 2005 | F7: 2006 | G7: 2007 | H7: 2008 | I7: 2009 | J7: 2010 | K7: 2011 | L7: 2012 | M7: 2013 | N7: 2014 | O7: 2015 | P7: 2016 | Q7: 2017 | R7: 2018 | S7: 2005 / 2018 | T7: 2012 / 2018 | U7: 2017 / 2018
E8: Anzahl | S8: Prozent
D9: 1 | E9: 2 | F9: 3 | G9: 4 | H9: 5 | I9: 6 | J9: 7 | K9: 8 | L9: 9 | M9: 10 | N9: 11 | O9: 12 | P9: 13 | Q9: 14 | R9: 15 | S9: 16 | T9: 17 | U9: 18
B11: Stat. Region Braunschweig | C11: 1 | D11: Stat. Region Braunschweig | E11: 1 650 435 | F11: 1 641 776 | G11: 1 633 318 | H11: 1 623 649 | I11: 1 616 720 | J11: 1 609 369 | K11: 1 575 968 | L11: 1 574 527 | M11: 1 574 936 | N11: 1 579 754 | O11: 1 598 164 | P11: 1 595 609 | Q11: 1 595 734 | R11: 1 596 396 | S11: -3.3 | T11: +1.4 | U11: +0.0
B12: Stat. Region Hannover | C12: 2 | D12: Stat. Region Hannover | E12: 2 163 919 | F12: 2 160 253 | G12: 2 156 841 | H12: 2 149 181 | I12: 2 142 440 | J12: 2 138 711 | K12: 2 093 431 | L12: 2 094 931 | M12: 2 099 079 | N12: 2 108 413 | O12: 2 132 290 | P12: 2 139 976 | Q12: 2 144 120 | R12: 2 149 805 | S12: -0.7 | T12: +2.4 | U12: +0.3
B13: Stat. Region Lüneburg | C13: 3 | D13: Stat. Region Lüneburg | E13: 1 704 133 | F13: 1 702 938 | G13: 1 701 132 | H13: 1 696 643 | I13: 1 693 654 | J13: 1 692 238 | K13: 1 667 127 | L13: 1 667 332 | M13: 1 670 199 | N13: 1 677 715 | O13: 1 699 969 | P13: 1 703 945 | Q13: 1 706 464 | R13: 1 710 914 | S13: +0.4 | T13: +2.4 | U13: +0.3
B14: Stat. Region Weser-Ems | C14: 4 | D14: Stat. Region Weser-Ems | E14: 2 475 459 | F14: 2 477 718 | G14: 2 480 393 | H14: 2 477 771 | I14: 2 476 001 | J14: 2 477 975 | K14: 2 437 727 | L14: 2 442 205 | M14: 2 446 345 | N14: 2 460 857 | O14: 2 496 176 | P14: 2 506 155 | Q14: 2 516 457 | R14: 2 525 333 | S14: +2.0 | T14: +3.2 | U14: +0.4
B15: Niedersachsen | C15: 5 | D15: Niedersachsen | E15: 7 993 946 | F15: 7 982 685 | G15: 7 971 684 | H15: 7 947 244 | I15: 7 928 815 | J15: 7 918 293 | K15: 7 774 253 | L15: 7 778 995 | M15: 7 790 559 | N15: 7 826 739 | O15: 7 926 599 | P15: 7 945 685 | Q15: 7 962 775 | R15: 7 982 448 | S15: -0.1 | T15: +2.5 | U15: +0.2
B16: Niedersachsen & Stat. Regionen
D17: 1) Im Berichtsjahr 2011 erfolgte die Umstellung auf die Ergebnisse des Zensus 2011 als neue Basis für die Bevölkerungsfortschreibung. Aufgrund der unterschiedlichen Fortschreibungsbasis ist die Vergleichbarkeit der einzelnen Jahre untereinander eingeschränkt.
D20: Quelle: Bevölkerungsfortschreibung
D22: Abbildung A1-1: Veränderung der Einwohnerzahl 2005/2018 und 2017/2018 nach Statistischen Regionen in Prozent
D65: Link zur LSN-Online-Datenbank
D66: Link zum Regionalmonitoring Niedersachsen

Sheet A2
D1: =Kopf -> Migration und Teilhabe in Niedersachsen - Integrationsmonitoring 2019 - aktuelle Ergebnisse
D5: Indikator A2: Ausländerinnen und Ausländer in Niedersachsen
D6: Tabelle A2-1-1: Ausländerinnen und Ausländer 2005 bis 2018 in Niedersachsen nach Statistischen Regionen
D8: Land Statistische Region | E8: Ausländerinnen und Ausländer am 31.12.
E9: 2005 | F9: 2006 | G9: 2007 | H9: 2008 | I9: 2009 | J9: 2010 | K9: 2011 | L9: 2012 | M9: 2013 | N9: 2014 | O9: 2015 | P9: 2016 | Q9: 2017 | R9: 2018
E10: Anzahl
D11: 1 | E11: 2 | F11: 3 | G11: 4 | H11: 5 | I11: 6 | J11: 7 | K11: 8 | L11: 9 | M11: 10 | N11: 11 | O11: 12 | P11: 13 | Q11: 14 | R11: 15
D12: Stat. Region Braunschweig | E12: 99 536 | F12: 97 675 | G12: 95 330 | H12: 93 565 | I12: 93 395 | J12: 93 059 | K12: 94 568 | L12: 97 758 | M12: 104 490 | N12: 112 385 | O12: 130 933 | P12: 145 155 | Q12: 151 170 | R12: 158 180
D13: Stat. Region Hannover | E13: 167 595 | F13: 165 870 | G13: 164 632 | H13: 161 409 | I13: 160 303 | J13: 160 800 | K13: 164 319 | L13: 170 246 | M13: 181 572 | N13: 195 197 | O13: 223 573 | P13: 247 535 | Q13: 257 705 | R13: 268 505
D14: Stat. Region Lüneburg | E14: 69 762 | F14: 68 586 | G14: 67 702 | H14: 67 279 | I14: 67 529 | J14: 67 951 | K14: 69 224 | L14: 71 972 | M14: 77 840 | N14: 85 566 | O14: 101 355 | P14: 116 020 | Q14: 120 060 | R14: 126 195
D15: Stat. Region Weser-Ems | E15: 124 593 | F15: 126 626 | G15: 129 435 | H15: 130 888 | I15: 132 409 | J15: 136 343 | K15: 142 572 | L15: 152 096 | M15: 161 787 | N15: 177 735 | O15: 207 956 | P15: 236 470 | Q15: 247 925 | R15: 260 205
D16: Niedersachsen | E16: 461 486 | F16: 458 757 | G16: 457 099 | H16: 453 141 | I16: 453 636 | J16: 458 153 | K16: 470 683 | L16: 492 072 | M16: 525 689 | N16: 570 883 | O16: 663 817 | P16: 745 185 | Q16: 776 860 | R16: 813 080
D18: Tabelle A2-1-2: Anteil der Ausländerinnen und Ausländer 2005 bis 2018 in Niedersachsen nach Statistischen Regionen1)
D20: Land Statistische Region | E20: Anteil der Ausländerinnen und Ausländer am 31.12.
E21: 2005 | F21: 2006 | G21: 2007 | H21: 2008 | I21: 2009 | J21: 2010 | K21: 2011 | L21: 2012 | M21: 2013 | N21: 2014 | O21: 2015 | P21: 2016 | Q21: 2017 | R21: 2018
E22: Prozent
D23: 1 | E23: 2 | F23: 3 | G23: 4 | H23: 5 | I23: 6 | J23: 7 | K23: 8 | L23: 9 | M23: 10 | N23: 11 | O23: 12 | P23: 13 | Q23: 14 | R23: 15
D24: Stat. Region Braunschweig | E24: 6.0 | F24: 5.9 | G24: 5.8 | H24: 5.8 | I24: 5.8 | J24: 5.8 | K24: 6.0 | L24: 6.2 | M24: 6.6 | N24: 7.1 | O24: 8.2 | P24: 9.1 | Q24: 9.5 | R24: 9.9
D25: Stat. Region Hannover | E25: 7.7 | F25: 7.7 | G25: 7.6 | H25: 7.5 | I25: 7.5 | J25: 7.5 | K25: 7.8 | L25: 8.1 | M25: 8.7 | N25: 9.3 | O25: 10.5 | P25: 11.6 | Q25: 12.0 | R25: 12.5
D26: Stat. Region Lüneburg | E26: 4.1 | F26: 4.0 | G26: 4.0 | H26: 4.0 | I26: 4.0 | J26: 4.0 | K26: 4.2 | L26: 4.3 | M26: 4.7 | N26: 5.1 | O26: 6.0 | P26: 6.8 | Q26: 7.0 | R26: 7.4
D27: Stat. Region Weser-Ems | E27: 5.0 | F27: 5.1 | G27: 5.2 | H27: 5.3 | I27: 5.3 | J27: 5.5 | K27: 5.8 | L27: 6.2 | M27: 6.6 | N27: 7.2 | O27: 8.3 | P27: 9.4 | Q27: 9.9 | R27: 10.3
D28: Niedersachsen | E28: 5.8 | F28: 5.7 | G28: 5.7 | H28: 5.7 | I28: 5.7 | J28: 5.8 | K28: 6.1 | L28: 6.3 | M28: 6.7 | N28: 7.3 | O28: 8.4 | P28: 9.4 | Q28: 9.8 | R28: 10.2
D30: 1) Anteil der Ausländerinnen und Ausländer laut Ausländerzentralregister an der Bevölkerung laut Fortschreibung. Aufgrund der unterschiedlichen Fortschreibungsbasis für 2005 und 2016 ist die Vergleichbarkeit eingeschränkt.
D31: Quelle: Ausländerzentralregister, Bevölkerungsfortschreibung
D33: Abbildung A2-1: Ausländerinnen und Ausländer nach Statistischen Regionen
C34: 2005
C35: 2006
C36: 2007
C37: 2008
C38: 2009
C39: 2010
C40: 2011
C41: 2012
C42: 2013
C43: 2014
C44: 2015
C45: 2016
C46: 2017
C47: 2018
D76: Link zur LSN-Online-Datenbank
D77: Link zum Regionalmonitoring Niedersachsen

Sheet A3
B1: =Kopf -> Migration und Teilhabe in Niedersachsen - Integrationsmonitoring 2019 - aktuelle Ergebnisse
B4: Indikator A3: Ausländerinnen und Ausländer in Niedersachsen nach Aufenthaltsdauer
B5: Tabelle A3-1: Ausländerinnen und Ausländer am 31.12.2018 nach Aufenthaltsdauer und Statistischen Regionen
B7: Land Statistische Region | C7: Ausländerinnen und Ausländer insgesamt | D7: davon mit einer Aufenthaltsdauer von … bis unter … Jahren
D8: unter 1 | E8: 1 - 4 | F8: 4 - 6 | G8: 6 - 8 | H8: 8 - 10 | I8: 10 und mehr
C9: Anzahl | D9: Prozent
B10: 1 | C10: 2 | D10: 3 | E10: 4 | F10: 5 | G10: 6 | H10: 7 | I10: 8
B11: Stat. Region Braunschweig | C11: 158 180 | D11: 8.5 | E11: 30.9 | F11: 10.4 | G11: 5.4 | H11: 3.0 | I11: 41.8
B12: Stat. Region Hannover | C12: 268 505 | D12: 6.2 | E12: 28.4 | F12: 10.9 | G12: 6.3 | H12: 3.5 | I12: 44.7
B13: Stat. Region Lüneburg | C13: 126 195 | D13: 7.7 | E13: 33.2 | F13: 10.9 | G13: 5.9 | H13: 3.4 | I13: 38.9
B14: Stat. Region Weser-Ems | C14: 260 205 | D14: 9.5 | E14: 33.6 | F14: 11.7 | G14: 7.1 | H14: 4.2 | I14: 33.9
B15: Niedersachsen | C15: 813 080 | D15: 8.0 | E15: 31.3 | F15: 11.1 | G15: 6.3 | H15: 3.6 | I15: 39.8
B18: Quelle: Ausländerzentralregister
B20: Abbildung A3 -1: Ausländerinnen und Ausländer am 31.12.2018 in Niedersachsen nach Aufenthaltsdauer in Jahren
B72: Link zur LSN-Online-Datenbank
B73: Link zum Regionalmonitoring Niedersachsen

Sheet A4
B1: =Kopf -> Migration und Teilhabe in Niedersachsen - Integrationsmonitoring 2019 - aktuelle Ergebnisse
B5: Indikator A4: Ausländerinnen und Ausländer nach ausgewählten Staatsangehörigkeiten
B6: Tabelle A4-1: Ausländerinnen und Ausländer 2005 und 2018 (31.12.) nach ausgewählten Staatsangehörigkeiten und Statistischen Regionen
B8: Land Statistische Region | C8: Ausländerinnen und Ausländer mit der Staatsangehörigkeit1)
C9: 2005 | H9: 2018
C10: Polen | D10: Türkei | E10: Syrien | F10: Rumänien | G10: Irak | H10: Polen | I10: Türkei | J10: Syrien | K10: Rumänien | L10: Irak
B11: 1 | C11: 2 | D11: 3 | E11: 4 | F11: 5 | G11: 6 | H11: 7 | I11: 8 | J11: 9 | K11: 10 | L11: 11
B12: Stat. Region Braunschweig | C12: 6 479 | D12: 26 963 | E12: 1 028 | F12: 808 | G12: 1 263 | H12: 14 160 | I12: 21 895 | J12: 16 830 | K12: 5 650 | L12: 4 675
B13: Stat. Region Hannover | C13: 11 450 | D13: 45 270 | E13: 2 043 | F13: 1 082 | G13: 3 178 | H13: 28 375 | I13: 37 905 | J13: 23 325 | K13: 12 015 | L13: 16 110
B14: Stat. Region Lüneburg | C14: 5 422 | D14: 14 464 | E14: 842 | F14: 549 | G14: 911 | H14: 18 395 | I14: 10 690 | J14: 13 460 | K14: 6 505 | L14: 5 775
B15: Stat. Region Weser-Ems | C15: 9 062 | D15: 24 901 | E15: 1 545 | F15: 943 | G15: 2 096 | H15: 36 215 | I15: 18 785 | J15: 26 315 | K15: 28 465 | L15: 12 585
B16: Niedersachsen | C16: 32 413 | D16: 111 598 | E16: 5 458 | F16: 3 382 | G16: 7 448 | H16: 97 145 | I16: 89 275 | J16: 79 930 | K16: 52 635 | L16: 39 155
B17: 1) Aufgeführt sind die Länder der fünf häufigsten Staatsangehörigkeiten der Ausländerinnen und Ausländer 2018 in Niedersachsen.
B20: Quelle: Ausländerzentralregister
B22: Abbildung A4-1: Ausländerinnen und Ausländer 2005 und 2018 (31.12.) nach ausgewählten Staatsangehörigkeiten und Statistischen Regionen
B61: Link zur LSN-Online-Datenbank
B62: Link zum Regionalmonitoring Niedersachsen

Sheet A5
C1: =Kopf -> Migration und Teilhabe in Niedersachsen - Integrationsmonitoring 2019 - aktuelle Ergebnisse
C5: Indikator A5: Geflüchtete und geduldete Personen in Niedersachsen
C6: Tabelle A5-1: Geflüchtete und gedultete Personen nach Aufenthaltsstatus und Statistischen Regionen
C8: Statistische Region Land | D8: Jahr (31.12.) | E8: Geflüchtete und geduldete Personen insgesamt | F8: davon
F9: davon mit Niederlas-sungs-erlaubnis | G9: davon mit befristeter Aufenthaltserlaubnis | N9: Duldung
G10: Asyl-berechtigte, GFK-Flüchtlinge | H10: Aufnahme-erklärung, vor. Schutz, Resettlement, Kontingent-flüchtlinge | I10: Verbot der Abschiebung, Subsidiärer Schutz1) | J10: Unmöglich-keit der Ausreise aus rechtl. oder tats. Gründen | K10: Bleiberecht (Aufenthalts-gewährung); Opfer von Menschen- handel und organisierter Schwarz- arbeit2) | L10: Dringende persönliche oder humanitäre Gründe, Härtefälle | M10: Aufenthalts-gestattung zum Asyl-verfahren
E11: Anzahl | R11: 2018
C12: 1 | D12: 2 | E12: 3 | F12: 4 | G12: 5 | H12: 6 | I12: 7 | J12: 8 | K12: 9 | L12: 10 | M12: 11 | N12: 12 | R12: 2010
B13: 2016 | C13: Stat. Region Braunschweig | D13: 2018 | E13: 34 985 | F13: 3 620 | G13: 11 805 | H13: 465 | I13: 6 870 | J13: 1 070 | K13: 745 | L13: 660 | M13: 5 950 | N13: 3 800
B14: 2016 | C14: Stat. Region Hannover | D14: 2018 | E14: 64 775 | F14: 14 075 | G14: 22 645 | H14: 665 | I14: 10 510 | J14: 1 375 | K14: 655 | L14: 1 285 | M14: 8 230 | N14: 5 335
B15: 2016 | C15: Stat. Region Lüneburg | D15: 2018 | E15: 34 425 | F15: 4 035 | G15: 11 475 | H15: 295 | I15: 6 750 | J15: 1 245 | K15: 555 | L15: 815 | M15: 5 615 | N15: 3 640
B16: 2016 | C16: Stat. Region Weser-Ems | D16: 2018 | E16: 55 960 | F16: 6 445 | G16: 21 695 | H16: 615 | I16: 10 975 | J16: 1 350 | K16: 970 | L16: 955 | M16: 8 025 | N16: 4 925
B17: 2016 | C17: Niedersachsen | D17: 2018 | E17: 190 140 | F17: 28 175 | G17: 67 620 | H17: 2 035 | I17: 35 110 | J17: 5 040 | K17: 2 925 | L17: 3 715 | M17: 27 825 | N17: 17 700
B18: 2010 | C18: Stat. Region Braunschweig | D18: 2010 | E18: 10 335 | F18: 2 793 | G18: 445 | H18: 88 | I18: 502 | J18: 1 021 | K18: 1 470 | L18: 440 | M18: 852 | N18: 2 724
B19: 2010 | C19: Stat. Region Hannover | D19: 2010 | E19: 21 356 | F19: 10 987 | G19: 1 719 | H19: 87 | I19: 531 | J19: 1 437 | K19: 2 068 | L19: 736 | M19: 444 | N19: 3 347
B20: 2010 | C20: Stat. Region Lüneburg | D20: 2010 | E20: 10 562 | F20: 3 654 | G20: 470 | H20: 63 | I20: 443 | J20: 1 008 | K20: 1 550 | L20: 652 | M20: 397 | N20: 2 325
B21: 2010 | C21: Stat. Region Weser-Ems | D21: 2010 | E21: 16 401 | F21: 5 615 | G21: 1 421 | H21: 86 | I21: 382 | J21: 1 354 | K21: 2 385 | L21: 697 | M21: 917 | N21: 3 544
B22: 2010 | C22: Niedersachsen | D22: 2010 | E22: 58 654 | F22: 23 049 | G22: 4 055 | H22: 324 | I22: 1 858 | J22: 4 820 | K22: 7 473 | L22: 2 525 | M22: 2 610 | N22: 11 940
C24: 1) 2010: ohne Personen unter subsidiärem Schutz
C25: 2) 2010: ohne Aufenthaltsgewährungen aufgrund gut integrierter Jugendlicher/Heranwachsender gemäß § 25a Abs. 1 bzw. 2 AufenthG
C27: Quelle: Ausländerzentralregister
C29: Abbildung A5-1: Geflüchtete und geduldete 2010 und 2018 (31.12.) Personen nach Statistischen Regionen
C74: Link zur LSN-Online-Datenbank
C75: Link zum Regionalmonitoring Niedersachsen

Sheet A6
G1: =Kopf -> Migration und Teilhabe in Niedersachsen - Integrationsmonitoring 2019 - aktuelle Ergebnisse
G5: Indikator A6: Ausländerinnen und Ausländer nach ausgewählten Staatsangehörigkeiten und Geschlecht
G6: Tabelle A6-1: Ausländerinnen und Ausländer 2005 und 2018 (31.12.) nach ausgewählten Staatsangehörigkeiten und Geschlecht
G8: Land der Staatsangehörigkeit1) (Kontinente) | H8: Ausländerinnen und Ausländer | J8: Anteil Männer | L8: Anteil Frauen | N8: Veränderung der Anzahl der Ausländerinnen und Ausländer 2005/2018
H9: 2005-12-31 | I9: 2018-12-31 | J9: 2005-12-31 | K9: 2018-12-31 | L9: 2005-12-31 | M9: 2018-12-31
H10: Anzahl | J10: Prozent
B11: 0
B12: Spalte1 | C12: Spalte12 | D12: Kontinente | E12: Top20_ok | F12: Spalte2 | G12: 1 | H12: 2 | I12: 3 | J12: 4 | K12: 5 | L12: 6 | M12: 7 | N12: 8
B13: 1 | E13: 27 | F13: 121 | G13: Albanien | H13: 913 | I13: 5310 | J13: 58.5 | K13: 56.3 | L13: 41.5 | M13: 43.6 | N13: +481.6 | R13: Europa (Bitte auswählen)
B14: 2 | E14: 22 | F14: 124 | G14: Belgien | H14: 982 | I14: 1275 | J14: 46.6 | K14: 51.4 | L14: 53.4 | M14: 48.6 | N14: +29.8 | R14: Albanien
B15: 3 | E15: 59 | F15: 122 | G15: Bosnien und Herzegowina | H15: 6463 | I15: 7520 | J15: 51.6 | K15: 53.7 | L15: 48.4 | M15: 46.3 | N15: +16.4 | R15: Bosnien und Herzegowina
B16: 4 | C16: x | E16: 9 | F16: 125 | G16: Bulgarien | H16: 1906 | I16: 25990 | J16: 41.9 | K16: 55.6 | L16: 58.1 | M16: 44.4 | N16: +1263.6 | R16: Belgien
B17: 5 | E17: 56 | F17: 126 | G17: Dänemark | H17: 1576 | I17: 1455 | J17: 38.8 | K17: 40.9 | L17: 61.2 | M17: 59.1 | N17: -7.7 | R17: Bulgarien
B18: 6 | E18: 78 | F18: 127 | G18: Estland | H18: 305 | I18: 495 | J18: 26.6 | K18: 35.4 | L18: 73.4 | M18: 64.6 | N18: +62.3 | R18: Dänemark
B19: 7 | E19: 66 | F19: 128 | G19: Finnland | H19: 1110 | I19: 1050 | J19: 25.9 | K19: 28.6 | L19: 74.1 | M19: 71.9 | N19: -5.4 | R19: Estland
B20: 8 | E20: 29 | F20: 129 | G20: Frankreich | H20: 3892 | I20: 4760 | J20: 42.6 | K20: 47.4 | L20: 57.4 | M20: 52.6 | N20: +22.3 | R20: Finnland
B21: 9 | C21: x | E21: 15 | F21: 134 | G21: Griechenland | H21: 16107 | I21: 18790 | J21: 55.9 | K21: 57.1 | L21: 44.1 | M21: 42.9 | N21: +16.7 | R21: Frankreich
B22: 10 | E22: 69 | F22: 135 | G22: Irland | H22: 500 | I22: 715 | J22: 54.0 | K22: 60.8 | L22: 46.0 | M22: 39.2 | N22: +43.0 | R22: Kroatien
B23: 11 | C23: x | E23: 11 | F23: 136 | G23: Island | H23: 141 | I23: 135 | J23: 53.9 | K23: 59.3 | L23: 46.1 | M23: 40.7 | N23: -4.3 | R23: Slowenien
B24: 12 | E24: 72 | F24: 137 | G24: Italien | H24: 23943 | I24: 28535 | J24: 62.4 | K24: 61.2 | L24: 37.6 | M24: 38.8 | N24: +19.2 | R24: Griechenland
B25: 13 | E25: 96 | F25: 132 | G25: Serbien u.Montenegro, Ehem.Jugoslawien | H25: 37396 | I25: 1735 | J25: 52.7 | K25: 55.3 | L25: 47.3 | M25: 44.7 | N25: -95.4 | R25: Irland
B26: 14 | C26: x | E26: 7 | F26: 133 | G26: Serbien (einschl. Kosovo) | H26: 0 | I26: 495 | J26: NV | K26: 48.5 | L26: NV | M26: 50.5 | N26: NV | R26: Island
B27: 15 | E27: 48 | F27: 170 | G27: Serbien | H27: 0 | I27: 18830 | J27: NV | K27: 50.6 | L27: NV | M27: 49.4 | N27: NV | R27: Italien
B28: 16 | E28: 30 | F28: 140 | G28: Montenegro | H28: 0 | I28: 4310 | J28: NV | K28: 53.4 | L28: NV | M28: 46.6 | N28: NV | R28: Serbien u.Montenegro, Ehem.Jugoslawien
B29: 17 | E29: 24 | F29: 130 | G29: Kroatien | H29: 6466 | I29: 11405 | J29: 50.3 | K29: 56.7 | L29: 49.7 | M29: 43.2 | N29: +76.4 | R29: Lettland
B30: 18 | E30: 95 | F30: 150 | G30: Kosovo | H30: 0 | I30: 15795 | J30: NV | K30: 51.9 | L30: NV | M30: 48.1 | N30: NV | R30: Litauen
B31: 19 | E31: 25 | F31: 139 | G31: Lettland | H31: 1050 | I31: 5410 | J31: 38.5 | K31: 54.5 | L31: 61.5 | M31: 45.5 | N31: +415.2 | R31: Luxemburg
B32: 20 | E32: 105 | F32: 142 | G32: Litauen | H32: 2052 | I32: 7260 | J32: 26.4 | K32: 48.8 | L32: 73.6 | M32: 51.2 | N32: +253.8 | R32: Mazedonien
B33: 21 | E33: 63 | F33: 143 | G33: Luxemburg | H33: 150 | I33: 230 | J33: 50.7 | K33: 50.0 | L33: 49.3 | M33: 52.2 | N33: +53.3 | R33: Malta
B34: 22 | E34: 106 | F34: 145 | G34: Malta | H34: 0 | I34: 40 | J34: NV | K34: 50.0 | L34: NV | M34: 50.0 | N34: NV | R34: Moldau, Republik
B35: 23 | C35: x | E35: 6 | F35: 144 | G35: Mazedonien | H35: 2634 | I35: 5540 | J35: 53.6 | K35: 52.8 | L35: 46.4 | M35: 47.2 | N35: +110.3 | R35: Monaco
B36: 24 | E36: 79 | F36: 146 | G36: Moldau, Republik | H36: 1087 | I36: 2170 | J36: 43.1 | K36: 40.8 | L36: 56.9 | M36: 59.2 | N36: +99.6 | R36: Niederlande
B37: 25 | E37: 23 | F37: 147 | G37: Monaco | H37: 2 | I37: 5 | J37: 0.0 | K37: 0.0 | L37: 100.0 | M37: 0.0 | N37: +150.0 | R37: Norwegen
B38: 26 | C38: x | E38: 2 | F38: 148 | G38: Niederlande | H38: 22334 | I38: 29910 | J38: 56.6 | K38: 56.5 | L38: 43.4 | M38: 43.5 | N38: +33.9 | R38: Österreich
B39: 27 | C39: x | E39: 18 | F39: 149 | G39: Norwegen | H39: 537 | I39: 510 | J39: 43.0 | K39: 47.1 | L39: 57.0 | M39: 52.0 | N39: -5.0 | R39: Polen
B40: 28 | C40: x | E40: 4 | F40: 151 | G40: Österreich | H40: 6222 | I40: 6575 | J40: 53.0 | K40: 52.2 | L40: 47.0 | M40: 47.8 | N40: +5.7 | R40: Portugal
B41: 29 | E41: 40 | F41: 152 | G41: Polen | H41: 32413 | I41: 97145 | J41: 45.0 | K41: 55.3 | L41: 55.0 | M41: 44.7 | N41: +199.7 | R41: Rumänien
B42: 30 | E42: 51 | F42: 153 | G42: Portugal | H42: 7248 | I42: 8725 | J42: 53.3 | K42: 53.9 | L42: 46.7 | M42: 46.1 | N42: +20.4 | R42: Slowakei
B43: 31 | E43: 44 | F43: 154 | G43: Rumänien | H43: 3382 | I43: 52635 | J43: 41.3 | K43: 61.5 | L43: 58.7 | M43: 38.5 | N43: +1456.3 | R43: Schweden
B44: 32 | E44: 102 | F44: 160 | G44: Russische Föderation | H44: 18273 | I44: 21820 | J44: 40.7 | K44: 37.0 | L44: 59.3 | M44: 63.0 | N44: +19.4 | R44: Schweiz
B45: 33 | C45: x | E45: 8 | F45: 157 | G45: Schweden | H45: 1288 | I45: 1520 | J45: 41.8 | K45: 46.4 | L45: 58.2 | M45: 53.6 | N45: +18.0 | R45: ehem. Sowjetunion
B46: 34 | C46: x | E46: 12 | F46: 158 | G46: Schweiz | H46: 2211 | I46: 2355 | J46: 45.9 | K46: 46.7 | L46: 54.1 | M46: 53.3 | N46: +6.5 | R46: Russische Föderation
B47: 35 | E47: 101 | F47: 155 | G47: Slowakei | H47: 868 | I47: 2545 | J47: 34.0 | K47: 47.5 | L47: 66.0 | M47: 52.5 | N47: +193.2 | R47: Spanien
B48: 36 | C48: x | E48: 1 | F48: 131 | G48: Slowenien | H48: 433 | I48: 925 | J48: 50.6 | K48: 57.3 | L48: 49.4 | M48: 42.7 | N48: +113.6 | R48: ehem. Tschechoslowakei
B49: 37 | E49: 46 | F49: 159 | G49: ehem. Sowjetunion | H49: 341 | I49: 85 | J49: 42.2 | K49: 35.3 | L49: 57.8 | M49: 64.7 | N49: -75.1 | R49: Türkei
B50: 38 | C50: x | E50: 17 | F50: 161 | G50: Spanien | H50: 9376 | I50: 11845 | J50: 51.4 | K50: 52.7 | L50: 48.6 | M50: 47.3 | N50: +26.3 | R50: Tschechische Republik
B51: 39 | C51: x | E51: 13 | F51: 162 | G51: ehem. Tschechoslowakei | H51: 245 | I51: 95 | J51: 40.8 | K51: 36.8 | L51: 59.2 | M51: 63.2 | N51: -61.2 | R51: Ungarn
B52: 40 | C52: x | E52: 14 | F52: 164 | G52: Tschechische Republik | H52: 1352 | I52: 2190 | J52: 37.4 | K52: 45.7 | L52: 62.6 | M52: 54.3 | N52: +62.0 | R52: Ukraine
B53: 41 | E53: 47 | F53: 163 | G53: Türkei | H53: 111598 | I53: 89275 | J53: 52.5 | K53: 51.2 | L53: 47.5 | M53: 48.8 | N53: -20.0 | R53: Vereinigtes Königreich GB u.Nordir
B54: 42 | E54: 98 | F54: 166 | G54: Ukraine | H54: 11612 | I54: 11030 | J54: 39.4 | K54: 36.7 | L54: 60.6 | M54: 63.3 | N54: -5.0 | R54: Weißrußland
B55: 43 | E55: 104 | F55: 165 | G55: Ungarn | H55: 2287 | I55: 9430 | J55: 61.0 | K55: 61.1 | L55: 39.0 | M55: 38.9 | N55: +312.3 | R55: Zypern
B56: 44 | E56: 107 | F56: 168 | G56: Vereinigtes Königreich GB u.Nordirland | H56: 10362 | I56: 8915 | J56: 66.6 | K56: 69.2 | L56: 33.4 | M56: 30.8 | N56: -14.0 | R56: Britische Überseegebiete
B57: 45 | C57: x | D57: k | F57: 169 | G57: Weißrußland | H57: 1 593 | I57: 2 000 | J57: 30.5 | K57: 28.5 | L57: 69.5 | M57: 71.5 | N57: +25.5 | R57: übrige europäische Staaten
B58: 46 | E58: 50 | F58: 181 | G58: Zypern | H58: 50 | I58: 115 | J58: 60.0 | K58: 56.5 | L58: 40.0 | M58: 43.5 | N58: +130.0 | R58: Afrika
B59: 47 | E59: 91 | F59: 199 | G59: übrige europäische Staaten | H59: 54 | I59: 5 | J59: 50.0 | K59: 100.0 | L59: 50.0 | M59: 0.0 | N59: -90.7 | R59: Algerien
B60: 48 | E60: 34 | F60: 1000 | G60: Europa insgesamt | H60: 352 754 | I60: 528 900 | J60: 51.3 | K60: 53.9 | L60: 48.7 | M60: 46.1 | N60: +49.9 | R60: Angola
B61: 49 | E61: 92 | F61: 221 | G61: Algerien | H61: 652 | I61: 1405 | J61: 78.8 | K61: 75.1 | L61: 21.2 | M61: 24.9 | N61: +115.5 | R61: Eritrea
B62: 50 | E62: 100 | F62: 223 | G62: Angola | H62: 478 | I62: 245 | J62: 61.9 | K62: 57.1 | L62: 38.1 | M62: 42.9 | N62: -48.7 | R62: Äthiopien
B63: 51 | E63: 39 | F63: 287 | G63: Ägypten | H63: 547 | I63: 1850 | J63: 68.9 | K63: 68.4 | L63: 31.1 | M63: 31.6 | N63: +238.2 | R63: Benin
B64: 52 | E64: 49 | F64: 225 | G64: Äthiopien | H64: 238 | I64: 335 | J64: 56.7 | K64: 49.3 | L64: 43.3 | M64: 50.7 | N64: +40.8 | R64: Cote d'Ivoire
B65: 53 | E65: 75 | F65: 229 | G65: Benin | H65: 60 | I65: 125 | J65: 76.7 | K65: 60.0 | L65: 23.3 | M65: 36.0 | N65: +108.3 | R65: Nigeria
B66: 54 | E66: 42 | F66: 258 | G66: Burkina Faso | H66: 71 | I66: 95 | J66: 73.2 | K66: 68.4 | L66: 26.8 | M66: 31.6 | N66: +33.8 | R66: Gambia
B67: 55 | E67: 76 | F67: 231 | G67: Cote d'Ivoire | H67: 300 | I67: 2995 | J67: 79.0 | K67: 76.0 | L67: 21.0 | M67: 23.9 | N67: +898.3 | R67: Ghana
B68: 56 | E68: 89 | F68: 224 | G68: Eritrea | H68: 106 | I68: 3755 | J68: 42.5 | K68: 69.5 | L68: 57.5 | M68: 30.5 | N68: +3442.5 | R68: Kenia
B69: 57 | E69: 86 | F69: 237 | G69: Gambia | H69: 326 | I69: 800 | J69: 84.7 | K69: 80.0 | L69: 15.3 | M69: 20.0 | N69: +145.4 | R69: Kongo, Dem. Volksrepublik (ehem.Za
B70: 58 | E70: 45 | F70: 238 | G70: Ghana | H70: 1159 | I70: 2785 | J70: 48.6 | K70: 49.7 | L70: 51.4 | M70: 50.4 | N70: +140.3 | R70: Liberia
B71: 59 | E71: 103 | F71: 262 | G71: Kamerun | H71: 1155 | I71: 1655 | J71: 64.2 | K71: 55.6 | L71: 35.8 | M71: 44.4 | N71: +43.3 | R71: Marokko
B72: 60 | E72: 64 | F72: 243 | G72: Kenia | H72: 391 | I72: 650 | J72: 30.7 | K72: 32.3 | L72: 69.3 | M72: 68.5 | N72: +66.2 | R72: Burkina Faso
B73: 61 | E73: 83 | F73: 247 | G73: Liberia | H73: 151 | I73: 580 | J73: 81.5 | K73: 81.0 | L73: 18.5 | M73: 19.0 | N73: +284.1 | R73: Kamerun
B74: 62 | E74: 94 | F74: 252 | G74: Marokko | H74: 1397 | I74: 2175 | J74: 63.2 | K74: 57.0 | L74: 36.8 | M74: 42.8 | N74: +55.7 | R74: Südafrika
B75: 63 | E75: 97 | F75: 232 | G75: Nigeria | H75: 1016 | I75: 2435 | J75: 70.7 | K75: 58.3 | L75: 29.3 | M75: 41.7 | N75: +139.7 | R75: Senegal
B76: 64 | E76: 41 | F76: 269 | G76: Senegal | H76: 124 | I76: 260 | J76: 70.2 | K76: 63.5 | L76: 29.8 | M76: 34.6 | N76: +109.7 | R76: Sierra Leone
B77: 65 | E77: 82 | F77: 272 | G77: Sierra Leone | H77: 335 | I77: 125 | J77: 83.3 | K77: 72.0 | L77: 16.7 | M77: 28.0 | N77: -62.7 | R77: Somalia
B78: 66 | E78: 77 | F78: 273 | G78: Somalia | H78: 275 | I78: 2925 | J78: 58.2 | K78: 64.8 | L78: 41.8 | M78: 35.2 | N78: +963.6 | R78: Sudan (einschl. Südsudan) (bis 201
B79: 67 | E79: 37 | F79: 263 | G79: Südafrika | H79: 400 | I79: 485 | J79: 46.5 | K79: 45.4 | L79: 53.5 | M79: 54.6 | N79: +21.3 | R79: Togo
B80: 68 | E80: 54 | F80: 276 | G80: Sudan (einschl. Südsudan) (bis 2010) | H80: 210 | I80: 295 | J80: 77.1 | K80: 86.4 | L80: 22.9 | M80: 13.6 | N80: +40.5 | R80: Tunesien
B81: 69 | E81: 36 | F81: 277 | G81: Sudan (ab 2011) | H81: 0 | I81: 4270 | J81: NV | K81: 83.8 | L81: NV | M81: 16.2 | N81: NV | R81: Ägypten
B82: 70 | C82: x | D82: k | F82: 278 | G82: Südsudan (ab 2011) | H82: 0 | I82: 165 | J82: NV | K82: 87.9 | L82: NV | M82: 12.1 | N82: NV | R82: übrige afrikanische Staaten
B83: 71 | E83: 87 | F83: 283 | G83: Togo | H83: 713 | I83: 555 | J83: 65.4 | K83: 45.9 | L83: 34.6 | M83: 55.0 | N83: -22.2 | R83: Amerika
B84: 72 | E84: 99 | F84: 285 | G84: Tunesien | H84: 2228 | I84: 3445 | J84: 71.3 | K84: 65.7 | L84: 28.7 | M84: 34.1 | N84: +54.6 | R84: Argentinien
B85: 73 | E85: 38 | F85: 246 | G85: Kongo, Dem. Volksrepublik (ehem.Zaire) | H85: 622 | I85: 265 | J85: 52.6 | K85: 54.7 | L85: 47.4 | M85: 45.3 | N85: -57.4 | R85: Bolivien
B86: 74 | E86: 80 | F86: 299 | G86: übrige afrikanische Staaten | H86: 1315 | I86: 4380 | J86: 64.5 | K86: 59.0 | L86: 35.5 | M86: 41.0 | N86: +233.1 | R86: Brasilien
B87: 75 | E87: 84 | F87: 2000 | G87: Afrika insgesamt | H87: 14 269 | I87: 39 055 | J87: 64.7 | K87: 65.4 | L87: 35.3 | M87: 34.6 | N87: +173.7 | R87: Chile
B88: 76 | E88: 68 | F88: 323 | G88: Argentinien | H88: 297 | I88: 390 | J88: 43.8 | K88: 47.4 | L88: 56.2 | M88: 52.6 | N88: +31.3 | R88: Dominikanische Republik
B89: 77 | E89: 67 | F89: 326 | G89: Bolivien | H89: 129 | I89: 120 | J89: 43.4 | K89: 37.5 | L89: 56.6 | M89: 62.5 | N89: -7.0 | R89: Kanada
B90: 78 | E90: 85 | F90: 327 | G90: Brasilien | H90: 1899 | I90: 3025 | J90: 28.9 | K90: 37.4 | L90: 71.1 | M90: 62.6 | N90: +59.3 | R90: Kolumbien
B91: 79 | E91: 52 | F91: 332 | G91: Chile | H91: 381 | I91: 525 | J91: 43.3 | K91: 51.4 | L91: 56.7 | M91: 48.6 | N91: +37.8 | R91: Kuba
B92: 80 | E92: 73 | F92: 335 | G92: Dominikanische Republik | H92: 446 | I92: 455 | J92: 27.8 | K92: 36.3 | L92: 72.2 | M92: 63.7 | N92: +2.0 | R92: Mexiko
B93: 81 | E93: 90 | F93: 348 | G93: Kanada | H93: 800 | I93: 1020 | J93: 48.4 | K93: 47.5 | L93: 51.6 | M93: 52.5 | N93: +27.5 | R93: Peru
B94: 82 | E94: 26 | F94: 349 | G94: Kolumbien | H94: 629 | I94: 1290 | J94: 28.0 | K94: 41.5 | L94: 72.0 | M94: 58.5 | N94: +105.1 | R94: Venezuela
B95: 83 | E95: 65 | F95: 351 | G95: Kuba | H95: 453 | I95: 395 | J95: 26.3 | K95: 32.9 | L95: 73.7 | M95: 65.8 | N95: -12.8 | R95: Vereinigte Staaten
B96: 84 | C96: x | D96: k | F96: 353 | G96: Mexiko | H96: 903 | I96: 1 710 | J96: 40.8 | K96: 45.6 | L96: 59.2 | M96: 54.7 | N96: +89.4 | R96: übrige amerikanische Staaten
B97: 85 | E97: 62 | F97: 361 | G97: Peru | H97: 622 | I97: 715 | J97: 32.3 | K97: 37.1 | L97: 67.7 | M97: 62.9 | N97: +15.0 | R97: Asien
B98: 86 | C98: x | E98: 10 | F98: 367 | G98: Venezuela | H98: 211 | I98: 340 | J98: 35.1 | K98: 41.2 | L98: 64.9 | M98: 58.8 | N98: +61.1 | R98: Armenien
B99: 87 | E99: 53 | F99: 368 | G99: Vereinigte Staaten | H99: 4211 | I99: 5300 | J99: 50.5 | K99: 52.5 | L99: 49.5 | M99: 47.5 | N99: +25.9 | R99: Afghanistan
B100: 88 | E100: 43 | F100: 399 | G100: übrige amerikanische Staaten | H100: 816 | I100: 1230 | J100: 40.1 | K100: 43.5 | L100: 59.9 | M100: 56.5 | N100: +50.7 | R100: Aserbaidschan
B101: 89 | E101: 60 | F101: 3000 | G101: Amerika insgesamt | H101: 11 797 | I101: 16 515 | J101: 40.7 | K101: 45.1 | L101: 59.3 | M101: 54.9 | N101: +40.0 | R101: Georgien
B102: 90 | C102: x | E102: 19 | F102: 423 | G102: Afghanistan | H102: 3331 | I102: 20695 | J102: 52.5 | K102: 64.0 | L102: 47.5 | M102: 36.0 | N102: +521.3 | R102: Sri Lanka
B103: 91 | E103: 31 | F103: 422 | G103: Armenien | H103: 1063 | I103: 1485 | J103: 49.7 | K103: 46.5 | L103: 50.3 | M103: 53.5 | N103: +39.7 | R103: Vietnam
B104: 92 | E104: 61 | F104: 425 | G104: Aserbaidschan | H104: 1725 | I104: 1570 | J104: 52.3 | K104: 50.0 | L104: 47.7 | M104: 50.0 | N104: -9.0 | R104: Indien
B105: 93 | C105: x | E105: 5 | F105: 460 | G105: Bangladesch | H105: 180 | I105: 330 | J105: 65.6 | K105: 68.2 | L105: 34.4 | M105: 31.8 | N105: +83.3 | R105: Indonesien
B106: 94 | C106: x | E106: 20 | F106: 479 | G106: China | H106: 5536 | I106: 10150 | J106: 54.4 | K106: 50.5 | L106: 45.6 | M106: 49.5 | N106: +83.3 | R106: Irak
B107: 95 | E107: 71 | F107: 430 | G107: Georgien | H107: 1197 | I107: 2545 | J107: 37.1 | K107: 47.0 | L107: 62.9 | M107: 52.8 | N107: +112.6 | R107: Iran, Islamische Republik
B108: 96 | E108: 57 | F108: 436 | G108: Indien | H108: 1875 | I108: 6030 | J108: 63.7 | K108: 61.7 | L108: 36.3 | M108: 38.3 | N108: +221.6 | R108: Israel
B109: 97 | E109: 28 | F109: 437 | G109: Indonesien | H109: 803 | I109: 1455 | J109: 43.6 | K109: 41.2 | L109: 56.4 | M109: 58.8 | N109: +81.2 | R109: Japan
B110: 98 | E110: 70 | F110: 441 | G110: Israel | H110: 628 | I110: 705 | J110: 65.8 | K110: 60.3 | L110: 34.2 | M110: 39.7 | N110: +12.3 | R110: Kasachstan
B111: 99 | E111: 21 | F111: 438 | G111: Irak | H111: 7448 | I111: 39155 | J111: 58.2 | K111: 55.7 | L111: 41.8 | M111: 44.3 | N111: +425.7 | R111: Jordanien
B112: 100 | E112: 74 | F112: 439 | G112: Iran, Islamische Republik | H112: 5520 | I112: 10145 | J112: 56.2 | K112: 57.9 | L112: 43.8 | M112: 42.0 | N112: +83.8 | R112: Libanon
B113: 101 | E113: 93 | F113: 442 | G113: Japan | H113: 1005 | I113: 1415 | J113: 38.1 | K113: 39.6 | L113: 61.9 | M113: 60.1 | N113: +40.8 | R113: Nepal
B114: 102 | E114: 33 | F114: 445 | G114: Jordanien | H114: 420 | I114: 885 | J114: 65.2 | K114: 59.3 | L114: 34.8 | M114: 40.7 | N114: +110.7 | R114: Bangladesch
B115: 103 | E115: 55 | F115: 444 | G115: Kasachstan | H115: 6071 | I115: 4785 | J115: 45.8 | K115: 45.9 | L115: 54.2 | M115: 54.1 | N115: -21.2 | R115: Pakistan
B116: 104 | E116: 88 | F116: 467 | G116: Korea, Republik | H116: 822 | I116: 1485 | J116: 41.6 | K116: 38.4 | L116: 58.4 | M116: 61.6 | N116: +80.7 | R116: Philippinen
B117: 105 | E117: 58 | F117: 451 | G117: Libanon | H117: 7530 | I117: 6765 | J117: 55.1 | K117: 57.9 | L117: 44.9 | M117: 42.1 | N117: -10.2 | R117: Taiwan
B118: 106 | C118: x | E118: 3 | F118: 482 | G118: Malaysia | H118: 400 | I118: 535 | J118: 51.5 | K118: 51.4 | L118: 48.5 | M118: 48.6 | N118: +33.8 | R118: Korea, Republik
B119: 107 | E119: 32 | F119: 458 | G119: Nepal | H119: 248 | I119: 735 | J119: 72.6 | K119: 54.4 | L119: 27.4 | M119: 45.6 | N119: +196.4 | R119: Syrien, Arabische Republik
B120: 108 | C120: x | E120: 16 | F120: 461 | G120: Pakistan | H120: 1514 | I120: 4160 | J120: 60.9 | K120: 71.8 | L120: 39.1 | M120: 28.2 | N120: +174.8 | R120: Thailand
B121: 109 | E121: 81 | F121: 459 | G121: Die Palästinänsischen Gebiete | H121: 0 | I121: 1065 | J121: NV | K121: 61.5 | L121: NV | M121: 38.5 | N121: NV | R121: China
B122: 110 | E122: 35 | F122: 462 | G122: Philippinen | H122: 1689 | I122: 1620 | J122: 30.6 | K122: 21.3 | L122: 69.4 | M122: 78.7 | N122: -4.1 | R122: Malaysia
B123: 111 | C123: x | D123: k | F123: 431 | G123: Sri Lanka | H123: 2 178 | I123: 1 255 | J123: 49.0 | K123: 47.4 | L123: 51.0 | M123: 52.6 | N123: -42.4 | R123: übrige asiatische Staaten
B124: 112 | C124: x | D124: k | F124: 475 | G124: Syrien, Arabische Republik | H124: 5 458 | I124: 79 930 | J124: 54.9 | K124: 57.8 | L124: 45.1 | M124: 42.2 | N124: +1364.5
B125: 113 | C125: x | D125: OK | F125: 465 | G125: Taiwan | H125: 210 | I125: 435 | J125: 34.8 | K125: 28.7 | L125: 65.2 | M125: 72.4 | N125: +107.1 | R125: Australien und Ozeanien
B126: 114 | C126: x | D126: OK | F126: 476 | G126: Thailand | H126: 3803 | I126: 4215 | J126: 12.7 | K126: 9.6 | L126: 87.3 | M126: 90.4 | N126: +10.8 | R126: staatenlos
B127: 115 | C127: x | D127: k | F127: 432 | G127: Vietnam | H127: 9 666 | I127: 8 655 | J127: 51.5 | K127: 45.8 | L127: 48.5 | M127: 54.2 | N127: -10.5 | R127: ungeklärt,oh.Angabe,unbekannt
B128: 116 | F128: 499 | G128: übrige asiatische Staaten | H128: 3 214 | I128: 3 500 | J128: 49.1 | K128: 52.3 | L128: 50.9 | M128: 47.7 | N128: +8.9
B129: 117 | F129: 4000 | G129: Asien insgesamt | H129: 73 534 | I129: 215 705 | J129: 50.4 | K129: 55.3 | L129: 49.6 | M129: 44.7 | N129: +193.3
B130: 118 | F130: 5000 | G130: Australien und Ozeanien | H130: 667 | I130: 1 015 | J130: 47.1 | K130: 55.2 | L130: 52.9 | M130: 44.8 | N130: +52.2
B131: 119 | F131: 997 | G131: staatenlos | H131: 1 620 | I131: 3 290 | J131: 57.2 | K131: 56.8 | L131: 42.8 | M131: 43.2 | N131: +103.1
B132: 120 | F132: 998 | G132: ungeklärt,oh.Angabe,unbekannt | H132: 6 845 | I132: 8 560 | J132: 56.3 | K132: 59.6 | L132: 43.7 | M132: 40.4 | N132: +25.1
B133: 121 | F133: 185 | G133: Britische Überseegebiete | H133: 0 | I133: 40 | J133: NV | K133: 37.5 | L133: NV | M133: 50.0 | N133: NV
B134: 122 | F134: 9999 | G134: Ausländer insgesamt | H134: 461 486 | I134: 813 080 | J134: 51.4 | K134: 54.7 | L134: 48.6 | M134: 45.3 | N134: +76.2
G136: 1) Bis 2013 Großbritannien und Europa einschl. britisch abhängiger Gebiete. Ab 2014 'ungeklärt und ohne Angabe' einschl. britischer Überseegebiete.
R137: Ausländer
G138: Quelle: Ausländerzentralregister
G140: Abbildung A6-1: Veränderung der Anzahl der Ausländerinnen und Ausländer nach ausgewählten Staatsangehörigkeiten 2005/2018 in Prozent
G216: Link zur LSN-Online Datenbank
G217: Link zum Regionalmonitoring Niedersachsen

Sheet A7
D1: =Kopf -> Migration und Teilhabe in Niedersachsen - Integrationsmonitoring 2019 - aktuelle Ergebnisse
D4: Indikator A7: Ausländerinnen und Ausländer nach Altersgruppen
D5: Tabelle A7-1: Ausländerinnen und Ausländer am 31.12.2018 nach Altersgruppen und Statistischen Regionen
D7: Land Statistische Region | E7: Ausländerinnen und Ausländer insgesamt | F7: davon im Alter von … bis unter … Jahren
F8: 0 - 6 | G8: 6 - 15 | H8: 15 - 20 | I8: 20 - 40 | J8: 40 - 65 | K8: 65 - 80 | L8: 80 und älter
E9: Anzahl
D10: 1 | E10: 2 | F10: 3 | G10: 4 | H10: 5 | I10: 6 | J10: 7 | K10: 8 | L10: 9
B12: Stat. Region Braunschweig | C12: 1 | D12: Stat. Region Braunschweig | E12: 158 180 | F12: 9 515 | G12: 12 455 | H12: 8 005 | I12: 66 775 | J12: 47 905 | K12: 11 175 | L12: 2 355
B13: Stat. Region Hannover | C13: 2 | D13: Stat. Region Hannover | E13: 268 505 | F13: 14 925 | G13: 21 065 | H13: 13 440 | I13: 106 760 | J13: 86 570 | K13: 20 440 | L13: 5 305
B14: Stat. Region Lüneburg | C14: 3 | D14: Stat. Region Lüneburg | E14: 126 195 | F14: 8 160 | G14: 11 375 | H14: 7 165 | I14: 49 590 | J14: 41 220 | K14: 7 315 | L14: 1 365
B15: Stat. Region Weser-Ems | C15: 4 | D15: Stat. Region Weser-Ems | E15: 260 205 | F15: 17 845 | G15: 23 820 | H15: 13 935 | I15: 103 765 | J15: 83 260 | K15: 15 085 | L15: 2 495
B16: Niedersachsen | C16: 5 | D16: Niedersachsen | E16: 813 080 | F16: 50 445 | G16: 68 715 | H16: 42 545 | I16: 326 885 | J16: 258 955 | K16: 54 015 | L16: 11 520
B17: Niedersachsen & Stat. Regionen
D18: Quelle: Ausländerzentralregister
D23: Abbildung A7-1: Ausländerinnen und Ausländer am 31.12.2018 nach Altersgruppen
D62: Link zur LSN-Online-Datenbank
D63: Link zum Regionalmonitoring Niedersachsen

Sheet A8
D1: =Kopf -> Migration und Teilhabe in Niedersachsen - Integrationsmonitoring 2019 - aktuelle Ergebnisse
D3: Indikator A8: Ausländerinnen und Ausländer nach Aufenthaltsstatus und Staatsangehörigkeit
D4: Tabelle A8-1: Ausländerinnen und Ausländer am 31.12.2018 nach Aufenhaltsstatus und Staatsangehörigkeit
D6: Land der Staatsangehörigkeit1) | E6: Ausländer- innen und Ausländer insgesamt | F6: davon nach Aufenthaltsstatus
F7: Aufenthalts- status nach altem Recht (Ausländer- gesetz 1990) | G7: Aufenthalts- erlaubnis nach AufenthaltG 2004 | H7: Nieder-lassungs- erlaubnis (inkl. Dauer-aufenthalt-EG) | I7: Aufenthalsrecht EU2) | L7: Antrag auf Aufenthalts-titel (AT) gestellt, von Erfordernis auf AT befreit, heimatlose Ausländer | M7: Duldung | N7: Aufenthalts- gestattung | O7: Keinen Aufenthalts-titel
J8: dav. Aufenthalts- erlaubnis EU | K8: dav. EU-Bürgerinnen und Bürger ohne erfassten Aufenthalts-status2)
E9: Anzahl
D10: 1 | E10: 2 | F10: 3 | G10: 4 | H10: 5 | I10: 6 | J10: 7 | K10: 8 | L10: 9 | M10: 10 | N10: 11 | O10: 12
D11: Europa | E11: 528 900 | F11: 18 670 | G11: 44 220 | H11: 118 375 | I11: 318 330 | J11: 54 190 | K11: 264 145 | L11: 9 280 | M11: 7 820 | N11: 3 085 | O11: 9 025
D12: Bulgarien | E12: 25 990 | F12: 80 | G12: 105 | H12: 150 | I12: 25 570 | J12: 320 | K12: 25 250 | L12: 35 | M12: 10 | N12: 5 | O12: 35
D13: Griechenland | E13: 18 790 | F13: 930 | G13: 25 | H13: 35 | I13: 16 935 | J13: 6 735 | K13: 10 200 | L13: 770 | M13: 5 | N13: 0 | O13: 85
D14: Italien | E14: 28 535 | F14: 1 175 | G14: 70 | H14: 30 | I14: 26 125 | J14: 11 765 | K14: 14 360 | L14: 1 045 | M14: 5 | N14: 0 | O14: 75
D15: Kroatien | E15: 11 405 | F15: 735 | G15: 660 | H15: 3 845 | I15: 5 955 | J15: 315 | K15: 5 640 | L15: 110 | M15: 35 | N15: 0 | O15: 60
D16: Niederlande | E16: 29 910 | F16: 1 370 | G16: 20 | H16: 20 | I16: 28 080 | J16: 10 265 | K16: 17 810 | L16: 350 | M16: 0 | N16: 0 | O16: 75
D17: Österreich | E17: 6 575 | F17: 1 190 | G17: 10 | H17: 75 | I17: 5 195 | J17: 2 355 | K17: 2 840 | L17: 100 | M17: 0 | N17: 0 | O17: 10
D18: Polen | E18: 97 145 | F18: 4 430 | G18: 815 | H18: 1 095 | I18: 90 350 | J18: 2 930 | K18: 87 420 | L18: 275 | M18: 5 | N18: 0 | O18: 170
D19: Rumänien | E19: 52 635 | F19: 160 | G19: 175 | H19: 215 | I19: 51 995 | J19: 320 | K19: 51 680 | L19: 35 | M19: 15 | N19: 5 | O19: 40
D20: Russische Föderation | E20: 21 820 | F20: 215 | G20: 5 260 | H20: 12 705 | I20: 210 | J20: 210 | K20: 0 | L20: 420 | M20: 880 | N20: 1 060 | O20: 1 050
D21: Serbien3) | E21: 41 160 | F21: 410 | G21: 13 535 | H21: 17 300 | I21: 855 | J21: 855 | K21: 0 | L21: 2 570 | M21: 4 055 | N21: 220 | O21: 2 205
D22: Spanien | E22: 11 845 | F22: 680 | G22: 30 | H22: 10 | I22: 10 835 | J22: 4 145 | K22: 6 690 | L22: 240 | M22: 5 | N22: 0 | O22: 40
D23: Türkei | E23: 89 275 | F23: 2 565 | G23: 13 545 | H23: 67 985 | I23: 275 | J23: 275 | K23: 0 | L23: 1 590 | M23: 520 | N23: 1 280 | O23: 1 470
D24: Ukraine | E24: 11 030 | F24: 1 195 | G24: 2 865 | H24: 5 625 | I24: 270 | J24: 270 | K24: 0 | L24: 245 | M24: 75 | N24: 80 | O24: 670
D25: Ungarn | E25: 9 430 | F25: 215 | G25: 20 | H25: 75 | I25: 9 075 | J25: 130 | K25: 8 945 | L25: 20 | M25: 0 | N25: 0 | O25: 20
D26: Vereinigtes Königreich4) | E26: 8 915 | F26: 585 | G26: 40 | H26: 35 | I26: 8 085 | J26: 3 815 | K26: 4 265 | L26: 140 | M26: 0 | N26: 0 | O26: 25
D27: EU Staaten | E27: 339 985 | F27: 13 415 | G27: 2 155 | H27: 5 980 | I27: 313 960 | J27: 50 175 | K27: 263 785 | L27: 3 665 | M27: 90 | N27: 15 | O27: 710
D28: Afrika | E28: 39 055 | F28: 170 | G28: 18 040 | H28: 5 295 | I28: 510 | J28: 510 | K28: 0 | L28: 2 115 | M28: 3 180 | N28: 6 090 | O28: 3 520
D29: Amerika | E29: 16 515 | F29: 410 | G29: 7 155 | H29: 5 320 | I29: 800 | J29: 800 | K29: 0 | L29: 955 | M29: 70 | N29: 175 | O29: 1 530
D30: Asien | E30: 215 705 | F30: 915 | G30: 137 645 | H30: 31 090 | I30: 810 | J30: 810 | K30: 0 | L30: 9 225 | M30: 5 680 | N30: 17 725 | O30: 11 750
D31: Afganistan | E31: 20 695 | F31: 45 | G31: 10 265 | H31: 1 025 | I31: 15 | J31: 15 | K31: 0 | L31: 605 | M31: 860 | N31: 6 785 | O31: 1 085
D32: Irak | E32: 39 155 | F32: 25 | G32: 26 280 | H32: 4 020 | I32: 25 | J32: 25 | K32: 0 | L32: 1 520 | M32: 1 240 | N32: 4 090 | O32: 1 850
D33: Iran, Islamische Rep. | E33: 10 145 | F33: 95 | G33: 4 965 | H33: 1 640 | I33: 20 | J33: 20 | K33: 0 | L33: 345 | M33: 275 | N33: 1 970 | O33: 655
D34: China | E34: 10 165 | F34: 35 | G34: 6 270 | H34: 1 985 | I34: 50 | J34: 50 | K34: 0 | L34: 705 | M34: 25 | N34: 10 | O34: 920
D35: Syrien, Arabische Republik | E35: 79 930 | F35: 5 | G35: 66 985 | H35: 2 785 | I35: 35 | J35: 35 | K35: 0 | L35: 3 230 | M35: 510 | N35: 2 360 | O35: 3 840
D36: Vietnam | E36: 8 655 | F36: 60 | G36: 3 225 | H36: 4 525 | I36: 40 | J36: 40 | K36: 0 | L36: 335 | M36: 70 | N36: 10 | O36: 315
D37: Australien und Ozeanien | E37: 1 015 | F37: 35 | G37: 525 | H37: 310 | I37: 30 | J37: 30 | K37: 0 | L37: 45 | M37: 0 | N37: 0 | O37: 75
D38: Sonstige Ausprägungen5) | E38: 11 885 | F38: 80 | G38: 6 675 | H38: 1 735 | I38: 80 | J38: 80 | K38: 0 | L38: 875 | M38: 945 | N38: 750 | O38: 715
D39: Insgesamt | E39: 813 080 | F39: 20 280 | G39: 214 265 | H39: 162 125 | I39: 320 565 | J39: 56 420 | K39: 264 145 | L39: 22 490 | M39: 17 700 | N39: 27 825 | O39: 26 610
D41: 1) Aufgeführt sind die 20 häufigsten Staatsangehörigkeiten der Ausländerinnen und Ausländer in Niedersachsen.
D42: 2) Seit dem 29. Januar 2013 benötigen Bürgerinnen und Bürger der EU keine Freizügigkeitsbescheinigung mehr zur amtlichen Bescheinigung ihres Aufenthaltsrechts in Deutschland. Für den Großteil der Unionsbürger und Unionsbürgerinnen ist daher für 2016 kein Aufenthaltsstatus erfasst. Dieser Personenkreis verfügte dennoch über ein Aufenthaltsrecht in Deutschland.
D43: 3) einschließlich Montenegro und Kosovo
D44: 4) bis 2013 einschl. britisch abhängiger Gebiete
D45: 5) "Staatenlos" sowie "Ungeklärt und ohne Angabe", ab 2014 einschl. britischer Überseegebiete
D47: Quelle: Ausländerzentralregister
D49: Abbildung A8-1: Ausländerinnen und Ausländer am 31.12.2018 nach Aufenthaltsstatus in Prozent
E52: Aufenthaltsstatus nach altem Recht (Ausländergesetz 1990) | F52: Aufenthaltserlaubnis nach AufenthaltG 2004 | G52: Niederlassungserlaubnis (inkl. Daueraufenthalt EG) | H52: Aufenthaltsrecht EU | I52: Antrag auf Aufenthaltstitel (AT) gestellt, von Erfordernis auf AT befreit, heimatlose Ausländer | J52: Duldung | K52: Aufenthaltsgestattung | L52: Keinen Aufenthaltstitel
D53: =E39 -> 813 080 | E53: 22 565 | F53: 153 750 | G53: 160 660 | H53: 285 530 | I53: 17 930 | J53: 15 475 | K53: 51 890 | L53: 37 385
E54: =E53/$D$53*100 -> 2.8 | F54: =F53/$D$53*100 -> 18.9 | G54: 19.8 | H54: 35.1 | I54: 2.2 | J54: 1.9 | K54: 6.4 | L54: 4.6
D91: Link zur LSN-Online-Datenbank
D92: Link zum Regionalmonitoring Niedersachsen

Sheet A9
D1: =Kopf -> Migration und Teilhabe in Niedersachsen - Integrationsmonitoring 2019 - aktuelle Ergebnisse
D4: Indikator A9: Ausländerinnen und Ausländer nach Aufenthaltsstatus
D5: Tabelle A9-1: Ausländerinnen und Ausländer am 31.12.2018 nach Aufenthaltsstatus
D7: Statistische Regione Land | E7: Ausländer- innen und Ausländer insgesamt | F7: davon nach Aufenthaltsstatus
F8: Aufenthalts- status nach altem Recht (Ausländer- gesetz 1990) | G8: Aufenthalts- erlaubnis nach AufenthaltG 2004 | H8: Nieder-lassungs- erlaubnis (inkl. Dauer-aufenthalt-EG) | I8: Aufenthaltsrecht EU1) | L8: Antrag auf Aufenthalts-titel (AT) gestellt, von Erfordernis auf AT befreit, heimatlose Ausländer | M8: Duldung | N8: Aufenthalts- gestattung | O8: Keinen Aufenthalts-titel
J9: dav. Aufenthalts- erlaubnis EU | K9: dav. EU-Bürgerinnen und Bürger ohne erfassten Aufenthalts-status
E10: Anzahl
D11: 1 | E11: 2 | F11: 3 | G11: 4 | H11: 5 | I11: 6 | J11: 7 | K11: 8 | L11: 9 | M11: 10 | N11: 11 | O11: 12
D12: Stat. Region Braunschweig | E12: 158 180 | F12: 3 915 | G12: 48 285 | H12: 34 340 | I12: 50 110 | J12: 11 465 | K12: 38 645 | L12: 4 505 | M12: 3 800 | N12: 5 950 | O12: 7 015
D13: Stat. Region Hannover | E13: 268 505 | F13: 8 145 | G13: 70 980 | H13: 68 055 | I13: 89 510 | J13: 19 690 | K13: 69 825 | L13: 9 070 | M13: 5 335 | N13: 8 230 | O13: 8 465
D14: Stat. Region Lüneburg | E14: 126 195 | F14: 3 215 | G14: 35 550 | H14: 21 915 | I14: 49 060 | J14: 8 110 | K14: 40 950 | L14: 3 435 | M14: 3 640 | N14: 5 615 | O14: 3 695
D15: Stat. Region Weser-Ems | E15: 260 205 | F15: 5 005 | G15: 59 445 | H15: 37 815 | I15: 131 880 | J15: 17 160 | K15: 114 720 | L15: 5 480 | M15: 4 925 | N15: 8 025 | O15: 7 440
D16: Niedersachsen | E16: 813 080 | F16: 20 280 | G16: 214 265 | H16: 162 125 | I16: 320 565 | J16: 56 420 | K16: 264 145 | L16: 22 490 | M16: 17 700 | N16: 27 825 | O16: 26 610
D18: 1) Seit dem 29. Januar 2013 benötigen Bürgerinnen und Bürger der EU keine Freizügigkeitsbescheinigung mehr zur amtlichen Bescheinigung ihres Aufenthaltsrechts in Deutschland. Für den Großteil der Unionsbürgerinnen und Unionsbürger ist daher für 2018 kein Aufenthaltsstatus erfasst. Dieser Personenkreis verfügte dennoch über ein Aufenthaltsrecht in Deutschland.
D20: Quelle: Ausländerzentralregister
D23: Abbildung A9-1: Ausländerinnen und Ausländer am 31.12.2019 nach Aufenthaltsstatus in Prozent
E35: Ausländerinnen und Ausländer insgesamt | F35: Aufenthaltsstatus nach altem Recht (Ausländergesetz 1990) | G35: Aufenthalts- erlaubnis nach AufenthaltG 2004 | H35: Niederlassungs- erlaubnis (inkl. Daueraufenthalt-EG) | I35: Aufenthalsrecht EU | J35: Antrag auf Aufenthaltstitel (AT) gestellt, von Erfordernis auf AT befreit, heimatlose Ausländer | K35: Duldung | L35: Aufenthalts- gestattung | M35: Keinen Aufenthaltstitel
D36: Stat. Region Braunschweig | E36: =E12 -> 158 180 | F36: 3 915 | G36: 48 285 | H36: 34 340 | I36: 50 110 | J36: =L12 -> 4 505 | K36: 3 800 | L36: 5 950 | M36: 7 015
D37: Stat. Region Hannover | E37: 268 505 | F37: 8 145 | G37: 70 980 | H37: 68 055 | I37: 89 510 | J37: 9 070 | K37: 5 335 | L37: 8 230 | M37: 8 465
D38: Stat. Region Lüneburg | E38: 126 195 | F38: 3 215 | G38: 35 550 | H38: 21 915 | I38: 49 060 | J38: 3 435 | K38: 3 640 | L38: 5 615 | M38: 3 695
D39: Stat. Region Weser-Ems | E39: 260 205 | F39: 5 005 | G39: 59 445 | H39: 37 815 | I39: 131 880 | J39: 5 480 | K39: 4 925 | L39: 8 025 | M39: 7 440
D40: Niedersachsen | E40: 813 080 | F40: 20 280 | G40: 214 265 | H40: 162 125 | I40: 320 565 | J40: 22 490 | K40: 17 700 | L40: 27 825 | M40: 26 610
E41: Aufenthaltsstatus nach altem Recht (Ausländer- gesetz 1990) | F41: Aufenthaltserlaubnis nach AufenthaltG 2004 | G41: Niederlassungserlaubnis (inkl. Dauer-aufenthalt-EG) | H41: Aufenthalsrecht EU | I41: Antrag auf Aufenthaltstitel (AT) gestellt, von Erfordernis auf AT befreit, heimatlose Ausländer | J41: Duldung | K41: Aufenthaltsgestattung | L41: Keinen Aufenthaltstitel
D42: Stat. Region Braunschweig | E42: =F36/E36*100 -> 2.5 | F42: =G36/$E$36*100 -> 30.5 | G42: 21.7 | H42: 31.7 | I42: 2.8 | J42: 2.4 | K42: 3.8 | L42: 4.4
D43: Stat. Region Hannover | E43: =F37/$E$37*100 -> 3.0 | F43: 26.4 | G43: 25.3 | H43: 33.3 | I43: 3.4 | J43: 2.0 | K43: 3.1 | L43: 3.2
D44: Stat. Region Lüneburg | E44: =F38/$E$38*100 -> 2.5 | F44: 28.2 | G44: 17.4 | H44: 38.9 | I44: 2.7 | J44: 2.9 | K44: 4.4 | L44: 2.9
D45: Stat. Region Weser-Ems | E45: =F39/$E$39*100 -> 1.9 | F45: 22.8 | G45: 14.5 | H45: 50.7 | I45: 2.1 | J45: 1.9 | K45: 3.1 | L45: 2.9
D46: Niedersachsen | E46: =F40/$E$40*100 -> 2.5 | F46: 26.4 | G46: 19.9 | H46: 39.4 | I46: 2.8 | J46: 2.2 | K46: 3.4 | L46: 3.3
D72: Link zur LSN-Online-Datenbank
D73: Link zum Regionalmonitoring Niedersachsen

Sheet A10
B1: =Kopf -> Migration und Teilhabe in Niedersachsen - Integrationsmonitoring 2019 - aktuelle Ergebnisse
B5: Indikator A10: Menschen mit Zuwanderungsgeschichte
B6: Tabelle A10-1: Menschen mit und ohne Zuwanderungsgeschichte 20181)
B8: Statistische Region Land | C8: Jahr | D8: Bevölkerung insgesamt | E8: Personen ohne Migrationshintergrund2) | F8: Personen mit Migrationshintergrund2) | G8: Anteil der Personen ohne Migrationshintergrund2) | H8: Anteil der Personen mit Migrationshintergrund2) im weiteren Sinne | I8: Anteil der Personen mit Migrationshintergrund2) im engeren Sinne
D9: 1 000 | G9: Prozent
B10: 1 | C10: 2 | D10: 3 | E10: 4 | F10: 5 | G10: 6
B11: Stat. Region Braunschweig | C11: 2018 | D11: 1 561.0 | E11: 1 215.8 | F11: 345.2 | G11: 77.9 | H11: 22.1 | I11: 20.7
B12: Stat. Region Hannover | C12: 2018 | D12: 2 100.6 | E12: 1 555.1 | F12: 545.5 | G12: 74.0 | H12: 26.0 | I12: 24.7
B13: Stat. Region Lüneburg | C13: 2018 | D13: 1 671.4 | E13: 1 376.8 | F13: 294.7 | G13: 82.4 | H13: 17.6 | I13: 16.5
B14: Stat. Region Weser-Ems | C14: 2018 | D14: 2 490.5 | E14: 1 949.8 | F14: 540.7 | G14: 78.3 | H14: 21.7 | I14: 20.8
B15: Niedersachsen | C15: 2018 | D15: 7 823.5 | E15: 6 097.4 | F15: 1726.1 | G15: 77.9 | H15: 22.1 | I15: 20.9
B17: 1) Hochrechnung anhand der Bevölkerungsfortschreibung auf Basis des Zensus 2011. Die Hochrechnung für die Jahre vor 2011 sowie für bislang veröffentlichte Ergebnisse des Mikrozensus 2011-2013 basiert auf den fortgeschriebenen Ergebnissen der Volkszählung 1987. In 2016 erfolgte die Umstellung auf eine neue Mikrozensus-Stichprobe. Ab 2017 wird nur noch die Bevölkerung in Privathaushalten (ohne Gemeinschaftsunterkünfte) ausgewiesen. Dadurch ergibt sich jeweils eine eingeschränkte Vergleichbarkeit mit den Vorjahren.
B20: 2) Seit dem Jahr 2018 wird im Mikrozensus der Migrationshintergrund im weiteren Sinne jährlich berichtet. Durch eine rückwirkende Revision der Mikrozensusdaten wird auch für das Jahr 2017 der Migrationshintergrund im weiteren Sinne dargestellt. Die in den Tabellen ab dem Jahr 2017 berichteten Daten zum Migrationshintergrund entsprechen dem Migrationshintergrund im weiteren Sinne, bis 2016 wird der Migrationshintergrund im engeren Sinne abgebildet. Die Vergleichbarkeit zwischen den Jahren sowie für das Berichtsjahr 2017 zwischen den Berichten des Integrationsmonitoring Niedersachsen 2018 und 2019 ist dadurch eingeschränkt.
B22: Quelle: Mikrozensus
B24: Abbildung A10-1: Anteil der Menschen mit Zuwanderungsgeschichte im Jahr 2018 Prozent
B75: Link zur LSN-Online-Datenbank
B76: Link zum Regionalmonitoring Niedersachsen

Sheet A11
B1: =Kopf -> Migration und Teilhabe in Niedersachsen - Integrationsmonitoring 2019 - aktuelle Ergebnisse
B5: Indikator A11: Menschen mit Zuwanderungsgeschichte in den regionalen Anpassungsschichten
B6: Tabelle A11-1: Menschen mit und ohne Zuwanderungsgeschichte in den regionalen Anpassungsschichten nach ausgewählten Bevölkerungsgruppen im Jahr 20181)
B8: Anpassungsschicht Region Hannover Statistische Region Land | C8: Menschen mit Migrationshintergrund 2)
C9: Insgesamt | E9: mit eigener Migrationserfahrung | G9: ohne eigener Migrationserfahrung | I9: Ausländerinnen und Ausländer | J9: (Spät-)Aussied- lerinnen und (Spät-)Aussiedler | K9: weitere Deutsche mit Migrations- hintergrund
C10: 1 000 | D10: % | E10: 1 000 | F10: Prozent | G10: 1 000 | H10: Prozent | I10: 1 000
B11: 1 | C11: 13 | D11: 12 | E11: 2 | F11: 3 | G11: 4 | H11: 5 | I11: 6 | J11: 7 | K11: 8
B12: Ostniedersachsen | C12: 241.0 | D12: 24.7 | E12: 158.0 | F12: 65.6 | G12: 82.9 | H12: 34.4 | I12: 103.1 | J12: 44.4 | K12: 93.5
B13: Südniedersachsen | C13: 104.3 | D13: 17.9 | E13: 70.5 | F13: 67.6 | G13: 33.8 | H13: 32.4 | I13: 42.4 | J13: 19.4 | K13: 42.4
B14: Stat. Region Braunschweig | C14: 345.2 | D14: 22.1 | E14: 228.5 | F14: 66.2 | G14: 116.7 | H14: 33.8 | I14: 145.5 | J14: 63.8 | K14: 135.9
B15: Region Hannover | C15: 347.5 | D15: 30.7 | E15: 224.9 | F15: 64.7 | G15: 122.6 | H15: 35.3 | I15: 159.7 | J15: 39.9 | K15: 147.9
B16: dav. Hannover, Landeshauptstadt | C16: 201.7 | D16: 38.2 | E16: 131.5 | F16: 65.2 | G16: 70.2 | H16: 34.8 | I16: 91.8 | J16: 20.7 | K16: 89.2
B17: dav. Hannover, Umland | C17: 145.8 | D17: 24.1 | E17: 93.3 | F17: 64.0 | G17: 52.4 | H17: 36.0 | I17: 67.9 | J17: 19.2 | K17: 58.7
B18: Weser-Leine-Bergland | C18: 109.7 | D18: 22.6 | E18: 75.9 | F18: 69.2 | G18: 33.8 | H18: 30.8 | I18: 43.5 | J18: 22.7 | K18: 43.5
B19: Mittelniedersachsen | C19: 88.4 | D19: 18.3 | E19: 56.8 | F19: 64.3 | G19: 31.5 | H19: 35.7 | I19: 39.0 | J19: 14.1 | K19: 35.3
B20: Stat. Region Hannover | C20: 545.5 | D20: 26.0 | E20: 357.6 | F20: 65.6 | G20: 187.9 | H20: 34.4 | I20: 242.2 | J20: 76.7 | K20: 226.7
B21: Nordniedersachsen | C21: 162.1 | D21: 17.7 | E21: 102.5 | F21: 63.2 | G21: 59.6 | H21: 36.8 | I21: 65.0 | J21: 19.6 | K21: 77.5
B22: Nordostniedersachsen | C22: 132.6 | D22: 17.5 | E22: 87.1 | F22: 65.7 | G22: 45.4 | H22: 34.3 | I22: 56.9 | J22: 18.3 | K22: 57.3
B23: Stat. Region Lüneburg | C23: 294.7 | D23: 17.6 | E23: 189.6 | F23: 64.3 | G23: 105.1 | H23: 35.7 | I23: 121.9 | J23: 37.9 | K23: 134.9
B24: Ostfriesland-Nordseeküste | C24: 113.9 | D24: 15.8 | E24: 76.1 | F24: 66.8 | G24: 37.8 | H24: 33.2 | I24: 54.6 | J24: 15.3 | K24: 44.0
B25: Oldenburger Raum | C25: 140.7 | D25: 21.2 | E25: 93.0 | F25: 66.1 | G25: 47.7 | H25: 33.9 | I25: 52.0 | J25: 30.5 | K25: 58.3
B26: Westniedersachsen | C26: 286.1 | D26: 25.9 | E26: 201.0 | F26: 70.3 | G26: 85.1 | H26: 29.7 | I26: 134.0 | J26: 59.0 | K26: 93.1
B27: Stat. Region Weser-Ems | C27: 540.7 | D27: 21.7 | E27: 370.1 | F27: 68.5 | G27: 170.5 | H27: 31.5 | I27: 240.6 | J27: 104.7 | K27: 195.4
B28: Niedersachsen | C28: 1726.1 | D28: 22.1 | E28: 1145.8 | F28: 66.4 | G28: 580.3 | H28: 33.6 | I28: 750.2 | J28: 283.1 | K28: 692.8
B30: 1) Hochrechnung anhand der Bevölkerungsfortschreibung auf Basis des Zensus 2011. Die Hochrechnung für die Jahre vor 2011 sowie für bislang veröffentlichte Ergebnisse des Mikrozensus 2011-2013 basiert auf den fortgeschriebenen Ergebnissen der Volkszählung 1987. In 2016 erfolgte die Umstellung auf eine neue Mikrozensus-Stichprobe. Ab 2017 wird nur noch die Bevölkerung in Privathaushalten (ohne Gemeinschaftsunterkünfte) ausgewiesen. Dadurch ergibt sich jeweils eine eingeschränkte Vergleichbarkeit mit den Vorjahren.
B31: 2) Seit dem Jahr 2018 wird im Mikrozensus der Migrationshintergrund im weiteren Sinne jährlich berichtet. Durch eine rückwirkende Revision der Mikrozensusdaten wird auch für das Jahr 2017 der Migrationshintergrund im weiteren Sinne dargestellt. Die in den Tabellen ab dem Jahr 2017 berichteten Daten zum Migrationshintergrund entsprechen dem Migrationshintergrund im weiteren Sinne, bis 2016 wird der Migrationshintergrund im engeren Sinne abgebildet. Die Vergleichbarkeit zwischen den Jahren sowie für das Berichtsjahr 2017 zwischen den Berichten des Integrationsmonitoring Niedersachsen 2018 und 2019 ist dadurch eingeschränkt.
B33: Quelle: Mikrozensus
B35: Abbildung A11-1: Anteil der Menschen mit Zuwanderungsgeschichte im Jahr 2018 Prozent
G38: Ausländerinnen und Ausländer | H38: (Spät-)Aussiedlerinnen und (Spät-)Aussiedler | I38: weitere Deutsche mit Migrations hintergrund
F39: Ostniedersachsen | G39: =I12/C12*100 -> 42.8 | H39: =J12/C12*100 -> 18.4 | I39: =K12/C12*100 -> 38.8
F40: Südniedersachsen | G40: =I13/C13*100 -> 40.7 | H40: =J13/C13*100 -> 18.6 | I40: =K13/C13*100 -> 40.7
F41: Stat. Region Braunschweig | G41: 42.1 | H41: 18.5 | I41: 39.4
F42: Region Hannover | G42: 46.0 | H42: 11.5 | I42: 42.6
F43: dav. Hannover, Landeshauptstadt | G43: 45.5 | H43: 10.2 | I43: 44.2
F44: dav. Hannover, Umland | G44: 46.6 | H44: 13.2 | I44: 40.2
F45: Weser-Leine-Bergland | G45: 39.6 | H45: 20.7 | I45: 39.7
F46: Mittelniedersachsen | G46: 44.1 | H46: 15.9 | I46: 40.0
F47: Stat. Region Hannover | G47: 44.4 | H47: 14.1 | I47: 41.6
F48: Nordniedersachsen | G48: 40.1 | H48: 12.1 | I48: 47.8
F49: Nordostniedersachsen | G49: 42.9 | H49: 13.8 | I49: 43.2
F50: Stat. Region Lüneburg | G50: 41.4 | H50: 12.9 | I50: 45.8
F51: Ostfriesland-Nordseeküste | G51: 47.9 | H51: 13.4 | I51: 38.7
F52: Oldenburger Raum | G52: 37.0 | H52: 21.6 | I52: 41.4
F53: Westniedersachsen | G53: 46.9 | H53: 20.6 | I53: 32.5
F54: Stat. Region Weser-Ems | G54: 44.5 | H54: 19.4 | I54: 36.1
F55: Niedersachsen | G55: 43.5 | H55: 16.4 | I55: 40.1
F56: alle anzeigen
B91: Link zur LSN-Online-Datenbank
B92: Link zum Regionalmonitoring Niedersachsen

Sheet A12
B1: =Kopf -> Migration und Teilhabe in Niedersachsen - Integrationsmonitoring 2019 - aktuelle Ergebnisse
B3: Indikator A12: Menschen mit Zuwanderungsgeschichte nach Altersgruppen und Geschlecht
B4: Tabelle A12-1: Menschen mit Zuwanderungsgeschichte im Jahr 2018 nach Altersgruppen und Geschlecht1)
B6: Altersgruppe von … bis unter … Jahre | C6: Menschen mit Migrationshintergrund2)
C7: Männlich | D7: Weiblich | E7: Insgesamt | F7: Anteil an der betreffenden Altersgruppe der Gesamtbevölkerung
C8: 1 000 | F8: Männlich | G8: Weiblich | H8: Insgesamt
F9: Prozent
B10: 1 | C10: 2 | D10: 3 | E10: 4 | F10: 5 | G10: 6 | H10: 7
B11: 0 – 3 | C11: 39.1 | D11: 37.9 | E11: 76.9 | F11: 36.7 | G11: 37.6 | H11: 37.1
B12: 3 – 6 | C12: 36.0 | D12: 38.6 | E12: 74.7 | F12: 36.7 | G12: 37.6 | H12: 37.2
B13: 6 – 15 | C13: 116.4 | D13: 103.2 | E13: 219.6 | F13: 35.1 | G13: 33.9 | H13: 34.5
B14: 15 – 20 | C14: 59.6 | D14: 56.3 | E14: 115.9 | F14: 28.5 | G14: 28.7 | H14: 28.6
B15: 20 – 40 | C15: 299.2 | D15: 252.7 | E15: 551.9 | F15: 30.7 | G15: 28.2 | H15: 29.5
B16: 40 – 65 | C16: 265.3 | D16: 259.9 | E16: 525.2 | F16: 18.8 | G16: 18.3 | H16: 18.5
B17: 65 – 80 | C17: 64.2 | D17: 66.4 | E17: 130.6 | F17: 11.0 | G17: 10.3 | H17: 10.6
B18: 80 und älter | C18: 10.6 | D18: 20.7 | E18: 31.3 | F18: 6.2 | G18: 7.7 | H18: 7.1
B19: Insgesamt | C19: 890.4 | D19: 835.7 | E19: 1 726.1 | F19: 22.9 | G19: 21.2 | H19: 22.1
B21: 1) Hochrechnung anhand der Bevölkerungsfortschreibung auf Basis des Zensus 2011. Die Hochrechnung für die Jahre vor 2011 sowie für bislang veröffentlichte Ergebnisse des Mikrozensus 2011-2013 basiert auf den fortgeschriebenen Ergebnissen der Volkszählung 1987. In 2016 erfolgte die Umstellung auf eine neue Mikrozensus-Stichprobe. Ab 2017 wird nur noch die Bevölkerung in Privathaushalten (ohne Gemeinschaftsunterkünfte) ausgewiesen. Dadurch ergibt sich jeweils eine eingeschränkte Vergleichbarkeit mit den Vorjahren.
B22: 2) Seit dem Jahr 2018 wird im Mikrozensus der Migrationshintergrund im weiteren Sinne jährlich berichtet. Durch eine rückwirkende Revision der Mikrozensusdaten wird auch für das Jahr 2017 der Migrationshintergrund im weiteren Sinne dargestellt. Die in den Tabellen ab dem Jahr 2017 berichteten Daten zum Migrationshintergrund entsprechen dem Migrationshintergrund im weiteren Sinne, bis 2016 wird der Migrationshintergrund im engeren Sinne abgebildet. Die Vergleichbarkeit zwischen den Jahren sowie für das Berichtsjahr 2017 zwischen den Berichten des Integrationsmonitoring Niedersachsen 2018 und 2019 ist dadurch eingeschränkt.
B24: Quelle: Mikrozensus
B26: Abbildung A12-1: Anteil der Menschen mit Zuwanderungsgeschichte im Jahr 2017 nach Altersgruppen und Geschlecht an der jeweiligen Bevölkerungsgruppe in Prozent
B81: Link zur LSN-Online-Datenbank
B82: Link zum Regionalmonitoring Niedersachsen

Sheet A13
B1: =Kopf -> Migration und Teilhabe in Niedersachsen - Integrationsmonitoring 2019 - aktuelle Ergebnisse
B3: Indikator A13: Menschen mit Zuwanderungsgeschichte nach Herkunftsland und Geschlecht
B4: Tabelle A13-1: Menschen mit Zuwanderungsgeschichte 2018 nach Herkunftsland und Geschlecht1)
B6: Herkunftsland2) | C6: Menschen mit Migrationshintergrund3)
C7: Insgesamt | D7: dav. Männer | E7: dav. Frauen
C8: 1 000
B9: 1 | C9: 2 | D9: 3 | E9: 4
B10: Europa | C10: 1 062 | D10: 537 | E10: 526
B11: Bulgarien | C11: 20 | D11: 11 | E11: 9
B12: Griechenland | C12: 23 | D12: 12 | E12: 11
B13: Italien | C13: 39 | D13: 23 | E13: 16
B14: Niederlande | C14: 48 | D14: 29 | E14: 20
B15: Polen | C15: 255 | D15: 125 | E15: 130
B16: Rumänien | C16: 41 | D16: 22 | E16: 19
B17: Spanien | C17: 18 | D17: 9 | E17: 8
B18: Vereinigtes Königreich | C18: 17 | D18: 11 | E18: 7
B19: Kosovo | C19: 41 | D19: 22 | E19: 19
B20: Russische Föderation | C20: 178 | D20: 85 | E20: 94
B21: Serbien | C21: 19 | D21: 10 | E21: 9
B22: Türkei | C22: 182 | D22: 92 | E22: 89
B23: Ukraine | C23: 29 | D23: 12 | E23: 17
B24: EU-Staaten | C24: 560 | D24: 291 | E24: 268
B25: Afrika | C25: 49 | D25: 33 | E25: 16
B26: Ägypten, Algerien, Libyen, Tunesien | C26: 14 | D26: 9 | E26: /
B27: Amerika | C27: 35 | D27: 15 | E27: 20
B28: Asien, Australien und Ozeanien | C28: 471 | D28: 249 | E28: 223
B29: Irak | C29: 31 | D29: 20 | E29: 11
B30: Iran | C30: 20 | D30: 12 | E30: 8
B31: Kasachstan | C31: 163 | D31: 81 | E31: 83
B32: Syrien | C32: 99 | D32: 58 | E32: 40
B33: Afghanistan | C33: 21 | D33: 12 | E33: 9
B34: Vietnam | C34: 22 | D34: 11 | E34: 12
B35: Ohne Angabe | C35: 39 | D35: 21 | E35: 18
B36: Insgesamt | C36: 1 726 | D36: 890 | E36: 836
B39: 1) Hochrechnung anhand der Bevölkerungsfortschreibung auf Basis des Zensus 2011. Die Hochrechnung für die Jahre vor 2011 sowie für bislang veröffentlichte Ergebnisse des Mikrozensus 2011-2013 basiert auf den fortgeschriebenen Ergebnissen der Volkszählung 1987. In 2016 erfolgte die Umstellung auf eine neue Mikrozensus-Stichprobe. Ab 2017 wird nur noch die Bevölkerung in Privathaushalten (ohne Gemeinschaftsunterkünfte) ausgewiesen. Dadurch ergibt sich jeweils eine eingeschränkte Vergleichbarkeit mit den Vorjahren.
B40: 2) Aufgeführt sind die 20 häufigsten Herkunftsländer der Frauen und Männer mit Migrationshintergrund im Jahr 2018 in Niedersachsen.
B41: 3) Seit dem Jahr 2018 wird im Mikrozensus der Migrationshintergrund im weiteren Sinne jährlich berichtet. Durch eine rückwirkende Revision der Mikrozensusdaten wird auch für das Jahr 2017 der Migrationshintergrund im weiteren Sinne dargestellt. Die in den Tabellen ab dem Jahr 2017 berichteten Daten zum Migrationshintergrund entsprechen dem Migrationshintergrund im weiteren Sinne, bis 2016 wird der Migrationshintergrund im engeren Sinne abgebildet. Die Vergleichbarkeit zwischen den Jahren sowie für das Berichtsjahr 2017 zwischen den Berichten des Integrationsmonitoring Niedersachsen 2018 und 2019 ist dadurch eingeschränkt.
B43: Quelle: Mikrozensus
B45: Abbildung A13-1: Menschen mit Zuwanderungsgeschichte 2018 nach Herkunftsland und Geschlecht (in 1 000 Personen)
B101: =#REF! -> 
B102: =#REF! -> 
B103: =#REF! -> 
B104: =#REF! -> 
B105: =#REF! -> 
B127: Link zur LSN-Online-Datenbank

Sheet A14
B1: =Kopf -> Migration und Teilhabe in Niedersachsen - Integrationsmonitoring 2019 - aktuelle Ergebnisse
B5: Indikator A14: Bei Bundes- und Landtagswahlen wahlberechtigte Bevölkerung mit Zuwanderungsgeschichte
B6: Tabelle A14-1: Bei Bundes- und Landtagswahlen wahlberechtigte Bevölkerung mit Zuwanderungsgeschichte nach Altersgruppen und Geschlecht im Jahr 20181)
B8: Altersgruppe von … bis unter … Jahre | C8: Wahlberechtigte Bevölkerung mit Migrationshintergrund2) | F8: Anteil an allen Wahlberechtigen der betreffenden Altersgruppe
C9: Männlich | D9: Weiblich | E9: Insgesamt | F9: Männlich | G9: Weiblich | H9: Insgesamt
C10: 1 000 | F10: Prozent
B11: 1 | C11: 2 | D11: 3 | E11: 4 | F11: 5 | G11: 6 | H11: 7
B12: 18 – 25 | C12: 47.08076 | D12: 42.17416 | E12: 89.25492 | F12: 16.8 | G12: 16.3 | H12: 16.6
B13: 25 – 45 | C13: 137.56186 | D13: 133.2397 | E13: 270.80156 | F13: 17.2 | G13: 17.1 | H13: 17.2
B14: 45 – 65 | C14: 103.33179 | D14: 114.24866 | E14: 217.58045 | F14: 9.4 | G14: 10.3 | H14: 9.8
B15: 65 und älter | C15: 40.9163 | D15: 52.7576 | E15: 93.6739 | F15: 5.7 | G15: 6.0 | H15: 5.8
B16: Insgesamt | C16: 328.89071 | D16: 342.42012 | E16: 671.31083 | F16: 11.4 | G16: 11.3 | H16: 11.3
B18: 1) Hochrechnung anhand der Bevölkerungsfortschreibung auf Basis des Zensus 2011. Die Hochrechnung für die Jahre vor 2011 sowie für bislang veröffentlichte Ergebnisse des Mikrozensus 2011-2013 basiert auf den fortgeschriebenen Ergebnissen der Volkszählung 1987. In 2016 erfolgte die Umstellung auf eine neue Mikrozensus-Stichprobe. Ab 2017 wird nur noch die Bevölkerung in Privathaushalten (ohne Gemeinschaftsunterkünfte) ausgewiesen. Dadurch ergibt sich jeweils eine eingeschränkte Vergleichbarkeit mit den Vorjahren.
B19: 2)Seit dem Jahr 2018 wird im Mikrozensus der Migrationshintergrund im weiteren Sinne jährlich berichtet. Durch eine rückwirkende Revision der Mikrozensusdaten wird auch für das Jahr 2017 der Migrationshintergrund im weiteren Sinne dargestellt. Die in den Tabellen ab dem Jahr 2017 berichteten Daten zum Migrationshintergrund entsprechen dem Migrationshintergrund im weiteren Sinne, bis 2016 wird der Migrationshintergrund im engeren Sinne abgebildet. Die Vergleichbarkeit zwischen den Jahren sowie für das Berichtsjahr 2017 zwischen den Berichten des Integrationsmonitoring Niedersachsen 2018 und 2019 ist dadurch eingeschränkt.
B21: Quelle: Mikrozensus
B23: Abbildung A14-1: Bei Bundes- und Landtagswahlen wahlberechtigte Bevölkerung mit Zuwanderungsgeschichte nach Altersgruppen und Geschlecht als Anteil an allen Wahlberechtigen der betreffenden Altersgruppe im Jahr 2018
B66: Link zur LSN-Online-Datenbank
B67: Link zum Regionalmonitoring Niedersachsen

Sheet A15
B1: =Kopf -> Migration und Teilhabe in Niedersachsen - Integrationsmonitoring 2019 - aktuelle Ergebnisse
B5: Indikator A15: Einbürgerungen in Niedersachsen
B6: Tabelle A15-1: Einbürgerungen in Niedersachsen nach Statistischen Regionen
B8: Land Statistische Region | C8: Einbürgerungen
C9: 2005 | D9: 2006 | E9: 2007 | F9: 2008 | G9: 2009 | H9: 2010 | I9: 2011 | J9: 2012 | K9: 2013 | L9: 2014 | M9: 2015 | N9: 2016 | O9: 2017 | P9: 2018 | Q9: Veränderung aktuelles Jahr (2018) zu 2005 | R9: Veränderung aktuelles Jahr (2018) zu 2010 | S9: Veränderung aktuelles Jahr (2018) zu 2016
C10: Anzahl
B11: 1 | C11: 2 | D11: 3 | E11: 4 | F11: 5 | G11: 6 | H11: 7 | I11: 8 | J11: 9 | K11: 10 | L11: 11 | M11: 12 | N11: 13 | O11: 14 | P11: 15 | Q11: 16 | R11: 17 | S11: 18
B12: Stat. Region Braunschweig | C12: 2 101 | D12: 2 404 | E12: 1 997 | F12: 1 424 | G12: 1 241 | H12: 1 351 | I12: 1 501 | J12: 1 788 | K12: 1 719 | L12: 1 520 | M12: 1 695 | N12: 1 867 | O12: 1 841 | P12: 1 781 | Q12: - 320 | R12: + 430 | S12: - 60
B13: Stat. Region Hannover | C13: 4 421 | D13: 4 410 | E13: 3 513 | F13: 3 077 | G13: 2 794 | H13: 2 639 | I13: 3 002 | J13: 3 265 | K13: 2 943 | L13: 2 832 | M13: 2 825 | N13: 3 005 | O13: 3 146 | P13: 2 990 | Q13: -1 431 | R13: + 351 | S13: - 156
B14: Stat. Region Lüneburg | C14: 1 720 | D14: 1 635 | E14: 1 288 | F14: 1 191 | G14: 1 216 | H14: 1 198 | I14: 1 265 | J14: 1 266 | K14: 1 275 | L14: 1 269 | M14: 1 303 | N14: 1 331 | O14: 1 409 | P14: 1 389 | Q14: - 331 | R14: + 191 | S14: - 20
B15: Stat. Region Weser-Ems | C15: 2 644 | D15: 2 992 | E15: 2 453 | F15: 2 012 | G15: 1 972 | H15: 2 175 | I15: 2 227 | J15: 2 207 | K15: 2 279 | L15: 2 101 | M15: 2 165 | N15: 2 316 | O15: 2 389 | P15: 2 310 | Q15: - 334 | R15: + 135 | S15: - 79
B16: Niedersachsen | C16: 10 886 | D16: 11 441 | E16: 9 251 | F16: 7 704 | G16: 7 223 | H16: 7 363 | I16: 7 995 | J16: 8 526 | K16: 8 216 | L16: 7 722 | M16: 7 988 | N16: 8 519 | O16: 8 785 | P16: 8 470 | Q16: -2 416 | R16: +1 107 | S16: - 315
B18: Quelle: Einbürgerungsstatistik
B20: Abbildung A15-1: Veränderung der Einbürgerungen in Niedersachsen und den Statistischen Regionen
B21: =#REF! -> 
B22: =#REF! -> 
B23: =#REF! -> 
B24: =#REF! -> 
B25: =#REF! -> 
B67: Link zur LSN-Online-Datenbank

Sheet A16
B1: =Kopf -> Migration und Teilhabe in Niedersachsen - Integrationsmonitoring 2019 - aktuelle Ergebnisse
B3: Indikator A16: Einbürgerungen in Niedersachsen nach ausgewählten Staatsangehörigkeiten
B4: Tabelle A16-1: Einbürgerungen in Niedersachsen nach ausgewählten Staatsangehörigkeiten
B6: Land der Staatsangehörigkeit1) | C6: Einbürgerungen
C7: 2005 | D7: 2006 | E7: 2007 | F7: 2008 | G7: 2009 | H7: 2010 | I7: 2011 | J7: 2012 | K7: 2013 | L7: 2014 | M7: 2015 | N7: 2016 | O7: 2017 | P7: 2018
C8: Anzahl
B9: Europa insgesamt | C9: 7 178 | D9: 7 567 | E9: 5 866 | F9: 4 488 | G9: 3 947 | H9: 4 205 | I9: 4 595 | J9: 5 096 | K9: 4 900 | L9: 4 399 | M9: 4 598 | N9: 4 880 | O9: 5 044 | P9: 4 743
B10: Griechenland | C10: 71 | D10: 96 | E10: 109 | F10: 98 | G10: 69 | H10: 72 | I10: 126 | J10: 344 | K10: 231 | L10: 195 | M10: 191 | N10: 222 | O10: 224 | P10: 206
B11: Italien | C11: 71 | D11: 85 | E11: 70 | F11: 88 | G11: 53 | H11: 52 | I11: 77 | J11: 89 | K11: 114 | L11: 128 | M11: 139 | N11: 160 | O11: 226 | P11: 199
B12: Kosovo | C12: x | D12: x | E12: x | F12: x | G12: 34 | H12: 170 | I12: 221 | J12: 181 | K12: 222 | L12: 216 | M12: 242 | N12: 215 | O12: 247 | P12: 217
B13: Niederlande | C13: 61 | D13: 45 | E13: 37 | F13: 59 | G13: 69 | H13: 136 | I13: 89 | J13: 91 | K13: 140 | L13: 139 | M13: 104 | N13: 96 | O13: 90 | P13: 97
B14: Polen | C14: 914 | D14: 864 | E14: 583 | F14: 548 | G14: 434 | H14: 422 | I14: 477 | J14: 518 | K14: 655 | L14: 576 | M14: 559 | N14: 650 | O14: 664 | P14: 598
B15: Rumänien | C15: 72 | D15: 90 | E15: 209 | F15: 124 | G15: 119 | H15: 136 | I15: 132 | J15: 81 | K15: 115 | L15: 113 | M15: 156 | N15: 193 | O15: 241 | P15: 239
B16: Russische Föderation | C16: 496 | D16: 475 | E16: 405 | F16: 188 | G16: 257 | H16: 304 | I16: 283 | J16: 299 | K16: 245 | L16: 251 | M16: 168 | N16: 225 | O16: 157 | P16: 132
B17: Serbien | C17: 1 630 | D17: 1 800 | E17: 1 198 | F17: 540 | G17: 109 | H17: 187 | I17: 258 | J17: 225 | K17: 215 | L17: 174 | M17: 162 | N17: 214 | O17: 142 | P17: 254
B18: Türkei | C18: 2 897 | D18: 2 944 | E18: 2 162 | F18: 2 020 | G18: 2 170 | H18: 1 892 | I18: 2 010 | J18: 2 361 | K18: 1 864 | L18: 1 657 | M18: 1 709 | N18: 1 278 | O18: 1 208 | P18: 1 185
B19: Ukraine | C19: 322 | D19: 492 | E19: 493 | F19: 185 | G19: 143 | H19: 268 | I19: 380 | J19: 325 | K19: 382 | L19: 148 | M19: 328 | N19: 449 | O19: 238 | P19: 180
B20: Vereinigtes Königreich GB, Nordirland | C20: 50 | D20: 41 | E20: 36 | F20: 39 | G20: 24 | H20: 21 | I20: 28 | J20: 20 | K20: 55 | L20: 64 | M20: 63 | N20: 295 | O20: 672 | P20: 582
B21: EU Staaten | C21: 5 974 | D21: 5 738 | E21: 3 373 | F21: 3 121 | G21: 2 999 | H21: 2 855 | I21: 3 022 | J21: 3 645 | K21: 3 328 | L21: 3 105 | M21: 3 087 | N21: 2 858 | O21: 2 881 | P21: 2 711
B22: Afrika insgesamt | C22: 568 | D22: 525 | E22: 521 | F22: 564 | G22: 542 | H22: 489 | I22: 599 | J22: 596 | K22: 589 | L22: 596 | M22: 625 | N22: 647 | O22: 673 | P22: 658
B23: Tunesien | C23: 111 | D23: 81 | E23: 112 | F23: 76 | G23: 73 | H23: 89 | I23: 96 | J23: 110 | K23: 111 | L23: 119 | M23: 112 | N23: 134 | O23: 108 | P23: 119
B24: Amerika insgesamt | C24: 213 | D24: 250 | E24: 266 | F24: 233 | G24: 211 | H24: 225 | I24: 211 | J24: 211 | K24: 228 | L24: 256 | M24: 260 | N24: 270 | O24: 296 | P24: 247
B25: Asien insgesamt | C25: 2 704 | D25: 2 851 | E25: 2 375 | F25: 2 272 | G25: 2 338 | H25: 2 290 | I25: 2 443 | J25: 2 488 | K25: 2 348 | L25: 2 364 | M25: 2 392 | N25: 2 614 | O25: 2 599 | P25: 2 694
B26: Afganistan | C26: 236 | D26: 227 | E26: 230 | F26: 219 | G26: 210 | H26: 161 | I26: 124 | J26: 121 | K26: 129 | L26: 129 | M26: 129 | N26: 150 | O26: 158 | P26: 131
B27: Kasachstan | C27: 269 | D27: 563 | E27: 212 | F27: 181 | G27: 162 | H27: 153 | I27: 177 | J27: 172 | K27: 207 | L27: 178 | M27: 133 | N27: 126 | O27: 119 | P27: 116
B28: Libanon | C28: 395 | D28: 454 | E28: 377 | F28: 367 | G28: 335 | H28: 295 | I28: 240 | J28: 209 | K28: 243 | L28: 254 | M28: 259 | N28: 303 | O28: 238 | P28: 233
B29: Irak | C29: 516 | D29: 251 | E29: 286 | F29: 306 | G29: 361 | H29: 392 | I29: 434 | J29: 273 | K29: 326 | L29: 317 | M29: 313 | N29: 430 | O29: 403 | P29: 389
B30: Iran, Islamische Republik | C30: 348 | D30: 386 | E30: 362 | F30: 303 | G30: 323 | H30: 245 | I30: 255 | J30: 227 | K30: 227 | L30: 262 | M30: 221 | N30: 255 | O30: 260 | P30: 243
B31: Syrien, Arabische Republik | C31: 171 | D31: 183 | E31: 210 | F31: 208 | G31: 225 | H31: 219 | I31: 219 | J31: 208 | K31: 247 | L31: 300 | M31: 398 | N31: 368 | O31: 444 | P31: 664
B32: Vietnam | C32: 137 | D32: 160 | E32: 158 | F32: 110 | G32: 227 | H32: 280 | I32: 419 | J32: 667 | K32: 387 | L32: 277 | M32: 266 | N32: 265 | O32: 259 | P32: 290
B33: Sonstige Ziele | C33: 223 | D33: 248 | E33: 223 | F33: 147 | G33: 185 | H33: 154 | I33: 147 | J33: 135 | K33: 151 | L33: 107 | M33: 113 | N33: 108 | O33: 173 | P33: 128
B34: staatenlos | C34: 150 | D34: 171 | E34: 136 | F34: 99 | G34: 125 | H34: 125 | I34: 99 | J34: 117 | K34: 113 | L34: 83 | M34: 80 | N34: 70 | O34: 138 | P34: 104
B35: Insgesamt | C35: 10 886 | D35: 11 441 | E35: 9 251 | F35: 7 704 | G35: 7 223 | H35: 7 363 | I35: 7 995 | J35: 8 526 | K35: 8 216 | L35: 7 722 | M35: 7 988 | N35: 8 519 | O35: 8 785 | P35: 8 470
B37: 1) Aufgeführt sind die 20 häufigsten Staatsangehörigkeiten der Ausländerinnen und Ausländer im Jahr 2018 in Niedersachsen. Serbien einschließlich Montenegro und Kosovo; "Staatenlos" und "Ungeklärt und ohne Angabe" werden in "Sonstige Ausprägungen" geführt.
B40: Quelle: Einbürgerungsstatistik, Ausländerzentralregister
B42: Abbildung A16-1: Einbürgerungen in Niedersachsen nach den 20 häufigsten Staatsangehörigkeiten
B79: Link zur LSN-Online-Datenbank

Sheet A17
D1: =Kopf -> Migration und Teilhabe in Niedersachsen - Integrationsmonitoring 2019 - aktuelle Ergebnisse
D5: Indikator A17: Lebendgeborene Deutsche und Ausländerinnen und Ausländer in Niedersachsen
D6: Tabelle A17-1-1: Lebendgeborene Ausländerinnen und Ausländer 2005 bis 2018 (31.12.) nach Statistischen Regionen
D8: Land Statistische Region | E8: Lebendgeborene Ausländerinnen und Ausländer am 31.12.
E9: 2005 | F9: 2006 | G9: 2007 | H9: 2008 | I9: 2009 | J9: 2010 | K9: 2011 | L9: 2012 | M9: 2013 | N9: 2014 | O9: 2015 | P9: 2016 | Q9: 2017 | R9: 2018
E10: Anzahl
D11: 1 | E11: 2 | F11: 3 | G11: 4 | H11: 5 | I11: 6 | J11: 7 | K11: 8 | L11: 9 | M11: 10 | N11: 11 | O11: 12 | P11: 13 | Q11: 14 | R11: 15
D12: Stat. Region Braunschweig | E12: 468 | F12: 424 | G12: 426 | H12: 447 | I12: 378 | J12: 418 | K12: 423 | L12: 518 | M12: 589 | N12: 759 | O12: 1 013 | P12: 1 709 | Q12: 1 588 | R12: 1 748
D13: Stat. Region Hannover | E13: 701 | F13: 771 | G13: 735 | H13: 734 | I13: 615 | J13: 622 | K13: 625 | L13: 743 | M13: 892 | N13: 1 229 | O13: 1 511 | P13: 2 707 | Q13: 2 462 | R13: 2 655
D14: Stat. Region Lüneburg | E14: 423 | F14: 371 | G14: 374 | H14: 322 | I14: 319 | J14: 289 | K14: 271 | L14: 310 | M14: 463 | N14: 677 | O14: 813 | P14: 1 535 | Q14: 1 348 | R14: 1 387
D15: Stat. Region Weser-Ems | E15: 712 | F15: 708 | G15: 850 | H15: 815 | I15: 693 | J15: 710 | K15: 647 | L15: 868 | M15: 1 072 | N15: 1 583 | O15: 1 985 | P15: 3 142 | Q15: 3 006 | R15: 3 049
D16: Niedersachsen | E16: 2 304 | F16: 2 274 | G16: 2 385 | H16: 2 318 | I16: 2 005 | J16: 2 039 | K16: 1 966 | L16: 2 439 | M16: 3 016 | N16: 4 248 | O16: 5 322 | P16: 9 093 | Q16: 8 404 | R16: 8 839
D18: Quelle: Statistik der natürlichen Bevölkerungsbewegung
D20: Tabelle A17-1-2: Lebendgeborene Deutsche 2005 bis 2018 (31.12.) nach Statistischen Regionen
D22: Land Statistische Region | E22: Deutsche Lebendgeborene am 31.12.
E23: 2005 | F23: 2006 | G23: 2007 | H23: 2008 | I23: 2009 | J23: 2010 | K23: 2011 | L23: 2012 | M23: 2013 | N23: 2014 | O23: 2015 | P23: 2016 | Q23: 2017 | R23: 2018
E24: Anzahl
D25: 1 | E25: 2 | F25: 3 | G25: 4 | H25: 5 | I25: 6 | J25: 7 | K25: 8 | L25: 9 | M25: 10 | N25: 11 | O25: 12 | P25: 13 | Q25: 14 | R25: 15
D26: Stat. Region Braunschweig | E26: 12 369 | F26: 12 192 | G26: 12 360 | H26: 12 080 | I26: 11 550 | J26: 11 778 | K26: 11 384 | L26: 11 563 | M26: 11 577 | N26: 12 243 | O26: 12 234 | P26: 13 291 | Q26: 12 587 | R26: 12 856
D27: Stat. Region Hannover | E27: 16 990 | F27: 16 658 | G27: 16 748 | H27: 16 815 | I27: 16 088 | J27: 16 466 | K27: 16 085 | L27: 15 660 | M27: 16 220 | N27: 16 747 | O27: 16 622 | P27: 17 842 | Q27: 16 944 | R27: 17 122
D28: Stat. Region Lüneburg | E28: 13 746 | F28: 13 502 | G28: 13 437 | H28: 13 198 | I28: 12 857 | J28: 13 006 | K28: 12 451 | L28: 12 279 | M28: 12 773 | N28: 13 097 | O28: 13 160 | P28: 13 649 | Q28: 13 767 | R28: 13 815
D29: Stat. Region Weser-Ems | E29: 21 584 | F29: 20 701 | G29: 20 396 | H29: 20 476 | I29: 19 728 | J29: 19 841 | K29: 19 394 | L29: 19 537 | M29: 19 293 | N29: 20 071 | O29: 19 845 | P29: 21 340 | Q29: 21 318 | R29: 21 020
D30: Niedersachsen | E30: 64 689 | F30: 63 053 | G30: 62 941 | H30: 62 569 | I30: 60 223 | J30: 61 091 | K30: 59 314 | L30: 59 039 | M30: 59 863 | N30: 62 158 | O30: 61 861 | P30: 66 122 | Q30: 64 616 | R30: 64 813
D32: Quelle: Statistik der natürlichen Bevölkerungsbewegung
D36: Abbildung A17-1: Lebendgeborene Ausländerinnen und Ausländer nach Statistischen Regionen
C37: 2005
C38: 2006
C39: 2007
C40: 2008
C41: 2009
C42: 2010
C43: 2011
C44: 2012
C45: 2013
C46: 2014
C47: 2015
C48: 2016
C49: 2017
C50: 2018
D76: Link zur LSN-Online-Datenbank
D77: Link zum Regionalmonitoring Niedersachsen

Sheet A18
D1: =Kopf -> Migration und Teilhabe in Niedersachsen - Integrationsmonitoring 2019 - aktuelle Ergebnisse
D5: Indikator A18: Zuzüge über die Bundesgrenzen nach Niedersachsen
D6: Tabelle A18-1: Zuzüge über die Bundesgrenzen nach Niedersachsen 2005 bis 2018 nach Wanderungsherkunft
D8: Wanderungsherkunft1) | E8: Zuzüge über die Bundesgrenzen nach Niedersachsen
E9: 2005 | F9: 2006 | G9: 2007 | H9: 2008 | I9: 2009 | J9: 2010 | K9: 2011 | L9: 2012 | M9: 2013 | N9: 2014 | O9: 2015 | P9: 2016 | Q9: 2017 | R9: 2018
E10: Anzahl
D11: 1 | E11: 2 | F11: 3 | G11: 4 | H11: 5 | I11: 6 | J11: 7 | K11: 8 | L11: 9 | M11: 10 | N11: 11 | O11: 12 | P11: 13 | Q11: 14 | R11: 15
C12: x | D12: Europa insgesamt | E12: 70 137 | F12: 54 445 | G12: 55 712 | H12: 53 002 | I12: 54 452 | J12: 58 101 | K12: 71 848 | L12: 79 539 | M12: 87 619 | N12: 103 904 | O12: 118 056 | P12: 101 930 | Q12: 102 960 | R12: 107 646
D13: Bulgarien | E13: 406 | F13: 373 | G13: 1 145 | H13: 2 099 | I13: 2 340 | J13: 3 287 | K13: 3 820 | L13: 4 127 | M13: 4 341 | N13: 6 841 | O13: 7 793 | P13: 7 389 | Q13: 7 520 | R13: 8 284
D14: Griechenland | E14: 630 | F14: 649 | G14: 584 | H14: 604 | I14: 600 | J14: 757 | K14: 1 421 | L14: 1 918 | M14: 1 888 | N14: 2 024 | O14: 1 994 | P14: 2 257 | Q14: 2 015 | R14: 2 118
D15: Italien | E15: 1 035 | F15: 1 002 | G15: 944 | H15: 1 117 | I15: 1 206 | J15: 1 613 | K15: 1 636 | L15: 2 218 | M15: 3 029 | N15: 3 855 | O15: 3 885 | P15: 3 587 | Q15: 3 544 | R15: 3 479
D16: Kroatien | E16: 267 | F16: 399 | G16: 376 | H16: 237 | I16: 421 | J16: 297 | K16: 431 | L16: 468 | M16: 730 | N16: 1 347 | O16: 2 022 | P16: 2 084 | Q16: 1 968 | R16: 2 157
D17: Litauen | E17: 762 | F17: 751 | G17: 639 | H17: 575 | I17: 621 | J17: 683 | K17: 1 359 | L17: 1 391 | M17: 1 434 | N17: 1 314 | O17: 1 484 | P17: 1 407 | Q17: 1 405 | R17: 1 720
D18: Moldau, Republik | E18: 181 | F18: 76 | G18: 62 | H18: 67 | I18: 70 | J18: 85 | K18: 77 | L18: 119 | M18: 155 | N18: 400 | O18: 653 | P18: 1 014 | Q18: 1 414 | R18: 1 971
D19: Polen | E19: 25 817 | F19: 27 269 | G19: 27 559 | H19: 23 436 | I19: 23 094 | J19: 22 942 | K19: 28 900 | L19: 31 256 | M19: 32 617 | N19: 33 028 | O19: 32 001 | P19: 26 551 | Q19: 23 965 | R19: 22 557
D20: Rumänien | E20: 848 | F20: 997 | G20: 2 956 | H20: 4 045 | I20: 6 198 | J20: 8 083 | K20: 11 492 | L20: 12 321 | M20: 12 979 | N20: 19 064 | O20: 21 612 | P20: 25 217 | Q20: 27 631 | R20: 31 587
D21: Russische Föderation | E21: 23 172 | F21: 7 036 | G21: 5 131 | H21: 3 925 | I21: 3 284 | J21: 2 812 | K21: 2 605 | L21: 2 573 | M21: 4 019 | N21: 4 215 | O21: 4 467 | P21: 4 850 | Q21: 4 313 | R21: 4 834
D22: Serbien2), Serbien und Montenegro | E22: 934 | F22: 882 | G22: 688 | H22: 601 | I22: 384 | J22: 1 225 | K22: 1 029 | L22: 1 475 | M22: 2 039 | N22: 3 227 | O22: 3 798 | P22: 1 712 | Q22: 1 627 | R22: 1 787
D23: Spanien | E23: 1 142 | F23: 1 230 | G23: 1 306 | H23: 1 346 | I23: 1 470 | J23: 1 601 | K23: 1 772 | L23: 2 383 | M23: 3 217 | N23: 2 671 | O23: 2 452 | P23: 2 063 | Q23: 1 774 | R23: 1 893
D24: Türkei | E24: 2 043 | F24: 1 740 | G24: 1 686 | H24: 1 605 | I24: 1 636 | J24: 1 611 | K24: 1 768 | L24: 1 603 | M24: 1 477 | N24: 1 926 | O24: 2 884 | P24: 3 320 | Q24: 5 772 | R24: 5 392
D25: Ukraine | E25: 1 955 | F25: 780 | G25: 740 | H25: 704 | I25: 681 | J25: 613 | K25: 597 | L25: 621 | M25: 714 | N25: 1 286 | O25: 1 595 | P25: 1 663 | Q25: 2 007 | R25: 2 116
D26: Ungarn | E26: 1 696 | F26: 2 075 | G26: 2 527 | H26: 2 857 | I26: 2 688 | J26: 2 437 | K26: 3 229 | L26: 3 937 | M26: 4 419 | N26: 3 991 | O26: 3 797 | P26: 3 343 | Q26: 3 205 | R26: 2 759
C27: x | D27: EU Staaten | E27: 40 579 | F27: 42 960 | G27: 46 319 | H27: 44 666 | I27: 46 797 | J27: 49 675 | K27: 63 559 | L27: 69 878 | M27: 75 109 | N27: 84 129 | O27: 87 118 | P27: 83 386 | Q27: 81 800 | R27: 85 506
C28: x | D28: Afrika insgesamt | E28: 1 906 | F28: 1 727 | G28: 1 771 | H28: 1 686 | I28: 1 732 | J28: 1 857 | K28: 2 097 | L28: 2 456 | M28: 4 218 | N28: 6 032 | O28: 12 926 | P28: 8 746 | Q28: 4 635 | R28: 5 511
C29: x | D29: Amerika insgesamt | E29: 3 380 | F29: 3 625 | G29: 3 802 | H29: 4 193 | I29: 4 205 | J29: 4 089 | K29: 4 583 | L29: 4 336 | M29: 4 060 | N29: 4 469 | O29: 4 489 | P29: 4 793 | Q29: 4 731 | R29: 5 030
C30: x | D30: Asien insgesamt | E30: 18 075 | F30: 7 027 | G30: 6 787 | H30: 7 136 | I30: 9 945 | J30: 9 405 | K30: 9 518 | L30: 9 868 | M30: 12 555 | N30: 22 401 | O30: 67 279 | P30: 49 106 | Q30: 21 467 | R30: 19 633
D31: China | E31: 1 033 | F31: 822 | G31: 1 011 | H31: 1 062 | I31: 1 171 | J31: 1 232 | K31: 1 362 | L31: 1 549 | M31: 1 644 | N31: 1 717 | O31: 1 978 | P31: 2 031 | Q31: 2 104 | R31: 1 954
D32: Irak | E32: 200 | F32: 239 | G32: 383 | H32: 556 | I32: 2 830 | J32: 1 408 | K32: 780 | L32: 559 | M32: 607 | N32: 1 197 | O32: 10 845 | P32: 12 033 | Q32: 4 020 | R32: 2 505
D33: Kasachstan | E33: 11 435 | F33: 1 874 | G33: 1 488 | H33: 1 238 | I33: 1 023 | J33: 656 | K33: 703 | L33: 571 | M33: 930 | N33: 2 246 | O33: 2 121 | P33: 2 508 | Q33: 2 779 | R33: 2 452
D34: Syrien, Arabische Republik | E34: 239 | F34: 185 | G34: 176 | H34: 231 | I34: 333 | J34: 431 | K34: 706 | L34: 976 | M34: 2 508 | N34: 9 245 | O34: 32 777 | P34: 15 199 | Q34: 4 423 | R34: 3 244
C35: x | D35: Australien und Ozeanien | E35: 272 | F35: 306 | G35: 336 | H35: 374 | I35: 398 | J35: 427 | K35: 536 | L35: 477 | M35: 513 | N35: 500 | O35: 514 | P35: 522 | Q35: 562 | R35: 574
D36: Sonstige Ziele | E36: 2 123 | F36: 2 356 | G36: 2 346 | H36: 2 673 | I36: 3 193 | J36: 2 904 | K36: 2 925 | L36: 2 325 | M36: 1 956 | N36: 1 875 | O36: 3 386 | P36: 10 104 | Q36: 11 546 | R36: 15 978
D37: unbekanntes Ausland | E37: 46 | F37: 63 | G37: 60 | H37: 70 | I37: 99 | J37: 86 | K37: 72 | L37: 68 | M37: 94 | N37: 272 | O37: 1 301 | P37: 5 748 | Q37: 5 260 | R37: 3 766
D38: ohne Angabe | E38: 28 | F38: 19 | G38: 15 | H38: 15 | I38: 51 | J38: 68 | K38: 62 | L38: 68 | M38: 38 | N38: 61 | O38: 1 044 | P38: 3 730 | Q38: 6 182 | R38: 12 174
C39: x | D39: Insgesamt | E39: 95 893 | F39: 69 486 | G39: 70 754 | H39: 69 064 | I39: 73 925 | J39: 76 783 | K39: 91 507 | L39: 99 001 | M39: 110 921 | N39: 139 181 | O39: 206 650 | P39: 175 201 | Q39: 145 901 | R39: 154 372
D41: 1) Aufgeführt sind die 20 häufigsten Herkunftsländer der Ausländerinnen und Ausländer im Jahr 2018 als darunter Positionen der in der Zeile Ingesamt augewiesene Werte "Staatenlos" sowie "ungeklärt und ohne Angabe" werden in Sonstige Herkunft geführt.
D42: 2) einschließlich Montenegro und Kosovo
D44: Quelle: Wanderungsstatistik
D46: Abbildung A18-1: Zuzüge über die Bundesgrenzen nach Niedersachsen
C47: 2005
C48: 2006
C49: 2007
C50: 2008
C51: 2009
C52: 2010
C53: 2011
C54: 2012
C55: 2013
C56: 2014
C57: 2015
C58: 2016
C59: 2017
C60: 2018
D85: Link zur LSN-Online-Datenbank
D86: Link zum Regionalmonitoring Niedersachsen

Sheet A19
D1: =Kopf -> Migration und Teilhabe in Niedersachsen - Integrationsmonitoring 2019 - aktuelle Ergebnisse
D5: Indikator A19: Fortzüge über die Bundesgrenzen aus Niedersachsen
D6: Tabelle A19-1: Fortzüge über die Bundesgrenzen aus Niedersachsen 2005 bis 2018 nach Wanderungszielen
D8: Wanderungsziel1) | E8: Fortzüge über die Bundesgrenzen aus Niedersachsen
E9: 2005 | F9: 2006 | G9: 2007 | H9: 2008 | I9: 2009 | J9: 2010 | K9: 2011 | L9: 2012 | M9: 2013 | N9: 2014 | O9: 2015 | P9: 2016 | Q9: 2017 | R9: 2018
E10: Anzahl
D11: 1 | E11: 2 | F11: 3 | G11: 4 | H11: 5 | I11: 6 | J11: 7 | K11: 8 | L11: 9 | M11: 10 | N11: 11 | O11: 12 | P11: 13 | Q11: 14 | R11: 15
D12: Europa insgesamt | E12: 41 701 | F12: 44 056 | G12: 46 198 | H12: 52 345 | I12: 51 736 | J12: 48 102 | K12: 53 877 | L12: 57 738 | M12: 63 077 | N12: 70 667 | O12: 71 404 | P12: 88 788 | Q12: 74 075 | R12: 78 856
D13: Bulgarien | E13: 396 | F13: 304 | G13: 592 | H13: 1 232 | I13: 1 841 | J13: 2 242 | K13: 2 627 | L13: 2 688 | M13: 2 956 | N13: 3 884 | O13: 3 816 | P13: 5 272 | Q13: 4 786 | R13: 5 917
D14: Frankreich | E14: 926 | F14: 979 | G14: 910 | H14: 1 055 | I14: 1 029 | J14: 952 | K14: 990 | L14: 866 | M14: 813 | N14: 910 | O14: 847 | P14: 966 | Q14: 790 | R14: 832
D15: Griechenland | E15: 1 008 | F15: 904 | G15: 832 | H15: 1 049 | I15: 954 | J15: 698 | K15: 582 | L15: 732 | M15: 822 | N15: 1 251 | O15: 915 | P15: 1 336 | Q15: 1 197 | R15: 1 253
D16: Italien | E16: 1 375 | F16: 1 280 | G16: 1 226 | H16: 1 359 | I16: 1 320 | J16: 1 232 | K16: 1 460 | L16: 1 227 | M16: 1 448 | N16: 2 196 | O16: 2 040 | P16: 2 521 | Q16: 2 241 | R16: 2 369
D17: Kroatien | E17: 438 | F17: 352 | G17: 435 | H17: 395 | I17: 485 | J17: 312 | K17: 384 | L17: 375 | M17: 533 | N17: 672 | O17: 871 | P17: 1 119 | Q17: 974 | R17: 1 302
D18: Litauen | E18: 321 | F18: 495 | G18: 571 | H18: 535 | I18: 424 | J18: 423 | K18: 688 | L18: 779 | M18: 873 | N18: 983 | O18: 735 | P18: 978 | Q18: 907 | R18: 1 106
D19: Moldau, Republik | E19: 34 | F19: 41 | G19: 30 | H19: 31 | I19: 38 | J19: 29 | K19: 44 | L19: 44 | M19: 65 | N19: 98 | O19: 157 | P19: 369 | Q19: 466 | R19: 844
D20: Niederlande | E20: 1 191 | F20: 1 342 | G20: 1 555 | H20: 1 676 | I20: 1 647 | J20: 1 520 | K20: 1 579 | L20: 1 576 | M20: 1 538 | N20: 1 661 | O20: 1 615 | P20: 1 744 | Q20: 1 657 | R20: 1 725
D21: Österreich | E21: 804 | F21: 852 | G21: 897 | H21: 1 127 | I21: 1 025 | J21: 859 | K21: 896 | L21: 845 | M21: 901 | N21: 904 | O21: 793 | P21: 902 | Q21: 887 | R21: 932
D22: Polen | E22: 20 880 | F22: 22 721 | G22: 23 694 | H22: 23 944 | I22: 22 459 | J22: 20 217 | K22: 21 030 | L22: 23 197 | M22: 24 637 | N22: 24 817 | O22: 22 535 | P22: 23 500 | Q22: 19 715 | R22: 19 819
D23: Rumänien | E23: 584 | F23: 726 | G23: 1 668 | H23: 3 399 | I23: 5 282 | J23: 6 223 | K23: 8 799 | L23: 10 064 | M23: 11 001 | N23: 13 262 | O23: 14 396 | P23: 19 889 | Q23: 20 284 | R23: 24 730
D24: Russische Föderation | E24: 1 329 | F24: 1 350 | G24: 1 188 | H24: 1 646 | I24: 1 189 | J24: 1 061 | K24: 1 015 | L24: 1 022 | M24: 1 104 | N24: 1 287 | O24: 965 | P24: 917 | Q24: 994 | R24: 921
D25: Serbien, Serbien und Montenegro | E25: 1 437 | F25: 1 003 | G25: 647 | H25: 820 | I25: 717 | J25: 907 | K25: 1 116 | L25: 1 262 | M25: 1 248 | N25: 1 655 | O25: 2 648 | P25: 3 303 | Q25: 1 421 | R25: 1 259
D26: Spanien | E26: 1 446 | F26: 1 649 | G26: 1 504 | H26: 1 707 | I26: 1 486 | J26: 1 320 | K26: 1 320 | L26: 1 276 | M26: 1 655 | N26: 1 957 | O26: 1 623 | P26: 1 936 | Q26: 1 568 | R26: 1 715
D27: Türkei | E27: 2 012 | F27: 2 046 | G27: 1 889 | H27: 2 159 | I27: 2 076 | J27: 1 817 | K27: 1 727 | L27: 1 743 | M27: 1 809 | N27: 1 821 | O27: 1 644 | P27: 1 926 | Q27: 1 636 | R27: 1 901
D28: Ungarn | E28: 1 435 | F28: 1 719 | G28: 2 058 | H28: 2 415 | I28: 2 632 | J28: 2 054 | K28: 2 534 | L28: 2 651 | M28: 3 419 | N28: 3 489 | O28: 2 997 | P28: 3 035 | Q28: 2 765 | R28: 2 578
D29: Vereinigtes Königreich, Nordirland | E29: 1 329 | F29: 1 428 | G29: 1 242 | H29: 1 434 | I29: 1 435 | J29: 1 176 | K29: 1 276 | L29: 1 177 | M29: 1 227 | N29: 1 531 | O29: 1 497 | P29: 1 339 | Q29: 1 090 | R29: 1 193
D30: EU Staaten | E30: 35 054 | F30: 37 538 | G30: 40 122 | H30: 44 373 | I30: 44 947 | J30: 41 807 | K30: 47 208 | L30: 50 761 | M30: 55 590 | N30: 61 810 | O30: 58 568 | P30: 68 721 | Q30: 62 569 | R30: 69 033
D31: Afrika insgesamt | E31: 1 545 | F31: 1 512 | G31: 1 367 | H31: 1 598 | I31: 1 348 | J31: 1 208 | K31: 1 259 | L31: 1 257 | M31: 1 355 | N31: 2 023 | O31: 2 438 | P31: 6 689 | Q31: 4 200 | R31: 2 701
D32: Amerika insgesamt | E32: 3 678 | F32: 3 627 | G32: 4 031 | H32: 5 228 | I32: 4 375 | J32: 4 047 | K32: 4 034 | L32: 3 832 | M32: 3 847 | N32: 4 067 | O32: 3 859 | P32: 4 286 | Q32: 3 611 | R32: 3 577
D33: Vereingte Staaten | E33: 1 677 | F33: 1 584 | G33: 1 604 | H33: 1 972 | I33: 1 844 | J33: 1 698 | K33: 1 785 | L33: 1 767 | M33: 1 641 | N33: 1 828 | O33: 1 637 | P33: 1 847 | Q33: 1 556 | R33: 1 446
D34: Asien insgesamt | E34: 5 059 | F34: 4 600 | G34: 4 615 | H34: 5 596 | I34: 5 258 | J34: 5 517 | K34: 5 517 | L34: 5 342 | M34: 5 163 | N34: 5 882 | O34: 5 817 | P34: 7 351 | Q34: 5 946 | R34: 6 360
D35: China | E35: 962 | F35: 937 | G35: 858 | H35: 1 235 | I35: 1 033 | J35: 1 166 | K35: 1 113 | L35: 1 087 | M35: 1 087 | N35: 1 287 | O35: 1 371 | P35: 1 499 | Q35: 1 469 | R35: 1 522
D36: Australien und Ozeanien | E36: 396 | F36: 413 | G36: 502 | H36: 608 | I36: 562 | J36: 547 | K36: 535 | L36: 500 | M36: 554 | N36: 572 | O36: 531 | P36: 593 | Q36: 566 | R36: 524
D37: Sonstige Ziele | E37: 2 997 | F37: 2 129 | G37: 2 314 | H37: 2 739 | I37: 3 003 | J37: 2 904 | K37: 2 615 | L37: 2 812 | M37: 1 990 | N37: 1 927 | O37: 3 002 | P37: 29 314 | Q37: 18 898 | R37: 17 345
D38: ohne Angabe | E38: 0 | F38: 7 | G38: 2 | H38: 8 | I38: 19 | J38: 9 | K38: 43 | L38: 57 | M38: 61 | N38: 20 | O38: 1 548 | P38: 26 271 | Q38: 17 357 | R38: 16 512
D39: Insgesamt | E39: 55 376 | F39: 56 337 | G39: 59 027 | H39: 68 114 | I39: 66 282 | J39: 62 325 | K39: 67 837 | L39: 71 481 | M39: 75 986 | N39: 85 138 | O39: 87 051 | P39: 137 021 | Q39: 107 296 | R39: 109 363
D41: 1) Aufgeführt sind die 20 häufigsten Wanderungsziele im Jahr 2018 als darunter Positionen der in der Zeile Ingesamt augewiesene Werte "Staatenlos" sowie "ungeklärt und ohne Angabe" werden in Sonstige Ziele geführt.
D42: 2) einschließlich Montenegro und Kosovo
D44: Quelle: Wanderungsstatistik
D46: Abbildung A19-1: Fortzüge über die Bundesgrenzen aus Niedersachsen
C47: 2005
C48: 2006
C49: 2007
C50: 2008
C51: 2009
C52: 2010
C53: 2011
C54: 2012
C55: 2013
C56: 2014
C57: 2015
C58: 2016
C59: 2017
C60: 2018
D87: Link zur LSN-Online-Datenbank
D88: Link zum Regionalmonitoring Niedersachsen

Sheet A20
D1: =Kopf -> Migration und Teilhabe in Niedersachsen - Integrationsmonitoring 2019 - aktuelle Ergebnisse
D5: Indikator A20: Saldo der Zu- und Fortzüge über die Bundesgrenzen von und nach Niedersachsen nach ausgewählten Staatsangehörigkeiten
D6: Tabelle A20-1: Saldo der Zu- und Fortzüge über die Bundesgrenzen von und nach Niedersachsen 2005 bis 2018
D8: Land1) | E8: Saldo der Zu- und Fortzüge über die Bundesgrenzen nach / aus Niedersachsen
E9: 2005 | F9: 2006 | G9: 2007 | H9: 2008 | I9: 2009 | J9: 2010 | K9: 2011 | L9: 2012 | M9: 2013 | N9: 2014 | O9: 2015 | P9: 2016 | Q9: 2017 | R9: 2018
E10: Anzahl
D11: 1 | E11: 2 | F11: 3 | G11: 4 | H11: 5 | I11: 6 | J11: 7 | K11: 8 | L11: 9 | M11: 10 | N11: 11 | O11: 12 | P11: 13 | Q11: 14 | R11: 15
D12: Europa insgesamt | E12: +28 436 | F12: +10 389 | G12: +9 514 | H12: + 657 | I12: +2 716 | J12: +9 999 | K12: +17 971 | L12: +21 801 | M12: +24 542 | N12: +33 237 | O12: +46 652 | P12: +13 142 | Q12: +28 885 | R12: +28 790
D13: Bosnien und Herzegowina | E13: - 19 | F13: - 10 | G13: - 6 | H13: - 61 | I13: - 69 | J13: + 65 | K13: + 13 | L13: + 197 | M13: + 193 | N13: + 438 | O13: + 401 | P13: - 22 | Q13: + 335 | R13: + 591
D14: Bulgarien | E14: + 10 | F14: + 69 | G14: + 553 | H14: + 867 | I14: + 499 | J14: +1 045 | K14: +1 193 | L14: +1 439 | M14: +1 385 | N14: +2 957 | O14: +3 977 | P14: +2 117 | Q14: +2 734 | R14: +2 367
D15: Griechenland | E15: - 378 | F15: - 255 | G15: - 248 | H15: - 445 | I15: - 354 | J15: + 59 | K15: + 839 | L15: +1 186 | M15: +1 066 | N15: + 773 | O15: +1 079 | P15: + 921 | Q15: + 818 | R15: + 865
D16: Italien | E16: - 340 | F16: - 278 | G16: - 282 | H16: - 242 | I16: - 114 | J16: + 381 | K16: + 176 | L16: + 991 | M16: +1 581 | N16: +1 659 | O16: +1 845 | P16: +1 066 | Q16: +1 303 | R16: +1 110
D17: Kroatien | E17: - 171 | F17: + 47 | G17: - 59 | H17: - 158 | I17: - 64 | J17: - 15 | K17: + 47 | L17: + 93 | M17: + 197 | N17: + 675 | O17: +1 151 | P17: + 965 | Q17: + 994 | R17: + 855
D18: Litauen | E18: + 441 | F18: + 256 | G18: + 68 | H18: + 40 | I18: + 197 | J18: + 260 | K18: + 671 | L18: + 612 | M18: + 561 | N18: + 331 | O18: + 749 | P18: + 429 | Q18: + 498 | R18: + 614
D19: Moldau, Republik | E19: + 147 | F19: + 35 | G19: + 32 | H19: + 36 | I19: + 32 | J19: + 56 | K19: + 33 | L19: + 75 | M19: + 90 | N19: + 302 | O19: + 496 | P19: + 645 | Q19: + 948 | R19: +1 127
D20: Polen | E20: +4 937 | F20: +4 548 | G20: +3 865 | H20: - 508 | I20: + 635 | J20: +2 725 | K20: +7 870 | L20: +8 059 | M20: +7 980 | N20: +8 211 | O20: +9 466 | P20: +3 051 | Q20: +4 250 | R20: +2 738
D21: Rumänien | E21: + 264 | F21: + 271 | G21: +1 288 | H21: + 646 | I21: + 916 | J21: +1 860 | K21: +2 693 | L21: +2 257 | M21: +1 978 | N21: +5 802 | O21: +7 216 | P21: +5 328 | Q21: +7 347 | R21: +6 857
D22: Russische Föderation | E22: +21 843 | F22: +5 686 | G22: +3 943 | H22: +2 279 | I22: +2 095 | J22: +1 751 | K22: +1 590 | L22: +1 551 | M22: +2 915 | N22: +2 928 | O22: +3 502 | P22: +3 933 | Q22: +3 319 | R22: +3 913
D23: Serbien, Serbien und Montenegro | E23: - 503 | F23: - 121 | G23: + 41 | H23: - 219 | I23: - 333 | J23: + 318 | K23: - 87 | L23: + 213 | M23: + 791 | N23: +1 572 | O23: +1 150 | P23: -1 591 | Q23: + 206 | R23: + 528
D24: Türkei | E24: + 31 | F24: - 306 | G24: - 203 | H24: - 554 | I24: - 440 | J24: - 206 | K24: + 41 | L24: - 140 | M24: - 332 | N24: + 105 | O24: +1 240 | P24: +1 394 | Q24: +4 136 | R24: +3 491
D25: Ukraine | E25: +1 514 | F25: + 385 | G25: + 411 | H25: + 253 | I25: + 388 | J25: + 371 | K25: + 304 | L25: + 360 | M25: + 462 | N25: +1 002 | O25: +1 278 | P25: +1 185 | Q25: +1 299 | R25: +1 433
D26: EU Staaten | E26: +5 525 | F26: +5 422 | G26: +6 197 | H26: + 293 | I26: +1 850 | J26: +7 868 | K26: +16 351 | L26: +19 117 | M26: +19 519 | N26: +22 319 | O26: +28 550 | P26: +14 665 | Q26: +19 231 | R26: +16 473
D27: Afrika insgesamt | E27: + 361 | F27: + 215 | G27: + 404 | H27: + 88 | I27: + 384 | J27: + 649 | K27: + 838 | L27: +1 199 | M27: +2 863 | N27: +4 009 | O27: +10 488 | P27: +2 057 | Q27: + 435 | R27: +2 810
D28: Kamerun | E28: + 122 | F28: + 58 | G28: + 56 | H28: + 4 | I28: + 51 | J28: + 49 | K28: + 64 | L28: + 77 | M28: + 98 | N28: + 110 | O28: + 123 | P28: + 91 | Q28: + 89 | R28: + 545
D29: Amerika insgesamt | E29: - 298 | F29: - 2 | G29: - 229 | H29: -1 035 | I29: - 170 | J29: + 42 | K29: + 549 | L29: + 504 | M29: + 213 | N29: + 402 | O29: + 630 | P29: + 507 | Q29: +1 120 | R29: +1 453
D30: Asien insgesamt | E30: +13 016 | F30: +2 427 | G30: +2 172 | H30: +1 540 | I30: +4 687 | J30: +3 888 | K30: +4 001 | L30: +4 526 | M30: +7 392 | N30: +16 519 | O30: +61 462 | P30: +41 755 | Q30: +15 521 | R30: +13 273
D31: Indien | E31: + 77 | F31: + 77 | G31: + 101 | H31: + 3 | I31: + 97 | J31: + 243 | K31: + 162 | L31: + 213 | M31: + 270 | N31: + 331 | O31: + 303 | P31: + 419 | Q31: + 605 | R31: + 801
D32: Irak | E32: - 48 | F32: + 19 | G32: + 176 | H32: + 345 | I32: +2 603 | J32: +1 176 | K32: + 525 | L32: + 244 | M32: + 366 | N32: + 969 | O32: +10 619 | P32: +11 434 | Q32: +3 703 | R32: +2 179
D33: Iran, Islamische Republik | E33: + 81 | F33: + 37 | G33: + 57 | H33: + 29 | I33: + 147 | J33: + 337 | K33: + 487 | L33: + 624 | M33: + 790 | N33: + 398 | O33: +1 830 | P33: +2 013 | Q33: + 721 | R33: +1 388
D34: Kasachstan | E34: +11 234 | F34: +1 693 | G34: +1 320 | H34: + 962 | I34: + 834 | J34: + 483 | K34: + 559 | L34: + 430 | M34: + 809 | N34: +2 144 | O34: +2 022 | P34: +2 385 | Q34: +2 653 | R34: +2 340
D35: Syrien, Arabische Republik | E35: + 130 | F35: + 58 | G35: + 49 | H35: + 62 | I35: + 189 | J35: + 302 | K35: + 610 | L35: + 860 | M35: +2 374 | N35: +8 965 | O35: +32 462 | P35: +14 970 | Q35: +4 273 | R35: +3 042
D36: Australien und Ozeanien | E36: - 124 | F36: - 107 | G36: - 166 | H36: - 234 | I36: - 164 | J36: - 120 | K36: + 1 | L36: - 23 | M36: - 41 | N36: - 72 | O36: - 17 | P36: - 71 | Q36: - 4 | R36: + 50
D37: Sonstige Ziele | E37: - 874 | F37: + 227 | G37: + 32 | H37: - 66 | I37: + 190 | J37: 0 | K37: + 310 | L37: - 487 | M37: - 34 | N37: - 52 | O37: + 384 | P37: -19 210 | Q37: -7 352 | R37: -1 367
D38: unbekanntes Ausland | E38: -1 279 | F38: - 75 | G38: - 55 | H38: - 155 | I38: - 22 | J38: - 24 | K38: - 23 | L38: - 2 | M38: - 33 | N38: + 125 | O38: +1 100 | P38: +3 694 | Q38: +4 191 | R38: +2 937
D39: Insgesamt | E39: +40 517 | F39: +13 149 | G39: +11 727 | H39: + 950 | I39: +7 643 | J39: +14 458 | K39: +23 670 | L39: +27 520 | M39: +34 935 | N39: +54 043 | O39: +119 599 | P39: +38 180 | Q39: +38 605 | R39: +45 009
D41: 1) Aufgeführt sind die 20 größten Wanderungssalden im Jahr 2018 als darunter Positionen der in der Zeile Ingesamt augewiesene Werte. "Staatenlos" sowie "ungeklärt und ohne Angabe" werden in Sonstige Ausprägungen geführt.
D44: Quelle: Wanderungsstatistik
D46: Abbildung A20-1: Saldo der Zu- und Fortzüge über die Bundesgrenzen von und nach Niedersachsen
D94: Link zur LSN-Online-Datenbank
D95: Link zum Regionalmonitoring Niedersachsen

Sheet A21
D1: =Kopf -> Migration und Teilhabe in Niedersachsen - Integrationsmonitoring 2019 - aktuelle Ergebnisse
D3: Indikator A21: Zu- und Fortzüge über die Bundesgrenzen von und nach Niedersachsen nach Altersgruppen
D5: Tabelle A21-1: Zu- und Fortzüge über die Bundesgrenzen von und nach Niedersachsen 2005 und 2018 nach Altersgruppen
R7: Zuzüge
D8: Altersgruppe von … bis unter … Jahre | E8: Zuzüge | G8: Fortzüge | I8: Saldo | R8: Fortzüge
E9: 2005 | F9: 2018 | G9: 2005 | H9: 2018 | I9: 2005 | J9: 2018 | R9: Saldo der Zu- und Fortzüge
E10: Anzahl
D11: 1 | E11: 2 | F11: 3 | G11: 4 | H11: 5 | I11: 6 | J11: 7
D12: 0 – 5 | E12: 3 723 | F12: 6 364 | G12: 1 364 | H12: 3 219 | I12: +2 359 | J12: +3 145
D13: 5 – 15 | E13: 7 615 | F13: 11 656 | G13: 2 799 | H13: 4 670 | I13: +4 816 | J13: +6 986
D14: 15 – 20 | E14: 6 459 | F14: 10 235 | G14: 2 352 | H14: 5 204 | I14: +4 170 | J14: +5 031
D15: 20 – 40 | E15: 50 935 | F15: 84 313 | G15: 33 801 | H15: 62 735 | I15: +17 134 | J15: +21 578
D16: 40 – 65 | E16: 23 652 | F16: 39 425 | G16: 13 785 | H16: 30 996 | I16: +9 867 | J16: +8 429
D17: 65 – 80 | E17: 3 208 | F17: 2 092 | G17: 1 125 | H17: 2 139 | I17: +2 083 | J17: - 47
D18: 80 und älter | E18: 301 | F18: 287 | G18: 150 | H18: 400 | I18: + 151 | J18: - 113
D19: Insgesamt | E19: 95 893 | F19: 154 372 | G19: 55 376 | H19: 109 363 | I19: +40 517 | J19: +45 009
D21: Quelle: Wanderungsstatistik
C22: 2012
C23: 2013 | D23: Abbildung A21-1: Saldo der Zu- und Fortzüge über die Bundesgrenzen von und nach Niedersachsen 2005 und 2018 nach Altersgruppen
C24: 2014
C52: 2016
D85: Link zur LSN-Online-Datenbank
D86: Link zum Regionalmonitoring Niedersachsen

Sheet A22
D1: =Kopf -> Migration und Teilhabe in Niedersachsen - Integrationsmonitoring 2019 - aktuelle Ergebnisse
D5: Indikator A22: Saldo der Zu- und Fortzüge über die Bundesgrenzen von und nach Niedersachsen
D6: Tabelle A22-1: Saldo der Zu- und Fortzüge über die Bundesgrenzen von und nach Niedersachsen 2018
D8: Niedersachsen Statistische Region | E8: Zuzüge | J8: Fortzüge | O8: Saldo der Zu- und Fortzüge
E9: Insgesamt | F9: und zwar | J9: Insgesamt | K9: und zwar | O9: Insgesamt | P9: und zwar
F10: Deutsche | G10: Ausländerinnen und Ausländer | H10: Männer | I10: Frauen | K10: Deutsche | L10: Ausländerinnen und Ausländer | M10: Männer | N10: Frauen | P10: Deutsche | Q10: Ausländerinnen und Ausländer | R10: Männer | S10: Frauen
E11: Anzahl
D12: 1 | E12: 2 | F12: 3 | G12: 4 | H12: 5 | I12: 6 | J12: 7 | K12: 8 | L12: 9 | M12: 10 | N12: 11 | O12: 12 | P12: 13 | Q12: 14 | R12: 15 | S12: 16
D13: Stat. Region Braunschweig | E13: 32 632 | F13: 9 147 | G13: 23 485 | H13: 18 467 | I13: 14 165 | J13: 16 860 | K13: 4 282 | L13: 12 578 | M13: 10 963 | N13: 5 897 | O13: +15 772 | P13: +4 865 | Q13: +10 907 | R13: +7 504 | S13: +8 268
D14: Stat. Region Hannover | E14: 35 474 | F14: 5 598 | G14: 29 876 | H14: 21 808 | I14: 13 666 | J14: 28 181 | K14: 6 915 | L14: 21 266 | M14: 18 241 | N14: 9 940 | O14: +7 293 | P14: -1 317 | Q14: +8 610 | R14: +3 567 | S14: +3 726
D15: Stat. Region Lüneburg | E15: 26 011 | F15: 4 048 | G15: 21 963 | H15: 16 240 | I15: 9 771 | J15: 17 003 | K15: 4 853 | L15: 12 150 | M15: 11 640 | N15: 5 363 | O15: +9 008 | P15: - 805 | Q15: +9 813 | R15: +4 600 | S15: +4 408
D16: Stat. Region Weser-Ems | E16: 60 255 | F16: 4 981 | G16: 55 274 | H16: 37 944 | I16: 22 311 | J16: 47 319 | K16: 6 149 | L16: 41 170 | M16: 31 230 | N16: 16 089 | O16: +12 936 | P16: -1 168 | Q16: +14 104 | R16: +6 714 | S16: +6 222
D17: Niedersachsen | E17: 154 372 | F17: 23 774 | G17: 130 598 | H17: 94 459 | I17: 59 913 | J17: 109 363 | K17: 22 199 | L17: 87 164 | M17: 72 074 | N17: 37 289 | O17: +45 009 | P17: +1 575 | Q17: +43 434 | R17: +22 385 | S17: +22 624
D19: Quelle: Wanderungsstatistik
C23: 2012
C24: 2013 | D24: Abbildung A22-1: Saldo der Zu- und Fortzüge über die Bundesgrenzen von und nach Niedersachsen 2018
C25: 2014
C26: 2015
C27: 2016
D61: Link zur LSN-Online-Datenbank
D62: Link zum Regionalmonitoring Niedersachsen

Sheet B1
D1: =Kopf -> Migration und Teilhabe in Niedersachsen - Integrationsmonitoring 2019 - aktuelle Ergebnisse
D5: Indikator B1: Betreuungsquote von Kindern bis unter 6 Jahren mit und ohne Zuwanderungsgeschichte in Kindertagesbetreuung
D6: Tabelle B1-1: Betreuungsquote von Kindern bis unter 6 Jahren mit und ohne Zuwanderungsgeschichte in Kindertagesbetreuung
D8: Land | E8: Jahr (Stichtag: 01.März) | F8: Betreuungsquote von Kindern in Kindertagesbetreuung1)
F9: Insgesamt | H9: Kinder mit Migrationshintergrund | J9: Kinder ohne Migrationshintergrund
F10: bis unter 3 Jahre | G10: 3 bis unter 6 Jahre | H10: bis unter 3 Jahre | I10: 3 bis unter 6 Jahre | J10: bis unter 3 Jahre | K10: 3 bis unter 6 Jahre
F11: Prozent
D12: 1 | E12: 2 | F12: 3 | G12: 4 | H12: 5 | I12: 6 | J12: 7 | K12: 8
D13: Niedersachsen | E13: 2009 | F13: 12 | G13: 88 | H13: 6 | I13: 76 | J13: 14 | K13: 93
D14: Deutschland | E14: 2009 | F14: 20 | G14: 92 | H14: 11 | I14: 84 | J14: 25 | K14: 96
D15: Niedersachsen | E15: 2010 | F15: 16 | G15: 90 | H15: 8 | I15: 79 | J15: 19 | K15: 93
D16: Deutschland | E16: 2010 | F16: 23 | G16: 92 | H16: 12 | I16: 86 | J16: 28 | K16: 95
D17: Niedersachsen | E17: 2011 | F17: 19 | G17: 92 | H17: 9 | I17: 83 | J17: 22 | K17: 95
D18: Deutschland | E18: 2011 | F18: 25 | G18: 93 | H18: 14 | I18: 85 | J18: 30 | K18: 97
D19: Niedersachsen | E19: 2012 | F19: 22 | G19: 93 | H19: 12 | I19: 79 | J19: 26 | K19: 98
D20: Deutschland | E20: 2012 | F20: 28 | G20: 93 | H20: 16 | I20: 87 | J20: 33 | K20: 96
D21: Niedersachsen | E21: 2013 | F21: 24 | G21: 94 | H21: 13 | I21: 74 | J21: 29 | K21: 102
D22: Deutschland | E22: 2013 | F22: 29 | G22: 94 | H22: 17 | I22: 85 | J22: 35 | K22: 98
D23: Niedersachsen | E23: 2014 | F23: 28 | G23: 94 | H23: 15 | I23: 72 | J23: 33 | K23: 103
D24: Deutschland | E24: 2014 | F24: 32 | G24: 94 | H24: 20 | I24: 85 | J24: 38 | K24: 98
D25: Niedersachsen | E25: 2015 | F25: 28 | G25: 95 | H25: 15 | I25: 77 | J25: 34 | K25: 102
D26: Deutschland | E26: 2015 | F26: 33 | G26: 95 | H26: 22 | I26: 90 | J26: 38 | K26: 97
D27: Niedersachsen | E27: 2016 | F27: 28 | G27: 93 | H27: 15 | I27: 78 | J27: 34 | K27: 100
D28: Deutschland | E28: 2016 | F28: 33 | G28: 94 | H28: 21 | I28: 88 | J28: 38 | K28: 96
D29: Niedersachsen | E29: 2017 | F29: 30 | G29: 93 | H29: 15 | I29: 71 | J29: 37 | K29: 104
D30: Deutschland | E30: 2017 | F30: 33 | G30: 93 | H30: 20 | I30: 84 | J30: 40 | K30: 98
D31: Niedersachsen | E31: 2018 | F31: 31 | G31: 93 | H31: 15 | I31: 73 | J31: 39 | K31: 103
D32: Deutschland | E32: 2018 | F32: 34 | G32: 93 | H32: 20 | I32: 82 | J32: 60 | K32: 100
D34: 1) Anteil der Kinder in öffentlich geförderter Kindertagespflege, die nicht zusätzlich eine Einrichtung der Kindertagesbetreuung oder eine Ganztagsschule besuchen, sowie der Kinder in Kindertageseinrichtungen an allen Kindern in der gleichen Altersgruppe. Da in der Statistik zur Kindertagesbetreuung die Anzahl der betreuten Kinder im jeweiligen Kreis ermittelt wird und keine Zuordnung der Kinder zu ihrem Wohnort erfolgt, kann die Betreuungsquote in einzelnen Kreisen oder evtl. auch in einem Bundesland in Ausnahmefällen über 100 % liegen.
D36: Quellen: Statistische Ämter des Bundes und der Länder, Kindertagesbetreuung regional; Kinder- und Jugendhilfestatistik / Statistisches Bundesamt; Kinder- und Jugendhilfestatistik, Mikrozensus, Bevölkerungsstatistik
D39: Abbildung B1-1: Betreuungsquote von Kindern bis unter 6 Jahren mit und ohne Zuwanderungsgeschichte in Kindertagesbetreuung in Niedersachsen
F44: bis unter 3 Jahre mit Zuwanderungsgeschichte | G44: 3 bis unter 6 Jahre mit Zuwanderungsgeschichte | H44: bis unter 3 Jahre ohne Zuwanderungsgeschichte | I44: 3 bis unter 6 Jahre ohne Zuwanderungsgeschichte
E45: 2009 | F45: =H13 -> 6 | G45: =I13 -> 76 | H45: =J13 -> 14 | I45: =K13 -> 93
E46: 2010 | F46: =H15 -> 8 | G46: =I15 -> 79 | H46: =J15 -> 19 | I46: =K15 -> 93
E47: 2011 | F47: =H17 -> 9 | G47: =I17 -> 83 | H47: =J17 -> 22 | I47: =K17 -> 95
E48: 2012 | F48: =H19 -> 12 | G48: =I19 -> 79 | H48: =J19 -> 26 | I48: =K19 -> 98
E49: 2013 | F49: =H21 -> 13 | G49: =I21 -> 74 | H49: =J21 -> 29 | I49: =K21 -> 102
E50: 2014 | F50: =H23 -> 15 | G50: =I23 -> 72 | H50: =J23 -> 33 | I50: =K23 -> 103
E51: 2015 | F51: =H25 -> 15 | G51: =I25 -> 77 | H51: =J25 -> 34 | I51: =K25 -> 102
E52: 2016 | F52: =H27 -> 15 | G52: =I27 -> 78 | H52: =J27 -> 34 | I52: =K27 -> 100
E53: 2017 | F53: =H29 -> 15 | G53: =I29 -> 71 | H53: =J29 -> 37 | I53: =K29 -> 104
E54: 2018 | F54: =H31 -> 15 | G54: =I31 -> 73 | H54: =J31 -> 39 | I54: =K31 -> 103
D89: Link zur LSN-Online-Datenbank
D90: Link zum Regionalmonitoring Niedersachsen

Sheet B2
D1: =Kopf -> Migration und Teilhabe in Niedersachsen - Integrationsmonitoring 2019 - aktuelle Ergebnisse
D5: Indikator B2: Anteil der betreuten Kinder bis unter 6 Jahren mit Zuwanderungsgeschichte in Tageseinrichtungen
D6: Tabelle B2-1: Anteil der betreuten Kinder bis unter 6 Jahren mit Zuwanderungsgeschichte in Tageseinrichtungen (jeweils 01. März)
D8: Statistische Region Land | E8: Anteil der betreuten Kinder mit Migrationshintergrund an allen betreuten Kindern 2013 | G8: Anteil der betreuten Kinder mit Migrationshintergrund an allen betreuten Kindern 2014 | I8: Anteil der betreuten Kinder mit Migrationshintergrund an allen betreuten Kindern 2015 | K8: Anteil der betreuten Kinder mit Migrationshintergrund an allen betreuten Kindern 2016 | M8: Anteil der betreuten Kinder mit Migrationshintergrund an allen betreuten Kindern 2017 | O8: Anteil der betreuten Kinder mit Migrationshintergrund an allen betreuten Kindern 2018
E9: ausländische Herkunft mindestens eines Elternteils | F9: in der Familie wird vorrangig nicht deutsch gesprochen | G9: ausländische Herkunft mindestens eines Elternteils | H9: in der Familie wird vorrangig nicht deutsch gesprochen | I9: ausländische Herkunft mindestens eines Elternteils | J9: in der Familie wird vorrangig nicht deutsch gesprochen | K9: ausländische Herkunft mindestens eines Elternteils | L9: in der Familie wird vorrangig nicht deutsch gesprochen | M9: ausländische Herkunft mindestens eines Elternteils | N9: in der Familie wird vorrangig nicht deutsch gesprochen | O9: ausländische Herkunft mindestens eines Elternteils | P9: in der Familie wird vorrangig nicht deutsch gesprochen
E10: Prozent
D11: 1 | E11: Spalte2 | F11: Spalte3 | G11: Spalte4 | H11: Spalte5 | I11: Spalte6 | J11: Spalte7 | K11: 2 | L11: 3 | M11: 4 | N11: 5 | O11: 6 | P11: 7
D12: Stat. Region Braunschweig | E12: 22.2 | F12: 12.4 | G12: 22.6 | H12: 12.9 | I12: 23.3 | J12: 13.2 | K12: 23.6 | L12: 13.2 | M12: 24.2 | N12: 14.2 | O12: 25.0 | P12: 14.8
B13: 2013 | D13: Stat. Region Hannover | E13: 28.9 | F13: 16.0 | G13: 28.8 | H13: 16.4 | I13: 28.8 | J13: 17.3 | K13: 29.5 | L13: 17.5 | M13: 29.9 | N13: 18.6 | O13: 30.9 | P13: 19.3
B14: 2014 | D14: Stat. Region Lüneburg | E14: 15.7 | F14: 7.6 | G14: 16.1 | H14: 8.0 | I14: 15.9 | J14: 7.9 | K14: 16.9 | L14: 8.7 | M14: 18.0 | N14: 10.3 | O14: 19.1 | P14: 10.5
B15: 2015 | D15: Stat. Region Weser-Ems | E15: 21.2 | F15: 11.2 | G15: 19.9 | H15: 11.7 | I15: 19.5 | J15: 11.6 | K15: 20.6 | L15: 11.2 | M15: 21.4 | N15: 12.4 | O15: 21.3 | P15: 13.3
B16: 2016 | D16: Niedersachsen | E16: 22.2 | F16: 12.0 | G16: 22.0 | H16: 12.4 | I16: 22.0 | J16: 12.7 | K16: 22.8 | L16: 12.8 | M16: 23.5 | N16: 14.0 | O16: 24.2 | P16: 14.6
B17: 2017
B18: 2018 | D18: Quelle: Kinder- und Jugendhilfestatistik
D21: Abbildung B2-1: Anteil der betreuten Kinder bis unter 6 Jahren mit Zuwanderungsgeschichte in Tageseinrichtungen (jeweils 01. März)
D60: Link zur LSN-Online-Datenbank
D61: Link zum Regionalmonitoring Niedersachsen

Sheet B3
D1: =Kopf -> Migration und Teilhabe in Niedersachsen - Integrationsmonitoring 2019 - aktuelle Ergebnisse
D5: Indikator B3: Betreute Kinder bis unter 3 Jahren und von 3 bis unter 6 Jahren mit Zuwanderungsgeschichte in Kindertagesbetreuung
D6: Tabelle B3-1: Betreute Kinder bis unter 3 Jahren und von 3 bis unter 6 Jahren mit Zuwanderungsgeschichte in Kindertagesbetreuung am 01. März 20181)
D8: Statistische Region Land | E8: Kinder im Alter von unter 3 Jahren | F8: Kinder im Alter von unter 3 Jahren mit ausländischer Herkunft mindestens eines Elternteils | J8: Kinder im Alter von 3 bis unter 6 Jahren | K8: Kinder im Alter von 3 bis unter 6 Jahren mit ausländischer Herkunft mindestens eines Elternteils
F9: Anzahl | G9: Anteil an allen betreuten Kindern 2018 | H9: Anteil an allen betreuten Kindern im Vorjahr | I9: Veränderung des Anteils gegenüber dem Vorjahr | K9: Anzahl | L9: Anteil an allen betreuten Kindern 2018 | M9: Anteil an allen betreuten Kindern im Vorjahr | N9: Veränderung des Anteils gegenüber dem Vorjahr
G10: Prozent | I10: Prozentpunkte | L10: Prozent | N10: Prozentpunkte
D11: 1 | E11: 2 | F11: 3 | G11: 4 | H11: 5 | I11: 6 | J11: 7 | K11: 8 | L11: 9 | M11: 10 | N11: 11
D12: Stat. Region Braunschweig | E12: 13 979 | F12: 2 318 | G12: 16.6 | H12: 15.7 | I12: +0.8 | J12: 37 247 | K12: 9 972 | L12: 26.8 | M12: 25.9 | N12: +0.8
D13: Stat. Region Hannover | E13: 18 740 | F13: 4 141 | G13: 22.1 | H13: 20.9 | I13: +1.2 | J13: 52 023 | K13: 17 253 | L13: 33.2 | M13: 32.1 | N13: +1.1
D14: Stat. Region Lüneburg | E14: 14 885 | F14: 1 788 | G14: 12.0 | H14: 11.3 | I14: +0.7 | J14: 42 673 | K14: 8 679 | L14: 20.3 | M14: 19.1 | N14: +1.2
D15: Stat. Region Weser-Ems | E15: 20 572 | F15: 3 051 | G15: 14.8 | H15: 14.9 | I15: -0.0 | J15: 63 462 | K15: 14 170 | L15: 22.3 | M15: 22.4 | N15: -0.1
D16: Niedersachsen | E16: 68 176 | F16: 11 298 | G16: 16.6 | H16: 15.9 | I16: +0.6 | J16: 195 405 | K16: 50 074 | L16: 25.6 | M16: 24.9 | N16: +0.7
D18: 1) Kinder in Kindertageseinrichtungen sowie Kinder in öffentlich geförderter Kindertagespflege, die nicht zusätzlich eine Einrichtung der Kindertagesbetreuung besuchen.
D20: Quelle: Statistische Ämter des Bundes und der Länder, Kindertagesbetreuung regional; Kinder- und Jugendhilfestatistik
D22: Abbildung B3-1: Betreute Kinder bis unter 3 Jahren und von 3 bis unter 6 Jahren mit Zuwanderungsgeschichte als Anteil an allen betreuten Kindern in Kindertagesbetreuung am 01. März 2018
D63: Link zur LSN-Online-Datenbank
D64: Link zum Regionalmonitoring Niedersachsen

Sheet B4
D1: =Kopf -> Migration und Teilhabe in Niedersachsen - Integrationsmonitoring 2019 - aktuelle Ergebnisse
D3: Indikator B4: Verteilung der Schülerinnen und Schüler im 8. Schuljahrgang
D4: Tabelle B4-1: Verteilung der Schülerinnen und Schüler im 8. Schuljahrgang 2005 und 2018 nach Nationalität und Statistischen Regionen
D6: Schulgliederung1) | E6: Statistische Region Land Schulgliederung1) | F6: 2005 | J6: 2018
F7: Deutsche | G7: Ausländerinnen und Ausländer | H7: Deutsche | I7: Ausländerinnen und Ausländer | J7: Deutsche | K7: Ausländerinnen und Ausländer | L7: Deutsche | M7: Ausländerinnen und Ausländer
F8: Anzahl | H8: Prozent | J8: Anzahl | L8: Prozent
D9: 1 | E9: 2 | F9: 3 | G9: 4 | H9: 5 | I9: 6 | J9: 7 | K9: 8 | L9: 9 | M9: 10
D10: Hauptschule | E10: Stat. Region Braunschweig | F10: 3 686 | G10: 555 | H10: 86.9 | I10: 13.1 | J10: 926 | K10: 327 | L10: 73.9 | M10: 26.1
D11: Realschule | E11: Stat. Region Braunschweig | F11: 6 073 | G11: 418 | H11: 93.6 | I11: 6.4 | J11: 2 369 | K11: 247 | L11: 90.6 | M11: 9.4
D12: Oberschule2) | E12: Stat. Region Braunschweig | F12: - | G12: - | H12: - | I12: - | J12: 1 402 | K12: 198 | L12: 87.6 | M12: 12.4
D13: Gymnasium | E13: Stat. Region Braunschweig | F13: 6 116 | G13: 196 | H13: 96.9 | I13: 3.1 | J13: 5 496 | K13: 229 | L13: 96.0 | M13: 4.0
D14: Integrierte Gesamtschule | E14: Stat. Region Braunschweig | F14: 1 045 | G14: 67 | H14: 94.0 | I14: 6.0 | J14: 2 866 | K14: 216 | L14: 93.0 | M14: 7.0
D15: Förderschule | E15: Stat. Region Braunschweig | F15: 776 | G15: 165 | H15: 82.5 | I15: 17.5 | J15: 311 | K15: 40 | L15: 88.6 | M15: 11.4
D16: Insgesamt | E16: Stat. Region Braunschweig | F16: 17 696 | G16: 1 401 | H16: 92.7 | I16: 7.3 | J16: 13 370 | K16: 1 257 | L16: 91.4 | M16: 8.6
D17: Hauptschule | E17: Stat. Region Hannover | F17: 3 977 | G17: 686 | H17: 85.3 | I17: 14.7 | J17: 877 | K17: 388 | L17: 69.3 | M17: 30.7
D18: Realschule | E18: Stat. Region Hannover | F18: 7 446 | G18: 758 | H18: 90.8 | I18: 9.2 | J18: 2 956 | K18: 471 | L18: 86.3 | M18: 13.7
D19: Oberschule2) | E19: Stat. Region Hannover | F19: - | G19: - | H19: - | I19: - | J19: 2 437 | K19: 406 | L19: 85.7 | M19: 14.3
D20: Gymnasium | E20: Stat. Region Hannover | F20: 7 820 | G20: 496 | H20: 94.0 | I20: 6.0 | J20: 7 927 | K20: 346 | L20: 95.8 | M20: 4.2
D21: Integrierte Gesamtschule | E21: Stat. Region Hannover | F21: 1 511 | G21: 141 | H21: 91.5 | I21: 8.5 | J21: 3 885 | K21: 435 | L21: 89.9 | M21: 10.1
D22: Förderschule | E22: Stat. Region Hannover | F22: 1 028 | G22: 306 | H22: 77.1 | I22: 22.9 | J22: 498 | K22: 43 | L22: 92.1 | M22: 7.9
D23: Insgesamt | E23: Stat. Region Hannover | F23: 21 782 | G23: 2 387 | H23: 90.1 | I23: 9.9 | J23: 18 580 | K23: 2 089 | L23: 89.9 | M23: 10.1
D24: Hauptschule | E24: Stat. Region Lüneburg | F24: 5 066 | G24: 527 | H24: 90.6 | I24: 9.4 | J24: 838 | K24: 165 | L24: 83.5 | M24: 16.5
D25: Realschule | E25: Stat. Region Lüneburg | F25: 7 733 | G25: 269 | H25: 96.6 | I25: 3.4 | J25: 2 107 | K25: 146 | L25: 93.5 | M25: 6.5
D26: Oberschule2) | E26: Stat. Region Lüneburg | F26: - | G26: - | H26: - | I26: - | J26: 4 997 | K26: 546 | L26: 90.1 | M26: 9.9
D27: Gymnasium | E27: Stat. Region Lüneburg | F27: 6 699 | G27: 131 | H27: 98.1 | I27: 1.9 | J27: 6450 | K27: 179 | L27: 97.3 | M27: 2.7
D28: Integrierte Gesamtschule | E28: Stat. Region Lüneburg | F28: 316 | G28: - | H28: 100.0 | I28: - | J28: 1 892 | K28: 123 | L28: 93.9 | M28: 6.1
D29: Förderschule | E29: Stat. Region Lüneburg | F29: 818 | G29: 137 | H29: 85.7 | I29: 14.3 | J29: 292 | K29: 29 | L29: 91.0 | M29: 9.0
D30: Insgesamt | E30: Stat. Region Lüneburg | F30: 20 632 | G30: 1 064 | H30: 95.1 | I30: 4.9 | J30: 16 616 | K30: 1 188 | L30: 93.3 | M30: 6.7
D31: Hauptschule | E31: Stat Region Weder-Ems | F31: 8 129 | G31: 699 | H31: 92.1 | I31: 7.9 | J31: 1 230 | K31: 325 | L31: 79.1 | M31: 20.9
D32: Realschule | E32: Stat Region Weder-Ems | F32: 11 015 | G32: 455 | H32: 96.0 | I32: 4.0 | J32: 2 932 | K32: 260 | L32: 91.9 | M32: 8.1
D33: Oberschule2) | E33: Stat Region Weder-Ems | F33: - | G33: - | H33: - | I33: - | J33: 7 673 | K33: 1 064 | L33: 87.8 | M33: 12.2
D34: Gymnasium | E34: Stat Region Weder-Ems | F34: 8 900 | G34: 238 | H34: 97.4 | I34: 2.6 | J34: 8 930 | K34: 293 | L34: 96.8 | M34: 3.2
D35: Integrierte Gesamtschule | E35: Stat Region Weder-Ems | F35: 1 222 | G35: 42 | H35: 96.7 | I35: 3.3 | J35: 2 840 | K35: 167 | L35: 94.4 | M35: 5.6
D36: Förderschule | E36: Stat Region Weder-Ems | F36: 1 648 | G36: 247 | H36: 87.0 | I36: 13.0 | J36: 754 | K36: 74 | L36: 91.1 | M36: 8.9
D37: Insgesamt | E37: Stat Region Weder-Ems | F37: 30 914 | G37: 1 681 | H37: 94.8 | I37: 5.2 | J37: 24 359 | K37: 2 183 | L37: 91.8 | M37: 8.2
D38: Hauptschule | E38: Niedersachsen | F38: 20 858 | G38: 2 467 | H38: 89.4 | I38: 10.6 | J38: 3 871 | K38: 1 205 | L38: 76.3 | M38: 23.7
D39: Realschule | E39: Niedersachsen | F39: 32 267 | G39: 1 900 | H39: 94.4 | I39: 5.6 | J39: 10 364 | K39: 1 124 | L39: 90.2 | M39: 9.8
D40: Oberschule2) | E40: Niedersachsen | F40: - | G40: - | H40: - | I40: - | J40: 16 509 | K40: 2 214 | L40: 88.2 | M40: 11.8
D41: Gymnasium | E41: Niedersachsen | F41: 29 535 | G41: 1 061 | H41: 96.5 | I41: 3.5 | J41: 28 843 | K41: 1 047 | L41: 96.5 | M41: 3.5
D42: Integrierte Gesamtschule | E42: Niedersachsen | F42: 4 094 | G42: 250 | H42: 94.2 | I42: 5.8 | J42: 11 483 | K42: 941 | L42: 92.4 | M42: 7.6
D43: Förderschule | E43: Niedersachsen | F43: 4 270 | G43: 855 | H43: 83.3 | I43: 16.7 | J43: 1 855 | K43: 186 | L43: 90.9 | M43: 9.1
D44: Insgesamt | E44: Niedersachsen | F44: 91 024 | G44: 6 533 | H44: 93.3 | I44: 6.7 | J44: 72 925 | K44: 6 717 | L44: 91.6 | M44: 8.4
D46: 1) Integrierte Gesamtschule: einschließlich Freie Waldorfschule u. ä.; die verschiedenen Zweige der Kooperativen Gesamtschule werden den Schulformen Hauptschule, Realschule und Gymnasium zugeordnet.
D47: 2) Schulform in Niedersachsen zum Schuljahr 2011/2012 eingeführt
D49: Quelle: Schulstatistik
D51: Abbildung B4-1: Verteilung der ausländischen Schülerinnen und Schüler im 8. Schuljahrgang nach Schulgliederung und Statistischen Regionen im Jahr 2018 in Prozent
E54: Hauptschule | F54: Realschule | G54: Oberschule2) | H54: Gymnasium | I54: Integrierte Gesamtschule | J54: Förderschule | K54: alle Schulformen
D55: Stat. Region Braunschweig | E55: =M10 -> 26.1 | F55: =M11 -> 9.4 | G55: =M12 -> 12.4 | H55: =M13 -> 4.0 | I55: =M14 -> 7.0 | J55: =M15 -> 11.4 | K55: =M16 -> 8.6
D56: Stat. Region Hannover | E56: =M17 -> 30.7 | F56: =M18 -> 13.7 | G56: =M19 -> 14.3 | H56: =M20 -> 4.2 | I56: =M21 -> 10.1 | J56: =M22 -> 7.9 | K56: =M23 -> 10.1
D57: Stat. Region Lüneburg | E57: =M24 -> 16.5 | F57: =M25 -> 6.5 | G57: =M26 -> 9.9 | H57: =M27 -> 2.7 | I57: =M28 -> 6.1 | J57: =M29 -> 9.0 | K57: =M30 -> 6.7
D58: Stat. Region Weser-Ems | E58: =M31 -> 20.9 | F58: =M32 -> 8.1 | G58: =M33 -> 12.2 | H58: =M34 -> 3.2 | I58: =M35 -> 5.6 | J58: =M36 -> 8.9 | K58: =M37 -> 8.2
D59: Niedersachsen | E59: =M38 -> 23.7 | F59: =M39 -> 9.8 | G59: =M40 -> 11.8 | H59: =M41 -> 3.5 | I59: =M42 -> 7.6 | J59: =M43 -> 9.1 | K59: =M44 -> 8.4
D95: Link zur LSN-Online-Datenbank
D96: Link zum Regionalmonitoring Niedersachsen

Sheet B5
D1: =Kopf -> Migration und Teilhabe in Niedersachsen - Integrationsmonitoring 2019 - aktuelle Ergebnisse
D5: Indikator B5: Schulabgängerinnen und Schulabgänger ohne Hauptschulabschluss nach Nationalität
D6: Tabelle B5-1: Schulabgängerinnen und Schulabgänger ohne Hauptschulabschluss 2005 und 2018 nach Nationalität und Statistischen Regionen
D8: Statistische Region Land | E8: Schulabgängerinnen und Schulabgänger ohne Hauptschulabschluss1)
E9: 2005 | I9: 2018
E10: Deutsche | F10: Ausländerinnen und Ausländer | G10: Deutsche | H10: Ausländerinnen und Ausländer | I10: Deutsche | J10: Ausländerinnen und Ausländer | K10: Deutsche | L10: Ausländerinnen und Ausländer
E11: Anzahl | G11: Prozent | I11: Anzahl | K11: Prozent
D12: 1 | E12: 2 | F12: 3 | G12: 4 | H12: 5 | I12: 6 | J12: 7 | K12: 8 | L12: 9
D13: Stat. Region Braunschweig | E13: 1 297 | F13: 316 | G13: 7.4 | H13: 23.5 | I13: 660 | J13: 277 | K13: 4.8 | L13: 21.9
D14: Stat. Region Hannover | E14: 1 495 | F14: 533 | G14: 7.2 | H14: 21.8 | I14: 859 | J14: 462 | K14: 4.5 | L14: 20.8
D15: Stat. Region Lüneburg | E15: 1 541 | F15: 329 | G15: 8.5 | H15: 31.2 | I15: 849 | J15: 198 | K15: 5.2 | L15: 22.1
D16: Stat. Region Weser-Ems | E16: 2 405 | F16: 429 | G16: 8.2 | H16: 27.2 | I16: 1 298 | J16: 490 | K16: 5.1 | L16: 26.3
D17: Niedersachsen | E17: 6 738 | F17: 1 607 | G17: 7.9 | H17: 25.0 | I17: 3 666 | J17: 1 427 | K17: 4.9 | L17: 22.9
D20: 1) einschließlich Abgängerinnen/Abgänger der Förderschulen
D22: Quelle: Schulstatistik
D25: Abbildung B5-1: Schulabgängerinnen und Schulabgänger ohne Hauptschulabschluss nach Nationalität und Statistischen Regionen
D67: Link zur LSN-Online-Datenbank
D68: Link zum Regionalmonitoring Niedersachsen

Sheet B6
D1: =Kopf -> Migration und Teilhabe in Niedersachsen - Integrationsmonitoring 2019 - aktuelle Ergebnisse
D5: Indikator B6: Schulabgängerinnen und Schulabgänger nach Nationalität und Abschlussart
D6: Tabelle B6-1: Schulabgängerinnen und Schulabgänger an allgemein bildenden Schulen 2005 und 2018 nach Nationalität und Abschlussart und Statistischen Regionen
D8: Abschlussart | E8: Schulabgängerinnen und Schulabgänger
E9: 2005 | H9: 2018
E10: Insgesamt | F10: Deutsche | G10: Ausländerinnen und Ausländer | H10: Insgesamt | I10: Deutsche | J10: Ausländerinnen und Ausländer
E11: Anzahl
D12: 1 | E12: 2 | F12: 3 | G12: 4 | H12: 5 | I12: 6 | J12: 7
D13: Hochschulreife | E13: 20 073 | F13: 19 598 | G13: 475 | H13: 26 523 | I13: 25 872 | J13: 651
D14: Fachhochschulreife1) | E14: 1 757 | F14: 1 655 | G14: 102 | H14: 2 341 | I14: 2 216 | J14: 125
D15: Realschulabschluss | E15: 43 181 | F15: 40 717 | G15: 2 464 | H15: 35 591 | I15: 33 213 | J15: 2 378
D16: Hauptschulabschluss | E16: 18 693 | F16: 16 919 | G16: 1 774 | H16: 11 516 | I16: 9 853 | J16: 1 663
D17: Abschluss Förderschule2) | E17: 3 076 | F17: 2 410 | G17: 666 | H17: 1 963 | I17: 1 751 | J17: 212
D18: Ohne Abschluss | E18: 5 269 | F18: 4 328 | G18: 941 | H18: 3 130 | I18: 1 915 | J18: 1 215
D19: Insgesamt | E19: 92 049 | F19: 85 627 | G19: 6 422 | H19: 81 064 | I19: 74 820 | J19: 6 244
D21: 1) Schulischer Teil
D22: 2) Abschluss Förderschule Lernen und Geistige Entwicklung
D24: Quelle: Schulstatistik
D26: Abbildung B6-1: Schulabgängerinnen und Schulabgänger nach Nationalität und Abschlussart im Jahr 2018
D29: Abschlussart | E29: Schulabgängerinnen und Schulabgänger
E30: 2005 | H30: 2018
E31: Insgesamt | F31: Deutsche | G31: Ausländerinnen und Ausländer | H31: Insgesamt | I31: Deutsche | J31: Ausländerinnen und Ausländer
E32: Anzahl
D34: Hochschulreife | E34: =E13/$E$19*100 -> 21.8 | F34: =F13/$F$19*100 -> 22.9 | G34: =G13/$G$19*100 -> 7.4 | H34: =H13/$H$19*100 -> 32.7 | I34: =I13/$I$19*100 -> 34.6 | J34: =J13/$J$19*100 -> 10.4
D35: Fachhochschulreife | E35: =E14/$E$19*100 -> 1.9 | F35: =F14/$F$19*100 -> 1.9 | G35: =G14/$G$19*100 -> 1.6 | H35: =H14/$H$19*100 -> 2.9 | I35: =I14/$I$19*100 -> 3.0 | J35: =J14/$J$19*100 -> 2.0
D36: Realschulabschluss | E36: 46.9 | F36: 47.6 | G36: 38.4 | H36: 43.9 | I36: 44.4 | J36: 38.1
D37: Hauptschulabschluss | E37: 20.3 | F37: 19.8 | G37: 27.6 | H37: 14.2 | I37: 13.2 | J37: 26.6
D38: Abschluss Förderschule | E38: 3.3 | F38: 2.8 | G38: 10.4 | H38: 2.4 | I38: 2.3 | J38: 3.4
D39: Ohne Abschluss | E39: 5.7 | F39: 5.1 | G39: 14.7 | H39: 3.9 | I39: 2.6 | J39: 19.5
D40: Insgesamt | E40: 100.0 | F40: 100.0 | G40: 100.0 | H40: 100.0 | I40: 100.0 | J40: 100.0
D64: Link zur LSN-Online-Datenbank
D65: Link zum Regionalmonitoring Niedersachsen

Sheet B7
D1: =Kopf -> Migration und Teilhabe in Niedersachsen - Integrationsmonitoring 2019 - aktuelle Ergebnisse
D5: Indikator B7: Höchster Schulabschluss an allgemein bildenden Schulen nach Zuwanderungsgeschichte und Altersgruppen
D6: Tabelle B7-1: Höchster Schulabschluss an allgemein bildenden Schulen 2005 und 2018 nach Zuwanderungsgeschichte und Altersgruppen
D8: Altersgruppe von … bis unter … Jahre | E8: Schulabschluss | F8: Schulabgängerinnen und Schulabgänger
F9: 2005 | I9: 20181)
F10: Insgesamt | G10: mit Migrationshintergrund3) | H10: ohne Migrationshintergrund3) | I10: Insgesamt | J10: mit Migrationshintergrund3) | K10: ohne Migrationshintergrund3)
F11: Prozent
D13: 1 | E13: 2 | F13: 3 | G13: 4 | H13: 5 | I13: 6 | J13: 7 | K13: 8
D14: 18 – 25 | E14: Ohne Abschluss2) | F14: 4.8 | G14: 9.8 | H14: 3.3 | I14: 4.7 | J14: 2.2 | K14: 11.6
D15: 25 – 35 | E15: Ohne Abschluss2) | F15: 4.4 | G15: 12.6 | H15: 2.0 | I15: 4.6 | J15: 2.0 | K15: 10.9
D16: 15 – 65 | E16: Ohne Abschluss2) | F16: 3.6 | G16: 12.8 | H16: 1.9 | I16: 4.2 | J16: 1.9 | K16: 11.9
D17: 18 – 25 | E17: Hauptschulabschluss | F17: 22.1 | G17: 29.4 | H17: 19.9 | I17: 12.9 | J17: 11.8 | K17: 16.0
D18: 25 – 35 | E18: Hauptschulabschluss | F18: 22.9 | G18: 29.8 | H18: 20.9 | I18: 14.8 | J18: 13.2 | K18: 18.6
D19: 15 – 65 | E19: Hauptschulabschluss | F19: 37.5 | G19: 35.5 | H19: 37.9 | I19: 23.6 | J19: 23.4 | K19: 24.3
D20: 18 – 25 | E20: Realschulabschluss | F20: 42.9 | G20: 37.7 | H20: 44.5 | I20: 35.6 | J20: 36.2 | K20: 33.7
D21: 25 – 35 | E21: Realschulabschluss | F21: 38.5 | G21: 31.5 | H21: 40.5 | I21: 36.1 | J21: 39.3 | K21: 28.4
D22: 15 – 65 | E22: Realschulabschluss | F22: 33.4 | G22: 28.7 | H22: 34.2 | I22: 37.0 | J22: 38.7 | K22: 31.0
D23: 18 – 25 | E23: (Fach-)Hochschulreife | F23: 30.2 | G23: 23.0 | H23: 32.3 | I23: 46.8 | J23: 49.8 | K23: 38.7
D24: 25 – 35 | E24: (Fach-)Hochschulreife | F24: 34.3 | G24: 26.1 | H24: 36.6 | I24: 44.5 | J24: 45.5 | K24: 42.0
D25: 15 – 65 | E25: (Fach-)Hochschulreife | F25: 25.5 | G25: 23.1 | H25: 25.9 | I25: 35.2 | J25: 36.0 | K25: 32.8
D27: 1) Hochrechnung anhand der Bevölkerungsfortschreibung auf Basis des Zensus 2011. Die Hochrechnung für die Jahre vor 2011 sowie für bislang veröffentlichte Ergebnisse des Mikrozensus 2011-2013 basiert auf den fortgeschriebenen Ergebnissen der Volkszählung 1987. In 2016 erfolgte die Umstellung auf eine neue Mikrozensus-Stichprobe. Ab 2017 wird nur noch die Bevölkerung in Privathaushalten (ohne Gemeinschaftsunterkünfte) ausgewiesen. Dadurch ergibt sich jeweils eine eingeschränkte Vergleichbarkeit mit den Vorjahren.
D28: 2) Ohne Abschluss einschließlich Abschluss Förderschule.
D29: 3) Seit dem Jahr 2018 wird im Mikrozensus der Migrationshintergrund im weiteren Sinne jährlich berichtet. Durch eine rückwirkende Revision der Mikrozensusdaten wird auch für das Jahr 2017 der Migrationshintergrund im weiteren Sinne dargestellt. Die in den Tabellen ab dem Jahr 2017 berichteten Daten zum Migrationshintergrund entsprechen dem Migrationshintergrund im weiteren Sinne, bis 2016 wird der Migrationshintergrund im engeren Sinne abgebildet. Die Vergleichbarkeit zwischen den Jahren sowie für das Berichtsjahr 2017 zwischen den Berichten des Integrationsmonitoring Niedersachsen 2018 und 2019 ist dadurch eingeschränkt.
D31: Quelle: Mikrozensus
D33: Abbildung B7-1: Höchster Schulabschluss an allgemeinbildenden Schulen 2018 nach Zuwanderungsgeschichte und Altersgruppen
E36: Ohne Abschluss
E37: Ohne Abschluss
E38: Ohne Abschluss
E39: Hauptschulabschluss
E40: Hauptschulabschluss
E41: Hauptschulabschluss
E42: Realschulabschluss
E43: Realschulabschluss
E44: Realschulabschluss
E45: (Fach-)Hochschulreife
E46: (Fach-)Hochschulreife
E47: (Fach-)Hochschulreife
D79: Link zur LSN-Online-Datenbank
D80: Link zum Regionalmonitoring Niedersachsen

Sheet B8
D1: =Kopf -> Migration und Teilhabe in Niedersachsen - Integrationsmonitoring 2019 - aktuelle Ergebnisse
D3: Indikator B8: Schulabgängerinnen und Schulabgänger an berufsbildenden Schulen nach Schulart und Schulabschluss
D4: Tabelle B8-1-1: Schulabgängerinnen und Schulabgänger an berufsbildenden Schulen nach Schulart und Schulabschluss im Jahr 2018
D6: Erreichter Schulabschluss1) | E6: Staatsangehörigkeit | F6: Insgesamt | G6: davon aus der Schulart
G7: Berufsschule (Teilzeit) | H7: Berufseinstiegsklasse5) | I7: Berufsvorbereitungsjahr | J7: Berufsfachschule | K7: Fachoberschule | L7: Berufsoberschule | M7: Berufl. Gymnasium6) | N7: Fachschule
F8: Anzahl
D9: 1 | E9: 2 | F9: 3 | G9: 4 | H9: 5 | I9: 6 | J9: 7 | K9: 8 | L9: 9 | M9: 10 | N9: 11
D10: Allgemeine Hochschulreife2) | E10: Deutsche | F10: 5 385 | G10: - | H10: - | I10: - | J10: - | K10: - | L10: 77 | M10: 5 308 | N10: -
D11: Fachhochschulreife | E11: Deutsche | F11: 12 507 | G11: 102 | H11: - | I11: - | J11: 97 | K11: 7 806 | L11: - | M11: 78 | N11: 4 424
D12: Schulischer Teil der Fachhochschulreife | E12: Deutsche | F12: 1 162 | G12: - | H12: - | I12: - | J12: 188 | K12: - | L12: - | M12: 974 | N12: -
D13: Realschulabschluss | E13: Deutsche | F13: 13 211 | G13: 7 352 | H13: - | I13: - | J13: 5 851 | K13: - | L13: - | M13: 8 | N13: -
D14: Hauptschulabschluss | E14: Deutsche | F14: 2 845 | G14: 263 | H14: 1 493 | I14: 413 | J14: 676 | K14: - | L14: - | M14: - | N14: -
D15: Erfolgreicher Besuch3) | E15: Deutsche | F15: 45 797 | G15: 30 491 | H15: 159 | I15: - | J15: 13 501 | K15: - | L15: - | M15: - | N15: 1 646
D16: Entlassungen aus dem Berufsvorbereitungsjahr4) | E16: Deutsche | F16: 3 328 | G16: 700 | H16: - | I16: 2 628 | J16: - | K16: - | L16: - | M16: - | N16: -
D17: Ohne erfolgreichen Besuch/Abschluss | E17: Deutsche | F17: 9 019 | G17: 2 815 | H17: 784 | I17: - | J17: 4 369 | K17: 852 | L17: 2 | M17: 106 | N17: 91
D18: Insgesamt | E18: Deutsche | F18: 93 254 | G18: 41 723 | H18: 2 436 | I18: 3 041 | J18: 24 682 | K18: 8 658 | L18: 79 | M18: 6 474 | N18: 6 161
D20: nachrichtlich: Abbruch im laufenden Schuljahr | E20: Deutsche | F20: 22 839 | G20: 11 472 | H20: 406 | I20: 331 | J20: 5 440 | K20: 2 296 | L20: 15 | M20: 1 852 | N20: 1 027
D22: Allgemeine Hochschulreife2) | E22: Ausländerinnen und Ausländer | F22: 180 | G22: - | H22: - | I22: - | J22: - | K22: - | L22: 4 | M22: 176 | N22: -
D23: Fachhochschulreife | E23: Ausländerinnen und Ausländer | F23: 562 | G23: 5 | H23: - | I23: - | J23: 8 | K23: 458 | L23: - | M23: 4 | N23: 87
D24: Schulischer Teil der Fachhochschulreife | E24: Ausländerinnen und Ausländer | F24: 50 | G24: - | H24: - | I24: - | J24: 12 | K24: - | L24: - | M24: 38 | N24: -
D25: Realschulabschluss | E25: Ausländerinnen und Ausländer | F25: 821 | G25: 422 | H25: - | I25: - | J25: 399 | K25: - | L25: - | M25: - | N25: -
D26: Hauptschulabschluss | E26: Ausländerinnen und Ausländer | F26: 1 662 | G26: 22 | H26: 1 227 | I26: 307 | J26: 106 | K26: - | L26: - | M26: - | N26: -
D27: Erfolgreicher Besuch3) | E27: Ausländerinnen und Ausländer | F27: 2 058 | G27: 1 051 | H27: 58 | I27: - | J27: 928 | K27: - | L27: - | M27: - | N27: 21
D28: Entlassungen aus dem Berufsvorbereitungsjahr4) | E28: Ausländerinnen und Ausländer | F28: 4 343 | G28: 23 | H28: - | I28: 4 320 | J28: - | K28: - | L28: - | M28: - | N28: -
D29: Ohne erfolgreichen Besuch/Abschluss | E29: Ausländerinnen und Ausländer | F29: 1 352 | G29: 287 | H29: 445 | I29: - | J29: 529 | K29: 80 | L29: - | M29: 6 | N29: 5
D30: Insgesamt | E30: Ausländerinnen und Ausländer | F30: 11 028 | G30: 1 810 | H30: 1 730 | I30: 4 627 | J30: 1 982 | K30: 538 | L30: 4 | M30: 224 | N30: 113
D32: nachrichtlich: Abbruch im laufenden Schuljahr | E32: Ausländerinnen und Ausländer | F32: 4 212 | G32: 1 471 | H32: 288 | I32: 1 272 | J32: 817 | K32: 241 | L32: 1 | M32: 97 | N32: 25
D34: Tabelle B8-1-2: Schulabgängerinnen und Schulabgänger an berufsbildenden Schulen nach Schulart und Schulabschluss in Prozent im Jahr 2018
D36: Erreichter Schulabschluss1) | E36: Staatsangehörigkeit | F36: Insgesamt | G36: davon aus der Schulart
G37: Berufsschule (Teilzeit) | H37: Berufseinstiegsklasse5) | I37: Berufsvorbereitungsjahr | J37: Berufsfachschule | K37: Fachoberschule | L37: Berufsoberschule | M37: Berufl. Gymnasium6) | N37: Fachschule
F38: Prozent
D39: 1 | E39: 2 | F39: 3 | G39: 4 | H39: 5 | I39: 6 | J39: 7 | K39: 8 | L39: 9 | M39: 10 | N39: 11
D40: Allgemeine Hochschulreife2) | E40: Deutsche | F40: 5.8 | G40: - | H40: - | I40: - | J40: - | K40: - | L40: 97.5 | M40: 82.0 | N40: -
D41: Fachhochschulreife | E41: Deutsche | F41: 13.4 | G41: 0.2 | H41: - | I41: - | J41: 0.4 | K41: 90.2 | L41: - | M41: 1.2 | N41: 71.8
D42: Schulischer Teil der Fachhochschulreife | E42: Deutsche | F42: 1.2 | G42: - | H42: - | I42: - | J42: 0.8 | K42: - | L42: - | M42: 15.0 | N42: -
D43: Realschulabschluss | E43: Deutsche | F43: 14.2 | G43: 17.6 | H43: - | I43: - | J43: 23.7 | K43: - | L43: - | M43: 0.1 | N43: -
D44: Hauptschulabschluss | E44: Deutsche | F44: 3.1 | G44: 0.6 | H44: 61.3 | I44: 13.6 | J44: 2.7 | K44: - | L44: - | M44: - | N44: -
D45: Erfolgreicher Besuch3) | E45: Deutsche | F45: 49.1 | G45: 73.1 | H45: 6.5 | I45: - | J45: 54.7 | K45: - | L45: - | M45: - | N45: 26.7
D46: Entlassungen aus dem Berufsvorbereitungsjahr4) | E46: Deutsche | F46: 3.6 | G46: 1.7 | H46: - | I46: 86.4 | J46: - | K46: - | L46: - | M46: - | N46: -
D47: Ohne erfolgreichen Besuch/Abschluss | E47: Deutsche | F47: 9.7 | G47: 6.7 | H47: 32.2 | I47: - | J47: 17.7 | K47: 9.8 | L47: 2.5 | M47: 1.6 | N47: 1.5
D48: Insgesamt | E48: Deutsche | F48: 100.0 | G48: 100.0 | H48: 100.0 | I48: 100.0 | J48: 100.0 | K48: 100.0 | L48: 100.0 | M48: 100.0 | N48: 100.0
D50: Allgemeine Hochschulreife2) | E50: Ausländerinnen und Ausländer | F50: 1.6 | G50: - | H50: - | I50: - | J50: - | K50: - | L50: 100.0 | M50: 78.6 | N50: -
D51: Fachhochschulreife | E51: Ausländerinnen und Ausländer | F51: 5.1 | G51: 0.3 | H51: - | I51: - | J51: 0.4 | K51: 85.1 | L51: - | M51: 1.8 | N51: 77.0
D52: Schulischer Teil der Fachhochschulreife | E52: Ausländerinnen und Ausländer | F52: 0.5 | G52: - | H52: - | I52: - | J52: 0.6 | K52: - | L52: - | M52: 17.0 | N52: -
D53: Realschulabschluss | E53: Ausländerinnen und Ausländer | F53: 7.4 | G53: 23.3 | H53: - | I53: - | J53: 20.1 | K53: - | L53: - | M53: - | N53: -
D54: Hauptschulabschluss | E54: Ausländerinnen und Ausländer | F54: 15.1 | G54: 1.2 | H54: 70.9 | I54: 6.6 | J54: 5.3 | K54: - | L54: - | M54: - | N54: -
D55: Erfolgreicher Besuch3) | E55: Ausländerinnen und Ausländer | F55: 18.7 | G55: 58.1 | H55: 3.4 | I55: - | J55: 46.8 | K55: - | L55: - | M55: - | N55: 18.6
D56: Entlassungen aus dem Berufsvorbereitungsjahr4) | E56: Ausländerinnen und Ausländer | F56: 39.4 | G56: 1.3 | H56: - | I56: 93.4 | J56: - | K56: - | L56: - | M56: - | N56: -
D57: Ohne erfolgreichen Besuch/Abschluss | E57: Ausländerinnen und Ausländer | F57: 12.3 | G57: 15.9 | H57: 25.7 | I57: - | J57: 26.7 | K57: 14.9 | L57: - | M57: 2.7 | N57: 4.4
D58: Insgesamt | E58: Ausländerinnen und Ausländer | F58: 100.0 | G58: 100.0 | H58: 100.0 | I58: 100.0 | J58: 100.0 | K58: 100.0 | L58: 100.0 | M58: 100.0 | N58: 100.0
D62: 1) Die Zuordnung zum erreichten Schulabschluss erfolgt nach dem jeweils höchsten zusätzlich erworbenen Schulabschluss.
D63: 2) inkl. fachgebundene Hochschulreife
D64: 3) ausschließlich erfolgreicher beruflicher Abschluss ohne zusätzlich erworbenen Schulabschluss
D65: 4) Einschließlich Schulabgängerinnen und Schulabgänger der Berufsschule (Teilzeit), die nicht in einem Ausbildungsverhältnis stehen und sonderpädagogische
D66: Unterstützung benötigen (gemäß § 67 Abs. 4 NSchG) sowie Schulabgängerinnen und Schulabgänger ohne anerkannten Ausbildungsberuf.
D67: 5) Die Berufseinstiegsklasse ist 2006 als Schulversuch eingeführt worden und wird seit 1. August 2009 flächendeckend angeboten.
D68: 6) bis 2010 Fachgymnasium
D70: Quelle: Statistik der berufsbildenden Schulen
D73: Abbildung B5-1: Deutsche und ausländische Schulabgängerinnen und Schulabgänger an berufsbildenden Schulen nach Schulabschluss in Prozent
F80: Deutsche | G80: Ausländerinnen und Ausländer
E81: Allgemeine Hochschulreife | F81: =F40 -> 5.8 | G81: =F50 -> 1.6
E82: Fachhochschulreife | F82: =F41 -> 13.4 | G82: =F51 -> 5.1
E83: Schulischer Teil der Fachhochschulreife | F83: 1.2 | G83: 0.5
E84: Realschulabschluss | F84: 14.2 | G84: 7.4
E85: Hauptschulabschluss | F85: 3.1 | G85: 15.1
E86: Erfolgreicher Besuch | F86: 49.1 | G86: 18.7
E87: Entlassungen aus dem Berufsvorbereitungsjahr | F87: 3.6 | G87: 39.4
E88: Ohne erfolgreichen Besuch/Abschluss | F88: 9.7 | G88: 12.3
E89: Insgesamt | F89: 100.0 | G89: 100.0
D115: Link zur LSN-Online-Datenbank
D116: Link zum Regionalmonitoring Niedersachsen

Sheet B9
D1: =Kopf -> Migration und Teilhabe in Niedersachsen - Integrationsmonitoring 2019 - aktuelle Ergebnisse
D5: Indikator B9: Höchster beruflicher Abschluss der 25- bis unter 35-Jährigen nach Zuwanderungsgeschichte und Geschlecht
D6: Tabelle B9-1: Höchster beruflicher Abschluss der 25- bis unter 35-Jährigen 2005 und 2018 nach Geschlecht und Zuwanderungsgeschichte
D8: Höchster Beruflicher Abschluss / Jahr | E8: Bevölkerung im Alter von 25 bis unter 35 Jahre2)
E9: Jahr | F9: Insgesamt | I9: davon
I10: mit Migrationshintergrund3) | L10: ohne Migrationshintergrund3)
F12: Insgesamt | G12: Männer | H12: Frauen | I12: Insgesamt | J12: Männer | K12: Frauen | L12: Insgesamt | M12: Männer | N12: Frauen
F13: Prozent
D14: 1 | E14: 2 | F14: 3 | G14: 4 | H14: 5 | I14: 6 | J14: 7 | K14: 8 | L14: 9 | M14: 10 | N14: 11
D15: Ohne Abschluss1) | E15: 2005 | F15: 24.2 | G15: 22.7 | H15: 25.6 | I15: 46.9 | J15: 44.1 | K15: 49.7 | L15: 17.6 | M15: 16.6 | N15: 18.6
D16: Abgeschlossene Berufsausbildung | E16: 2005 | F16: 58.9 | G16: 59.5 | H16: 58.3 | I16: 41.5 | J16: 45.6 | K16: 37.5 | L16: 63.9 | M16: 63.5 | N16: 64.3
D17: Tertiärer Abschluss | E17: 2005 | F17: 16.9 | G17: 17.8 | H17: 16.1 | I17: 11.6 | J17: 10.4 | K17: 12.8 | L17: 18.5 | M17: 19.9 | N17: 17.0
D18: Ohne Abschluss1) | E18: 2018 | F18: 21.8 | G18: 23.6 | H18: 19.9 | I18: 38.4 | J18: 41.2 | K18: 35.3 | L18: 14.8 | M18: 15.9 | N18: 13.5
D19: Abgeschlossene Berufsausbildung | E19: 2018 | F19: 48.4 | G19: 50.1 | H19: 46.6 | I19: 36.2 | J19: 35.8 | K19: 36.6 | L19: 53.6 | M19: 56.3 | N19: 50.7
D20: Tertiärer Abschluss | E20: 2018 | F20: 29.7 | G20: 26.3 | H20: 33.5 | I20: 25.4 | J20: 23.0 | K20: 28.1 | L20: 31.6 | M20: 27.8 | N20: 35.7
D22: 1) Kein/noch kein beruflicher Abschluss vorhanden; einschließlich Anlernausbildung, Berufsvorbereitungsjahr und beruflichem Praktikum.
D23: 2) Hochrechnung anhand der Bevölkerungsfortschreibung auf Basis des Zensus 2011. Die Hochrechnung für die Jahre vor 2011 sowie für bislang veröffentlichte Ergebnisse des Mikrozensus 2011-2013 basiert auf den fortgeschriebenen Ergebnissen der Volkszählung 1987. In 2016 erfolgte die Umstellung Ab 2017 wird nur noch die Bevölkerung in Privathaushalten (ohne Gemeinschaftsunterkünfte) ausgewiesen. Dadurch ergibt sich jeweils eine eingeschränkte Vergleichbarkeit mit den Vorjahren.
D24: 3) Seit dem Jahr 2018 wird im Mikrozensus der Migrationshintergrund im weiteren Sinne jährlich berichtet. Durch eine rückwirkende Revision der Mikrozensusdaten wird auch für das Jahr 2017 der Migrationshintergrund im weiteren Sinne dargestellt. Die in den Tabellen ab dem Jahr 2017 berichteten Daten zum Migrationshintergrund entsprechen dem Migrationshintergrund im weiteren Sinne, bis 2016 wird der Migrationshintergrund im engeren Sinne abgebildet. Die Vergleichbarkeit zwischen den Jahren sowie für das Berichtsjahr 2017 zwischen den Berichten des Integrationsmonitoring Niedersachsen 2018 und 2019 ist dadurch eingeschränkt.
D26: Quelle: Mikrozensus
D27: Abbildung B9-1: Höchster beruflicher Abschluss der 25- bis unter 35-Jährigen 2005 und 2018 nach Geschlecht und Zuwanderungsgeschichte in Prozent
D82: Link zur LSN-Online-Datenbank
D83: Link zum Regionalmonitoring Niedersachsen

Sheet B10
D1: =Kopf -> Migration und Teilhabe in Niedersachsen - Integrationsmonitoring 2019 - aktuelle Ergebnisse
D5: Indikator B10: Ausbildungsbeteiligungsquote im dualen System nach Geschlecht und Nationalität
D6: Tabelle B10-1: Ausbildungsbeteiligungsquote im dualen System nach Geschlecht und Nationalität
D8: Jahr | E8: Ausbildungsbeteiligungsquote1) der 18- bis unter 21-Jährigen
E9: Insgesamt | H9: Deutsche | K9: Ausländerinnen und Ausländer
E10: Insgesamt | F10: Männer | G10: Frauen | H10: Insgesamt | I10: Männer | J10: Frauen | K10: Insgesamt | L10: Männer | M10: Frauen
E11: Prozent
D12: 1 | E12: 2 | F12: 3 | G12: 4 | H12: 5 | I12: 6 | J12: 7 | K12: 8 | L12: 9 | M12: 10
D13: 2008 | E13: 28.6 | F13: 33.6 | G13: 23.2 | H13: 30.4 | I13: 35.7 | J13: 24.6 | K13: 7.3 | L13: 8.2 | M13: 6.2
D14: 2009 | E14: 28.3 | F14: 33.0 | G14: 23.3 | H14: 30.0 | I14: 35.1 | J14: 24.7 | K14: 7.8 | L14: 8.6 | M14: 6.9
D15: 2011 | E15: 28.9 | F15: 33.9 | G15: 23.5 | H15: 30.7 | I15: 36.1 | J15: 24.9 | K15: 8.1 | L15: 9.0 | M15: 7.1
D16: 2012 | E16: 28.7 | F16: 34.2 | G16: 22.8 | H16: 30.5 | I16: 36.5 | J16: 24.2 | K16: 7.9 | L16: 8.6 | M16: 7.1
D17: 2013 | E17: 28.3 | F17: 33.9 | G17: 22.3 | H17: 30.1 | I17: 36.2 | J17: 23.7 | K17: 8.1 | L17: 9.3 | M17: 6.9
D18: 2014 | E18: 27.8 | F18: 33.5 | G18: 21.6 | H18: 29.5 | I18: 35.8 | J18: 22.8 | K18: 8.2 | L18: 9.4 | M18: 6.8
D19: 2015 | E19: 26.5 | F19: 31.4 | G19: 21.0 | H19: 29.0 | I19: 35.2 | J19: 22.5 | K19: 6.0 | L19: 6.2 | M19: 5.7
D20: 2016 | E20: 26.4 | F20: 31.4 | G20: 20.9 | H20: 28.9 | I20: 35.2 | J20: 22.3 | K20: 7.4 | L20: 7.1 | M20: 7.8
D21: 2017 | E21: 26.1 | F21: 31.4 | G21: 20.4 | H21: 28.5 | I21: 34.9 | J21: 21.7 | K21: 9.3 | L21: 9.9 | M21: 8.5
D23: 1) Auszubildende im dualen System im Alter von 18 bis unter 21 Jahren bezogen auf die Bevölkerungsgruppe im gleichen Alter (Quotensumme) am 31.12 des jeweiligen Jahres.
D25: Quellen: Statistische Ämter des Bundes und der Länder, Berufsbildungsstatistik
D28: Abbildung B10-1: Ausbildungsbeteiligungsquote der 18- bis unter 21-Jährigen nach Geschlecht und Nationalität in Prozent
D76: Link zur LSN-Online-Datenbank
D77: Link zum Regionalmonitoring Niedersachsen

Sheet B11
D1: =Kopf -> Migration und Teilhabe in Niedersachsen - Integrationsmonitoring 2019 - aktuelle Ergebnisse
D5: Indikator B11: Ausländische Studentinnen und Studenten nach Land des Erwerbs der Studienberechtigung
D6: Tabelle B11-1: Ausländische Studentinnen und Studenten 2005 und 2018 nach Geschlecht, Staatsangehörigkeit und Land des Erwerbs der Studienberechtigung
D8: Land der Staatsangehörigkeit1) | E8: Semester | F8: Ausländische Studierende | I8: davon
F9: Insgesamt | G9: Männer | H9: Frauen | I9: Bildungsinländerinnen und -inländer | L9: Bildungsausländerinnen und -ausländer
I10: Insgesamt | J10: Männer | K10: Frauen | L10: Insgesamt | M10: Männer | N10: Frauen
D11: 1 | E11: 2 | F11: 3 | G11: 4 | H11: 5 | I11: 6 | J11: 7 | K11: 8 | L11: 9 | M11: 10 | N11: 11
D12: China | E12: WS 2005/06 | F12: 3 080 | G12: 1 700 | H12: 1 380 | I12: 2 967 | J12: 1 636 | K12: 1 331 | L12: 113 | M12: 64 | N12: 49
D13: Türkei | E13: WS 2005/06 | F13: 1 141 | G13: 735 | H13: 406 | I13: 455 | J13: 332 | K13: 123 | L13: 686 | M13: 403 | N13: 283
D14: Syrien, Arab. Republik | E14: WS 2005/06 | F14: 156 | G14: 121 | H14: 35 | I14: 149 | J14: 118 | K14: 31 | L14: 7 | M14: 3 | N14: 4
D15: Indien | E15: WS 2005/06 | F15: 284 | G15: 218 | H15: 66 | I15: 270 | J15: 208 | K15: 62 | L15: 14 | M15: 10 | N15: 4
D16: Tunesien | E16: WS 2005/06 | F16: 397 | G16: 341 | H16: 56 | I16: 387 | J16: 336 | K16: 51 | L16: 10 | M16: 5 | N16: 5
D17: Staaten insgesamt | E17: WS 2005/06 | F17: 17 028 | G17: 8 800 | H17: 8 228 | I17: 14 089 | J17: 7 164 | K17: 6 925 | L17: 2 939 | M17: 1 636 | N17: 1 303
D18: China | E18: WS 2018/19 | F18: 4 335 | G18: 2 499 | H18: 1 836 | I18: 4 179 | J18: 2 405 | K18: 1 774 | L18: 156 | M18: 94 | N18: 62
D19: Türkei | E19: WS 2018/19 | F19: 2 015 | G19: 1 017 | H19: 998 | I19: 466 | J19: 281 | K19: 185 | L19: 1 549 | M19: 736 | N19: 813
D20: Syrien, Arab. Republik | E20: WS 2018/19 | F20: 1 267 | G20: 1 006 | H20: 261 | I20: 1 168 | J20: 948 | K20: 220 | L20: 99 | M20: 58 | N20: 41
D21: Indien | E21: WS 2018/19 | F21: 1 063 | G21: 814 | H21: 249 | I21: 1 057 | J21: 810 | K21: 247 | L21: 6 | M21: 4 | N21: 2
D22: Tunesien | E22: WS 2018/19 | F22: 943 | G22: 774 | H22: 169 | I22: 929 | J22: 762 | K22: 167 | L22: 14 | M22: 12 | N22: 2
D23: Staaten insgesamt | E23: WS 2018/19 | F23: 23 707 | G23: 13 360 | H23: 10 347 | I23: 19 186 | J23: 11 160 | K23: 8 026 | L23: 4 521 | M23: 2 200 | N23: 2 321
D25: 1) Aufgeführt sind die fünf häufigsten Staatsangehörigkeiten der ausländischen Studierenden im WS 2017/18 in Niedersachsen.
D27: Quelle: Hochschulen, ICE Niedersachsen
D29: Abbildung B11-1: Ausländische Studentinnen und Studenten 2005 und 2018 nach Geschlecht, Staatsangehörigkeit und Land des Erwerbs der Studienberechtigung
G33: Anteile Bildungsausländerinnen
G34: Insgesamt | H34: Männer | I34: Frauen
E35: =D12 -> China | F35: WS 2005/06 | G35: =L12/F12*100 -> 3.7 | H35: =M12/G12*100 -> 3.8 | I35: =N12/H12*100 -> 3.6
E36: Türkei | F36: WS 2005/06 | G36: 60.1 | H36: 54.8 | I36: 69.7
E37: Syrien, Arab. Republik | F37: WS 2005/06 | G37: 4.5 | H37: 2.5 | I37: 11.4
E38: Indien | F38: WS 2005/06 | G38: 4.9 | H38: 4.6 | I38: 6.1
E39: Tunesien | F39: WS 2005/06 | G39: 2.5 | H39: 1.5 | I39: 8.9
E40: Staaten insgesamt | F40: WS 2005/06 | G40: 17.3 | H40: 18.6 | I40: 15.8
E41: China | F41: WS 2018/19 | G41: 3.6 | H41: 3.8 | I41: 3.4
E42: Türkei | F42: WS 2018/19 | G42: 76.9 | H42: 72.4 | I42: 81.5
E43: Syrien, Arab. Republik | F43: WS 2018/19 | G43: 7.8 | H43: 5.8 | I43: 15.7
E44: Indien | F44: WS 2018/19 | G44: 0.6 | H44: 0.5 | I44: 0.8
E45: Tunesien | F45: WS 2018/19 | G45: 1.5 | H45: 1.6 | I45: 1.2
E46: Staaten insgesamt | F46: WS 2018/19 | G46: 19.1 | H46: 16.5 | I46: 22.4
D79: Link zur LSN-Online-Datenbank
D80: Link zum Regionalmonitoring Niedersachsen

Sheet B12
D1: =Kopf -> Migration und Teilhabe in Niedersachsen - Integrationsmonitoring 2019 - aktuelle Ergebnisse
D5: Indikator B12: Hochschulabschlüsse im Prüfungsjahr nach Fächergruppe, Nationalität und Geschlecht der Absolventinnen und Absolventen
D6: Tabelle B12-1-1: Hochschulabschlüsse im Prüfungsjahr 2018 nach Fächergruppe, Nationalität und Geschlecht der Absolventinnen und Absolventen
D8: Fächergruppe des 1. Studiengangs1) | E8: Bestandene Abschlussprüfungen an niedersächsischen Hochschulen 2018 nach Absolventinnen und Absolventen
E9: Insgesamt | H9: Deutsche | K9: Ausländerinnen und Ausländer
E10: Insgesamt | F10: Männer | G10: Frauen | H10: Insgesamt | I10: Männer | J10: Frauen | K10: Insgesamt | L10: Männer | M10: Frauen
E11: Anzahl
D12: 1 | E12: 2 | F12: 3 | G12: 4 | H12: 5 | I12: 6 | J12: 7 | K12: 8 | L12: 9 | M12: 10
D13: Sprach- und Kulturwissenschaften | E13: 2 470 | F13: 574 | G13: 1 896 | H13: 2 381 | I13: 554 | J13: 1 827 | K13: 89 | L13: 20 | M13: 69
D14: Sport | E14: 255 | F14: 131 | G14: 124 | H14: 255 | I14: 131 | J14: 124 | K14: - | L14: - | M14: -
D15: Rechts-, Wirtschafts- und Sozialwissenschaften | E15: 9 467 | F15: 3 515 | G15: 5 952 | H15: 9 171 | I15: 3 429 | J15: 5 742 | K15: 296 | L15: 86 | M15: 210
D16: Mathematik, Naturwissenschaften | E16: 2 306 | F16: 1 058 | G16: 1 248 | H16: 2 229 | I16: 1 018 | J16: 1 211 | K16: 77 | L16: 40 | M16: 37
D17: Humanmedizin / Gesundheitswissenschaften | E17: 1 382 | F17: 372 | G17: 1 010 | H17: 1 325 | I17: 350 | J17: 975 | K17: 57 | L17: 22 | M17: 35
D18: Veterinärmedizin | E18: 1 262 | F18: 629 | G18: 633 | H18: 1 238 | I18: 618 | J18: 620 | K18: 24 | L18: 11 | M18: 13
D19: Agrar-, Forst- und Ernährungswissenschaften | E19: 5 759 | F19: 4 513 | G19: 1 246 | H19: 5 314 | I19: 4 221 | J19: 1 093 | K19: 445 | L19: 292 | M19: 153
D20: Ingenieurwissenschaften | E20: 861 | F20: 274 | G20: 587 | H20: 803 | I20: 259 | J20: 544 | K20: 58 | L20: 15 | M20: 43
D21: Kunst, Kunstwissenschaft | E21: 15 | F21: 7 | G21: 8 | H21: 14 | I21: 6 | J21: 8 | K21: 1 | L21: 1 | M21: -
D22: Fächergruppen zusammen | E22: 23 777 | F22: 11 073 | G22: 12 704 | H22: 22 730 | I22: 10 586 | J22: 12 144 | K22: 1 047 | L22: 487 | M22: 560
D24: Tabelle B12-1-2: Hochschulabschlüsse im Prüfungsjahr 2018 nach Fächergruppe, Nationalität und Geschlecht der Absolventinnen und Absolventen in Prozent
D26: Fächergruppe des 1. Studiengangs1) | E26: Bestandene Abschlussprüfungen an niedersächsischen Hochschulen 2018 nach Absolventinnen und Absolventen
E27: Insgesamt | H27: Deutsche | K27: Ausländerinnen und Ausländer
E28: Insgesamt | F28: Männer | G28: Frauen | H28: Insgesamt | I28: Männer | J28: Frauen | K28: Insgesamt | L28: Männer | M28: Frauen
E29: Prozent
D30: 1 | E30: 2 | F30: 3 | G30: 4 | H30: 5 | I30: 6 | J30: 7 | K30: 8 | L30: 9 | M30: 10
D31: Sprach- und Kulturwissenschaften | E31: 10.4 | F31: 5.2 | G31: 14.9 | H31: 10.5 | I31: 5.2 | J31: 15.0 | K31: 8.5 | L31: 4.1 | M31: 12.3
D32: Sport | E32: 1.1 | F32: 1.2 | G32: 1.0 | H32: 1.1 | I32: 1.2 | J32: 1.0 | K32: - | L32: - | M32: -
D33: Rechts-, Wirtschafts- und Sozialwissenschaften | E33: 39.8 | F33: 31.7 | G33: 46.9 | H33: 40.3 | I33: 32.4 | J33: 47.3 | K33: 28.3 | L33: 17.7 | M33: 37.5
D34: Mathematik, Naturwissenschaften | E34: 9.7 | F34: 9.6 | G34: 9.8 | H34: 9.8 | I34: 9.6 | J34: 10.0 | K34: 7.4 | L34: 8.2 | M34: 6.6
D35: Humanmedizin / Gesundheitswissenschaften | E35: 5.8 | F35: 3.4 | G35: 8.0 | H35: 5.8 | I35: 3.3 | J35: 8.0 | K35: 5.4 | L35: 4.5 | M35: 6.3
D36: Veterinärmedizin | E36: 5.3 | F36: 5.7 | G36: 5.0 | H36: 5.4 | I36: 5.8 | J36: 5.1 | K36: 2.3 | L36: 2.3 | M36: 2.3
D37: Agrar-, Forst- und Ernährungswissenschaften | E37: 24.2 | F37: 40.8 | G37: 9.8 | H37: 23.4 | I37: 39.9 | J37: 9.0 | K37: 42.5 | L37: 60.0 | M37: 27.3
D38: Ingenieurwissenschaften | E38: 3.6 | F38: 2.5 | G38: 4.6 | H38: 3.5 | I38: 2.4 | J38: 4.5 | K38: 5.5 | L38: 3.1 | M38: 7.7
D39: Kunst, Kunstwissenschaft | E39: 0.1 | F39: 0.1 | G39: 0.1 | H39: 0.1 | I39: 0.1 | J39: 0.1 | K39: 0.1 | L39: 0.2 | M39: -
D40: Fächergruppen zusammen | E40: 100.0 | F40: 100.0 | G40: 100.0 | H40: 100.0 | I40: 100.0 | J40: 100.0 | K40: 100.0 | L40: 100.0 | M40: 100.0
D42: 1)Die ab Wintersemester 2015/16 gültige Fächersystematik bewirkt eine teilweise Neuzuordnung von Studienbereichen zu Fächergruppen. Die Ergebnisse nach einzelnen Fächergruppen sind daher nur eingeschränkt mit den Vorjahren vergleichbar.
D45: Quelle: Hochschulen, ICE Niedersachsen
D48: Abbildung B12-1: Hochschulabschlüsse im Prüfungsjahr 2018 nach Fächergruppe, Nationalität und Geschlecht der Absolventinnen und Absolventen in Prozent
O60: Insgesamt
O61: Frauen
O62: Männer
D92: Link zur LSN-Online-Datenbank
D93: Link zum Regionalmonitoring Niedersachsen

Sheet B13
D1: =Kopf -> Migration und Teilhabe in Niedersachsen - Integrationsmonitoring 2019 - aktuelle Ergebnisse
D5: Indikator B13: Frühe Schulabgängerinnen und Schulabgänger nach Geschlecht, Zuwanderungsgeschichte und eigener Migrationserfahrung
D6: Tabelle B13-1: Frühe Schulabgängerinnen und Schulabgänger nach Geschlecht, Zuwanderungsgeschichte und eigener Migrationserfahrung
D8: Geschlecht | E8: Jahr | F8: Insgesamt | G8: Bevölkerung ohne Migrationshintergrund | H8: Bevölkerung mit Migrationshintergrund
H9: Insgesamt | I9: mit | J9: ohne
I10: eigene/r Migrationserfahrung
E11: Prozent
D12: 1 | E12: 2 | F12: 3 | G12: 4 | H12: 5 | I12: 6 | J12: 7
D13: Insgesamt | E13: 2018 | F13: 11.0 | G13: 8.1 | H13: 20.2 | I13: 26,0 | J13: 14,7
D14: Männer | E14: 2018 | F14: 12.1 | G14: 9.1 | H14: 20.9 | I14: 25,9 | J14: (15,7)
D15: Frauen | E15: 2018 | F15: 9.7 | G15: 7.0 | H15: 19.3 | I15: (26,2) | J15: /
D16: Insgesamt | E16: 2017 | F16: 11.3 | G16: 8.0 | H16: 21.2 | I16: 26.8 | J16: 15.8
D17: Männer | E17: 2017 | F17: 12.2 | G17: 8.7 | H17: 21.6 | I17: 27.0 | J17: (15.8)
D18: Frauen | E18: 2017 | F18: 10.3 | G18: 7.3 | H18: 20.8 | I18: (26.5) | J18: (15.8)
D19: Insgesamt | E19: 2016 | F19: 12.1 | G19: 9.0 | H19: 21.7 | I19: 25,8 | J19: 17,4
D20: Männer | E20: 2016 | F20: 12.5 | G20: 9.2 | H20: 22.3 | I20: 24,1 | J20: (20,5)
D21: Frauen | E21: 2016 | F21: 11.5 | G21: 8.9 | H21: 20.9 | I21: (28,0) | J21: /
D22: Insgesamt | E22: 2015 | F22: 10.7 | G22: 8.5 | H22: 18.8 | I22: 24,4 | J22: (13,2)
D23: Männer | E23: 2015 | F23: 10.8 | G23: 8.4 | H23: 19.7 | I23: (24,7) | J23: /
D24: Frauen | E24: 2015 | F24: 10.5 | G24: 8.6 | H24: 17.8 | I24: (24,0) | J24: /
D25: Insgesamt | E25: 2014 | F25: 10.7 | G25: 8.7 | H25: 18.6 | I25: 22,4 | J25: (14,7)
D26: Männer | E26: 2014 | F26: 11.5 | G26: 9.8 | H26: 18.3 | I26: (21,2) | J26: /
D27: Frauen | E27: 2014 | F27: 9.9 | G27: 7.5 | H27: 18.9 | I27: (23,6) | J27: /
D28: Insgesamt | E28: 2013 | F28: 10.7 | G28: 9.1 | H28: 16.5 | I28: 19,4 | J28: (13,4)
D29: Männer | E29: 2013 | F29: 11.0 | G29: 9.4 | H29: 16.9 | I29: (18,4) | J29: /
D30: Frauen | E30: 2013 | F30: 10.3 | G30: 8.7 | H30: 16.1 | I30: (20,5) | J30: /
D31: Insgesamt | E31: 2012 | F31: 11.6 | G31: 9.8 | H31: 18.2 | I31: 20,5 | J31: (15,2)
D32: Männer | E32: 2012 | F32: 13.1 | G32: 11.1 | H32: 20.3 | I32: (21,6) | J32: (18,7)
D33: Frauen | E33: 2012 | F33: 9.9 | G33: 8.4 | H33: 15.8 | I33: (19,4) | J33: /
D34: Insgesamt | E34: 2011 | F34: 13.9 | G34: 12.4 | H34: 19.5 | I34: 23,3 | J34: (14,2)
D35: Männer | E35: 2011 | F35: 14.2 | G35: 13.0 | H35: 18.8 | I35: (22,3) | J35: /
D36: Frauen | E36: 2011 | F36: 13.6 | G36: 11.9 | H36: 20.2 | I36: (24,3) | J36: /
D37: Insgesamt | E37: 2005 | F37: 16.0 | G37: 13.2 | H37: 25.3 | I37: 25.0 | J37: 26.2
D38: Männer | E38: 2005 | F38: 13.7 | G38: 11.4 | H38: 22.3 | I38: 22.0 | J38: /
D39: Frauen | E39: 2005 | F39: 18.5 | G39: 15.2 | H39: 27.7 | I39: 27.2 | J39: /
D41: 1) Anteil der 18- bis unter 25-Jährigen ohne beruflichen Abschluss und ohne (Fach-)Hochschulreife (maximal ISCED 2), die sich weder in schulischer oder beruflicher Ausbildung befinden noch an einer Weiterbildung teilnehmen, an der Bevölkerung der entsprechenden Altersgruppe. Grundwehr- und Zivildienstleistende werden aus der Berechnung ausgeschlossen. Der Indikator fasst Personen zusammen, die maximal die Sekundarstufe I abgeschlossen haben, also maximal über einen Haupt- oder Realschulabschluss verfügen beziehungsweise maximal die 10. Klasse des Gymnasiums oder ein Berufsvorbereitungsjahr abgeschlossen haben.
D42: 2) Hochrechnung für die Jahre ab Mikrozensus 2011 anhand der Bevölkerungsfortschreibung auf Basis des Zensus 2011. Die Hochrechnung für die Vorjahre sowie für bislang veröffentlichte Ergebnisse des Mikrozensus 2011-2013 basiert auf den fortgeschriebenen Ergebnissen der Volkszählung 1987. Neuere hier dargestellte Ergebnisse des Mikrozensus sind daher nicht direkt mit den Vorjahren sowie weiteren Veröffentlichungen vergleichbar. So sind bei den absoluten Häufigkeiten hinsichtlich der soziodemographischen und -ökonomischen Merkmale große Veränderungen auszumachen. Mit Blick auf die Anteilswerte an der Gesamtbevölkerung lassen sich jedoch nur minimale Veränderungen feststellen. Frühere Aussagen über die Lebenssituation der Bevölkerung mit Migrationshintergrund sind somit weiterhin gültig.
D43: 3) Seit dem Jahr 2018 wird im Mikrozensus der Migrationshintergrund im weiteren Sinne jährlich berichtet. Durch eine rückwirkende Revision der Mikrozensusdaten wird auch für das Jahr 2017 der Migrationshintergrund im weiteren Sinne dargestellt. Die in den Tabellen ab dem Jahr 2017 berichteten Daten zum Migrationshintergrund entsprechen dem Migrationshintergrund im weiteren Sinne, bis 2016 wird der Migrationshintergrund im engeren Sinne abgebildet. Die Vergleichbarkeit zwischen den Jahren sowie für das Berichtsjahr 2017 zwischen den Berichten des Integrationsmonitoring Niedersachsen 2018 und 2019 ist dadurch eingeschränkt.
D45: Quelle: Mikrozensus; Statistische Ämter des Bundes und der Länder, www.amtliche-sozialberichterstattung.de
D47: Abbildung B13-1: Frühe Schulabgängerinnen und Schulabgänger nach Zuwanderungsgeschichte und Geschlecht
D98: Link zur LSN-Online-Datenbank
D99: Link zum Regionalmonitoring Niedersachsen

Sheet C1
D1: =Kopf -> Migration und Teilhabe in Niedersachsen - Integrationsmonitoring 2019 - aktuelle Ergebnisse
D5: Indikator C1: Erwerbstätige Menschen mit Zuwanderungsgeschichte in Niedersachsen nach Wirtschaftsabschnitten und Geschlecht
D6: Tabelle C1-1: Erwerbstätige Menschen mit Zuwanderungsgeschichte in Niedersachsen 2005 und 2018 nach Wirtschaftsabschnitten und Geschlecht1)
C8: 2018 | D8: Wirtschaftsabschnitte (WZ 2008) Zusammenfassungen | E8: Erwerbstätige mit Migrationshintergrund3)
C9: 2005 | E9: 20182)
E10: Männer | F10: Frauen | G10: Insgesamt
E11: 1 000
D12: 1 | E12: 2 | F12: 3 | G12: 4
D13: Land- und Forstwirtschaft, Fischerei | E13: 9.23728 | F13: / | G13: 14.14961
D14: Bergbau und Gewinnung von Steinen und Erden; Verarbeitendes Gewerbe | E14: 141.85381 | F14: 45.82994 | G14: 187.68375
D15: Energieversorgung; Wasserversorgung, Entsorg., Beseitig. v. Umweltverschmutzungen | E15: 6.92941 | F15: / | G15: 8.9252
D16: Baugewerbe | E16: 58.64286 | F16: 6.54735 | G16: 65.19022
D17: Handel, Instandhaltung und Reparatur von Kfz | E17: 67.82863 | F17: 62.08959 | G17: 129.91822
D18: Verkehr und Lagerei; Information und Kommunikation | E18: 50.17224 | F18: 11.51253 | G18: 61.68477
D19: Gastgewerbe | E19: 31.44165 | F19: 26.75016 | G19: 58.19181
D20: Erbringung von Finanz- und Versicherungsleistungen; Grundstücks- und Wohnungswesen; Freiberufliche, wiss. u. techn. Dienstleistungen; sonst. wirt. Dienstleistungen | E20: 40.48726 | F20: 46.75056 | G20: 87.23781
D21: ÖffentlicheVerwaltung, Verteidigung, Sozialversicherung; Erziehung und Unterricht; Gesundheits- und Sozialwesen | E21: 42.32957 | F21: 113.60674 | G21: 155.93631
D22: Kunst, Unterhaltung und Erholung; Erbringung von sonstigen Dienstleistungen | E22: 11.60702 | F22: 19.54615 | G22: 31.15317
D23: Insgesamt (inkl. sonstiger Abschnitte) | E23: 460.73617 | F23: 345.1761 | G23: 805.91227
D25: Wirtschaftsabschnitte (WZ 2003) Zusammenfassungen | E25: Erwerbstätige mit Migrationshintergrund
E26: 2005
E27: Männer | F27: Frauen | G27: Insgesamt
E28: 1 000
D30: 1 | E30: 2 | F30: 3 | G30: 4
D31: Land- und Forstwirtschaft; Fischerei und Fischzucht | E31: 8.7 | F31: / | G31: 11.2
D32: Bergbau und Gewinnung von Steinen und Erden; Verarbeitendes Gewerbe | E32: 91.5 | F32: 34 | G32: 125.5
D33: Energie- und Wasserversorgung | E33: / | F33: / | G33: /
D34: Baugewerbe | E34: 28.3 | F34: / | G34: 30.2
D35: Handel; Instandhaltung und Reparatur von Kraftfahrzeugen und Gebrauchsgütern | E35: 35.1 | F35: 34 | G35: 69.1
D36: Gastgewerbe | E36: 23.9 | F36: 19.6 | G36: 43.5
D37: Verkehr und Nachrichtenübermittlung | E37: 16.5 | F37: / | G37: 20.7
D38: Kredit- und Versicherungsgewerbe; Grundstücks- und Wohnungswesen, Vermietung beweglicher Sachen, Erbringung von wirt.Dienstleistungen, anderweitig nicht genannt | E38: 18.3 | F38: 19.6 | G38: 37.9
D39: Öffentliche Verwaltung, Verteidigung, Sozialversicherung; Erziehung und Unterricht; Gesundheits-, Veterinär- und Sozialwesen | E39: 26.6 | F39: 52.5 | G39: 79.2
D40: Erbringung von sonstigen öffentlichen und persönlichen Dienstleistungen | E40: 13.4 | F40: 18.1 | G40: 31.5
D41: Insgesamt (inkl. sonstiger Abschnitte) | E41: 264.8 | F41: 190.2 | G41: 455
D43: 1) Die Angabe des Wirtschaftszweiges erfolgte im Erhebungsjahr 2018 nach der Klassifikation der Wirtschaftszweige, Ausgabe 2008 (WZ 2008). Im Jahr 2005 wurde hingegen die zu diesem Zeitpunkt gültige Klassifikation der Wirtschaftszweige, Ausgabe 2003 (WZ 2003), zugrunde gelegt. Aufgrund von größeren Verschiebungen bzw. Änderungen in den fachlichen Zuordnungen sind die dargestellten Werte in den Erhebungsjahren 2018 und 2005 nur sehr eingeschränkt vergleichbar.
D44: 2) Hochrechnung anhand der Bevölkerungsfortschreibung auf Basis des Zensus 2011. Die Hochrechnung für die Jahre vor 2011 sowie für bislang veröffentlichte Ergebnisse des Mikrozensus 2011-2013 basiert auf den fortgeschriebenen Ergebnissen der Volkszählung 1987. In 2016 erfolgte die Umstellung auf eine neue Mikrozensus-Stichprobe. Ab 2017 wird nur noch die Bevölkerung in Privathaushalten (ohne Gemeinschaftsunterkünfte) ausgewiesen. Dadurch ergibt sich jeweils eine eingeschränkte Vergleichbarkeit mit den Vorjahren.
D45: 3) Seit dem Jahr 2018 wird im Mikrozensus der Migrationshintergrund im weiteren Sinne jährlich berichtet. Durch eine rückwirkende Revision der Mikrozensusdaten wird auch für das Jahr 2017 der Migrationshintergrund im weiteren Sinne dargestellt. Die in den Tabellen ab dem Jahr 2017 berichteten Daten zum Migrationshintergrund entsprechen dem Migrationshintergrund im weiteren Sinne, bis 2016 wird der Migrationshintergrund im engeren Sinne abgebildet. Die Vergleichbarkeit zwischen den Jahren sowie für das Berichtsjahr 2017 zwischen den Berichten des Integrationsmonitoring Niedersachsen 2018 und 2019 ist dadurch eingeschränkt.
D47: Quelle: Mikrozensus
D50: Abbildung C1-1: Erwerbstätige Menschen mit Zuwanderungsgeschichte in Niedersachsen 2005 und 2018 nach Wirtschaftsabschnitten
D98: Link zur LSN-Online-Datenbank
D99: Link zum Regionalmonitoring Niedersachsen

Sheet C2
D1: =Kopf -> Migration und Teilhabe in Niedersachsen - Integrationsmonitoring 2019 - aktuelle Ergebnisse
D5: Indikator C2: Erwerbsquote, Erwerbstätigenquote und Erwerbslosenanteil nach Zuwanderungsgeschichte
D6: Tabelle C2-1: Erwerbsquote, Erwerbstätigenquote und Erwerbslosenanteil 2005 und 2018 nach Zuwanderungsgeschichte1)
D9: Jahr | E9: Geschlecht | F9: Erwerbsquote2) | K9: Erwerbstätigenquote2) | P9: Erwerbslosenanteil2)
F10: Insgesamt | G10: Migrationsstatus3) | K10: Insgesamt | L10: Migrationsstatus3) | P10: Insgesamt | Q10: Migrationsstatus3)
G11: ohne Migrationshintergrund | H11: mit Migrationshintergrund | I11: davon | L11: ohne Migrationshintergrund | M11: mit Migrationshintergrund | N11: davon | Q11: ohne Migrationshintergrund | R11: mit Migrationshintergrund | S11: davon
I12: mit Migrationshintergrund und eigener Migrationserfahrung | J12: mit Migrationshintergrund und ohne eigene Migrationserfahrung | N12: mit Migrationshintergrund und eigener Migrationserfahrung | O12: mit Migrationshintergrund und ohne eigene Migrationserfahrung | S12: mit Migrationshintergrund und eigener Migrationserfahrung | T12: mit Migrationshintergrund und ohne eigene Migrationserfahrung
F13: Prozent
D14: 1 | E14: 2 | F14: 3 | G14: 4 | H14: 5 | I14: 6 | J14: 7 | K14: 6 | L14: 7 | M14: 8 | N14: 11 | O14: 12 | P14: 9 | Q14: 10 | R14: 11 | S14: 16 | T14: 17
D15: 2018 | E15: Männer | F15: 82.1 | G15: 83.7 | H15: 76.8 | I15: 80.5 | J15: 60.4 | K15: 79.1 | L15: 81.2 | M15: 71.7 | N15: 75.2 | O15: 56.2 | P15: 3.1 | Q15: 2.5 | R15: 5.1 | S15: 5.3 | T15: 4.2
D16: 2018 | E16: Frauen | F16: 73.5 | G16: 76.7 | H16: 61.9 | I16: 63.9 | J16: 52.1 | K16: 71.4 | L16: 74.8 | M16: 58.6 | N16: 60.8 | O16: 48.2 | P16: 2.2 | Q16: 1.9 | R16: 3.2 | S16: 3.1 | T16: 4.0
D17: 2018 | E17: Insgesamt | F17: 77.9 | G17: 80.2 | H17: 69.7 | I17: 72.5 | J17: 56.6 | K17: 75.3 | L17: 78.0 | M17: 65.5 | N17: 68.3 | O17: 52.5 | P17: 2.6 | Q17: 2.2 | R17: 4.2 | S17: 4.2 | T17: 4.1
D18: 2005 | E18: Männer | F18: 79.6 | G18: 80.4 | H18: 75.9 | I18: 78.6 | J18: 60.5 | K18: 70.9 | L18: 73.0 | M18: 60.7 | N18: 63.1 | O18: 47.0 | P18: 8.7 | Q18: 7.4 | R18: 15.3 | S18: 15.6 | T18: 13.4
D19: 2005 | E19: Frauen | F19: 64.1 | G19: 66.0 | H19: 54.6 | I19: 55.9 | J19: 45.0 | K19: 57.7 | L19: 60.1 | M19: 45.2 | N19: 46.1 | O19: 39.3 | P19: 6.4 | Q19: 5.9 | R19: 9.3 | S19: 9.8 | T19: 5.7
D20: 2005 | E20: Insgesamt | F20: 71.9 | G20: 73.2 | H20: 65.5 | I20: 67.3 | J20: 53.7 | K20: 64.4 | L20: 66.6 | M20: 53.1 | N20: 54.6 | O20: 43.6 | P20: 7.6 | Q20: 6.7 | R20: 12.3 | S20: 12.7 | T20: 10.0
D24: 1) Hochrechnung anhand der Bevölkerungsfortschreibung auf Basis des Zensus 2011. Die Hochrechnung für die Jahre vor 2011 sowie für bislang veröffentlichte Ergebnisse des Mikrozensus 2011-2013 basiert auf den fortgeschriebenen Ergebnissen der Volkszählung 1987. In 2016 erfolgte die Umstellung auf eine neue Mikrozensus-Stichprobe. Ab 2017 wird nur noch die Bevölkerung in Privathaushalten (ohne Gemeinschaftsunterkünfte) ausgewiesen. Dadurch ergibt sich jeweils eine eingeschränkte Vergleichbarkeit mit den Vorjahren.
B25: Erwerbsquote | D25: 2) Bezogen auf die Bevölkerung im Erwerbsalter (15 bis unter 65 Jahre).
B26: Erwerbstätigenquote | D26: 3) Seit dem Jahr 2018 wird im Mikrozensus der Migrationshintergrund im weiteren Sinne jährlich berichtet. Durch eine rückwirkende Revision der Mikrozensusdaten wird auch für das Jahr 2017 der Migrationshintergrund im weiteren Sinne dargestellt. Die in den Tabellen ab dem Jahr 2017 berichteten Daten zum Migrationshintergrund entsprechen dem Migrationshintergrund im weiteren Sinne, bis 2016 wird der Migrationshintergrund im engeren Sinne abgebildet. Die Vergleichbarkeit zwischen den Jahren sowie für das Berichtsjahr 2017 zwischen den Berichten des Integrationsmonitoring Niedersachsen 2018 und 2019 ist dadurch eingeschränkt.
B27: Erwerbslosenanteil
D28: Quelle: Mikrozensus
D30: Abbildung C2-1: Erwerbsstatus der Bevölkerung im Erwerbsalter mit Zuwanderungsgeschichte
D79: Link zur LSN-Online-Datenbank
D80: Link zum Regionalmonitoring Niedersachsen

Sheet C3
D1: =Kopf -> Migration und Teilhabe in Niedersachsen - Integrationsmonitoring 2019 - aktuelle Ergebnisse
D4: Indikator C3: Erwerbslosenanteil 2005 und 2017 nach Zuwanderungsgeschichte und Altersgruppen
D5: Indikator C3: Erwerbslosenanteil nach Zuwanderungsgeschichte
D6: Tabelle C3-1: Erwerbslosenanteil 2005 und 2018 nach Zuwanderungsgeschichte und Altersgruppen und Geschlecht
D7: Altersgruppe von … bis unter … Jahre | E7: Insgesamt / Geschlecht | F7: Erwerbslosenanteil
F8: 2005 | I8: 20181)
F9: Insgesamt | G9: ohne | H9: mit | I9: Insgesamt | J9: ohne | K9: mit | Q9: 2005
M10: Insgesamt | N10: ohne Migrationshintergrund | O10: mit Migrationshintergrund | Q10: 2018
G11: Migrationshintergrund2) | J11: Migrationshintergrund2)
F12: Prozent
D13: 1 | E13: 2 | F13: 3 | G13: 4 | H13: 5 | I13: 6 | J13: 7 | K13: 8
D15: 15 – 25 | E15: Insgesamt | F15: 7.3 | G15: 7.2 | H15: 7.6 | I15: 3.2 | J15: 2.8 | K15: (4.0)
D16: 25 – 35 | E16: Insgesamt | F16: 9.4 | G16: 8.3 | H16: 13.3 | I16: 3.7 | J16: 3.0 | K16: 5.2
D17: 35 – 45 | E17: Insgesamt | F17: 8.0 | G17: 7.0 | H17: 14.1 | I17: 2.6 | J17: 1.7 | K17: 4.5
D18: 45 – 55 | E18: Insgesamt | F18: 8.1 | G18: 7.0 | H18: 14.9 | I18: 2.1 | J18: 1.8 | K18: (3.4)
D19: 55 – 65 | E19: Insgesamt | F19: 4.8 | G19: 3.9 | H19: 12.9 | I19: 2.0 | J19: 1.9 | K19: /
D20: 15 – 65 | E20: Insgesamt | F20: 7.6 | G20: 6.7 | H20: 12.3 | I20: 2.6 | J20: 2.2 | K20: 4.1
D21: 15 – 25 | E21: Männer | F21: 8.1 | G21: 7.8 | H21: (9.2) | I21: 3.5 | J21: (2,8) | K21: (5,1)
D22: 25 – 35 | E22: Männer | F22: 11.1 | G22: 9.2 | H22: 17.7 | I22: 4.3 | J22: 3.5 | K22: (6,2)
D23: 35 – 45 | E23: Männer | F23: 8.6 | G23: 7.2 | H23: 17.0 | I23: 3.2 | J23: (2,1) | K23: (5,5)
D24: 45 – 55 | E24: Männer | F24: 9.4 | G24: 8.0 | H24: 17.4 | I24: 2.3 | J24: 2.1 | K24: /
D25: 55 – 65 | E25: Männer | F25: 6.2 | G25: 5.1 | H25: (16.0) | I25: 2.4 | J25: 2.2 | K25: /
D26: 15 – 65 | E26: Männer | F26: 8.7 | G26: 7.4 | H26: 15.3 | I26: 3.1 | J26: 2.5 | K26: 4.9
D27: 15 – 25 | E27: Frauen | F27: 6.5 | G27: 6.6 | H27: (6.0) | I27: 2.8 | J27: (2,8) | K27: /
D28: 25 – 35 | E28: Frauen | F28: 7.8 | G28: 7.4 | H28: (8.8) | I28: 3.0 | J28: (2,5) | K28: (4,1)
D29: 35 – 45 | E29: Frauen | F29: 7.3 | G29: 6.8 | H29: 10.9 | I29: (1,9) | J29: / | K29: /
D30: 45 – 55 | E30: Frauen | F30: 6.9 | G30: 5.9 | H30: 12.6 | I30: 1.8 | J30: (1,5) | K30: /
D31: 55 – 65 | E31: Frauen | F31: 3.3 | G31: 2.8 | H31: / | I31: (1,6) | J31: (1,6) | K31: /
D32: 15 – 65 | E32: Frauen | F32: 6.4 | G32: 5.9 | H32: 9.3 | I32: 2.2 | J32: 1.9 | K32: 3.2
D34: 1) Hochrechnung anhand der Bevölkerungsfortschreibung auf Basis des Zensus 2011. Die Hochrechnung für die Jahre vor 2011 sowie für bislang veröffentlichte Ergebnisse des Mikrozensus 2011-2013 basiert auf den fortgeschriebenen Ergebnissen der Volkszählung 1987. In 2016 Umstellung erfolgte die auf eine neue Mikrozensus-Stichprobe. Ab 2017 wird nur noch die Bevölkerung in Privathaushalten (ohne Gemeinschaftsunterkünfte) ausgewiesen. Dadurch ergibt sich jeweils eine eingeschränkte Vergleichbarkeit mit den Vorjahren.
D35: 2) Seit dem Jahr 2018 wird im Mikrozensus der Migrationshintergrund im weiteren Sinne jährlich berichtet. Durch eine rückwirkende Revision der Mikrozensusdaten wird auch für das Jahr 2017 der Migrationshintergrund im weiteren Sinne dargestellt. Die in den Tabellen ab dem Jahr 2017 berichteten Daten zum Migrationshintergrund entsprechen dem Migrationshintergrund im weiteren Sinne, bis 2016 wird der Migrationshintergrund im engeren Sinne abgebildet. Die Vergleichbarkeit zwischen den Jahren sowie für das Berichtsjahr 2017 zwischen den Berichten des Integrationsmonitoring Niedersachsen 2018 und 2019 ist dadurch eingeschränkt.
D37: Quelle: Mikrozensus
D39: Abbildung C3-1: Erwerbslosenanteil 2005 und 2018 nach Zuwanderungsgeschichte und Altersgruppen in Prozent
D86: Link zur LSN-Online-Datenbank
D87: Link zum Regionalmonitoring Niedersachsen

Sheet C4
D1: =Kopf -> Migration und Teilhabe in Niedersachsen - Integrationsmonitoring 2019 - aktuelle Ergebnisse
D5: Indikator C4: Sozialversicherungspflichtig beschäftigte Ausländerinnen und Ausländer nach Art der Ausbildung
D6: Tabelle C4-1: Sozialversicherungspflichtig beschäftigte Ausländerinnen und Ausländer am Arbeitsort am 30.06.2018 nach Art der Ausbildung und Statistischen Regionen
D8: Statistische Region Land | E8: Sozialversicherungspflichtig beschäftigte Ausländerinnen und Ausländer | H8: Darunter nach Qualifikation1)
E9: Insgesamt | F9: Männer | G9: Frauen | H9: hoch | I9: mittel | J9: niedrig | K9: unbekannt
E10: Anzahl | H10: Prozent
D11: 1 | E11: 2 | F11: 3 | G11: 4 | H11: 5 | I11: 6 | J11: 7 | K11: 8
C12: 1 | D12: Stat. Region Braunschweig | E12: 47 066 | F12: 31 429 | G12: 15 637 | H12: 19.2 | I12: 33.2 | J12: 21.8 | K12: 25.8
C13: 2 | D13: Stat. Region Hannover | E13: 79 418 | F13: 50 474 | G13: 28 944 | H13: 11.9 | I13: 33.2 | J13: 26.3 | K13: 28.6
C14: 3 | D14: Stat. Region Lüneburg | E14: 39 896 | F14: 27 474 | G14: 12 422 | H14: 8.9 | I14: 30.3 | J14: 24.1 | K14: 36.7
C15: 4 | D15: Stat. Region Weser-Ems | E15: 89 139 | F15: 60 669 | G15: 28 470 | H15: 6.8 | I15: 26.7 | J15: 24.1 | K15: 42.4
C16: 0 | D16: Niedersachsen | E16: 255 519 | F16: 170 046 | G16: 85 473 | H16: 11.0 | I16: 30.5 | J16: 24.4 | K16: 34.1
D19: 1) Beschäftigte ohne Angabe der Qualifikation werden nicht aufgeführt; hoch = akademischer Abschluss (Bachelor, Diplom, Magister, Master, Staatsexamen, Promotion); mittel = Abschluss einer anerkannten Berufsausbildung , Meister-/Techniker- oder gleichwertiger Fachschulabschluss; niedrig = ohne abgeschlossene Berufsausbildung
D22: Quelle: Beschäftigungsstatistik der Bundesagentur für Arbeit
D24: Abbildung C4-1: Sozialversicherungspflichtig beschäftigte Ausländerinnen und Ausländer am 30.06.2018 nach Art der Ausbildung und Statistischen Regionen in Prozent
D77: Link zur LSN-Online-Datenbank
D78: Link zum Regionalmonitoring Niedersachsen

Sheet C6
D1: =Kopf -> Migration und Teilhabe in Niedersachsen - Integrationsmonitoring 2019 - aktuelle Ergebnisse
D3: Indikator C6: Entwicklung der Arbeitslosenquote
D4: Tabelle C6-1: Entwicklung der Arbeitslosenquoten nach Staatsangehörikeit und Geschlecht
D6: Berichtsmonat1) | E6: Arbeitslosenquote Insgesamt (alle Erwerbspersonen) | H6: Arbeitslosenquote von Ausländerinnen und Ausländern (alle Erwerbspersonen) | K6: Abstand der Arbeitslosenquote von Ausländerinnen und Ausländern zu Insgesamt | N6: Arbeitslosenquote (Insgesamt) der bis unter 25-Jährigen | Q6: Arbeitslosenquote der Ausländerinnen und Ausländer bis unter 25 Jahren | T6: Abstand der Arbeitslosenquote von Ausländerinnen und Ausländern zu Insgesamt
E7: Insgesamt | F7: Männer | G7: Frauen | H7: Insgesamt | I7: Männer | J7: Frauen | K7: Insgesamt | L7: Männer | M7: Frauen | N7: Insgesamt | O7: 15 bis unter 20 Jahre | P7: 20 bis unter 25 Jahre | Q7: Insgesamt | R7: 15 bis unter 20 Jahre | S7: 20 bis unter 25 Jahre | T7: Insgesamt | U7: 15 bis unter 20 Jahre | V7: 20 bis unter 25 Jahre
E8: Prozent | K8: Prozentpunkte | N8: Prozent | T8: Prozentpunkte
D9: 1 | E9: 2 | F9: 3 | G9: 4 | H9: 5 | I9: 6 | J9: 7 | K9: 8 | L9: 9 | M9: 10 | N9: 11 | O9: 12 | P9: 13 | Q9: 14 | R9: 15 | S9: 16 | T9: 17 | U9: 18 | V9: 19
D10: Juni 2007 | E10: 8.5 | F10: 7.8 | G10: 9.2 | H10: 20.8 | I10: 18.5 | J10: 24.1 | K10: +12.3 | L10: +10.7 | M10: +14.9 | N10: 7.9 | O10: 4.7 | P10: 9.3 | Q10: 14.9 | R10: 13.7 | S10: 15.3 | T10: +7.0 | U10: +9.0 | V10: +6.0
D11: Juni 2008 | E11: 7.4 | F11: 6.9 | G11: 7.9 | H11: 19.7 | I11: 17.2 | J11: 23.3 | K11: +12.3 | L11: +10.3 | M11: +15.4 | N11: 7.4 | O11: 3.7 | P11: 9.0 | Q11: 13.6 | R11: 10.0 | S11: 14.8 | T11: +6.2 | U11: +6.3 | V11: +5.8
D12: Juni 2009 | E12: 7.6 | F12: 7.7 | G12: 7.5 | H12: 19.4 | I12: 18.0 | J12: 21.3 | K12: +11.8 | L12: +10.3 | M12: +13.8 | N12: 6.9 | O12: 4.1 | P12: 8.0 | Q12: 12.5 | R12: X | S12: 12.5 | T12: +5.6 | U12: X | V12: +4.5
D13: Juni 2010 | E13: 7.3 | F13: 7.3 | G13: 7.3 | H13: 18.2 | I13: 16.6 | J13: 20.3 | K13: +10.9 | L13: +9.3 | M13: +13.0 | N13: 6.6 | O13: 3.5 | P13: 8.0 | Q13: 12.6 | R13: 9.9 | S13: 13.5 | T13: +6.0 | U13: +6.4 | V13: +5.5
D14: Juni 2011 | E14: 6.7 | F14: 6.5 | G14: 6.9 | H14: 17.2 | I14: 15.5 | J14: 19.5 | K14: +10.5 | L14: +9.0 | M14: +12.6 | N14: 5.4 | O14: 2.9 | P14: 6.5 | Q14: 11.7 | R14: 8.9 | S14: 12.7 | T14: +6.3 | U14: +6.0 | V14: +6.2
D15: Juni 2012 | E15: 6.2 | F15: 6.1 | G15: 6.4 | H15: 16.0 | I15: 14.3 | J15: 18.3 | K15: +9.8 | L15: +8.2 | M15: +11.9 | N15: 5.2 | O15: 3.0 | P15: 6.1 | Q15: 10.9 | R15: 8.2 | S15: 11.8 | T15: +5.7 | U15: +5.2 | V15: +5.7
D16: Juni 2013 | E16: 6.3 | F16: 6.3 | G16: 6.4 | H16: 15.7 | I16: 14.1 | J16: 18.0 | K16: +9.4 | L16: +7.8 | M16: +11.6 | N16: 5.7 | O16: 3.1 | P16: 6.7 | Q16: 11.0 | R16: 9.2 | S16: 11.5 | T16: +5.3 | U16: +6.1 | V16: +4.8
D17: Juni 2014 | E17: 6.3 | F17: 6.3 | G17: 6.3 | H17: 16.0 | I17: 14.1 | J17: 18.5 | K17: +9.7 | L17: +7.8 | M17: +12.2 | N17: 5.3 | O17: 3.0 | P17: 6.2 | Q17: 11.7 | R17: 10.3 | S17: 12.1 | T17: +6.4 | U17: +7.3 | V17: +5.9
D18: Juni 2015 | E18: 5.9 | F18: 5.9 | G18: 5.8 | H18: 16.3 | I18: 14.3 | J18: 19.1 | K18: +10.4 | L18: +8.4 | M18: +13.3 | N18: 4.8 | O18: 2.9 | P18: 5.6 | Q18: 12.0 | R18: 11.5 | S18: 12.1 | T18: +7.2 | U18: +8.6 | V18: +6.5
D19: Juni 2016 | E19: 5.8 | F19: 6.0 | G19: 5.6 | H19: 18.1 | I19: 17.3 | J19: 19.3 | K19: +12.3 | L19: +11.3 | M19: +13.7 | N19: 5.6 | O19: 3.4 | P19: 6.6 | Q19: 18.3 | R19: 16.4 | S19: 18.8 | T19: +12.7 | U19: +13.0 | V19: +12.2
D20: Juni 2017 | E20: 5.6 | F20: 5.8 | G20: 5.5 | H20: 17.7 | I20: 16.3 | J20: 19.8 | K20: +12.1 | L20: +10.5 | M20: +14.3 | N20: 5.3 | O20: 3.1 | P20: 6.3 | Q20: 16.4 | R20: 13.4 | S20: 17.2 | T20: +11.1 | U20: +10.3 | V20: +10.9
D21: Juni 2018 | E21: 5.1 | F21: 5.3 | G21: 5.0 | H21: 15.6 | I21: 14.1 | J21: 17.9 | K21: +10.5 | L21: +8.8 | M21: +12.9 | N21: 4.7 | O21: 2.9 | P21: 5.5 | Q21: 13.5 | R21: 11.2 | S21: 14.1 | T21: +8.8 | U21: +8.3 | V21: +8.6
D22: Juni 2019 | E22: 4.9 | F22: 5.1 | G22: 4.7 | H22: 14.7 | I22: 13.2 | J22: 17.2 | K22: +9.8 | L22: +8.1 | M22: +12.5 | N22: 4.4 | O22: 2.6 | P22: 5.1 | Q22: 12.1 | R22: 9.4 | S22: 12.8 | T22: +7.7 | U22: +6.8 | V22: +7.7
D25: 1) Aufgrund von Datenrevisionen durch die Bundesagentur für Arbeit kann es zu Abweichungen gegenüber Auswertungen mit früherem Erstellungsdatum kommen.
D27: Quelle: Statistik der Bundesagentur für Arbeit, Arbeitsmarkt in Zahlen, Arbeitslose und Arbeitslosenquoten nach ausgewählten Merkmalen, Hannover.
D29: Abbildung C6-1: Entwicklung der Arbeitslosenquoten nach Staatsangehörikeit und Geschlecht in Prozent
D74: Link zur LSN-Online-Datenbank
D75: Link zum Regionalmonitoring Niedersachsen

Sheet C7
D1: =Kopf -> Migration und Teilhabe in Niedersachsen - Integrationsmonitoring 2019 - aktuelle Ergebnisse
D5: Indikator C7: Arbeitslose nach Zuwanderungsgeschichte, Rechtskreis und Geschlecht
D6: Tabelle C7-1: Arbeitslose im Juni 2018 nach Zuwanderungsgeschichte, Rechtskreis und Geschlecht
D8: Geschlecht / Rechtskreis3) | F8: Arbeitslose insgesamt | G8: darunter Befragte mit Angabe zum Migrationshintergrund
G9: Insgesamt | H9: ohne Migrations-hintergrund | I9: mit Migrationshintergrund | L9: ohne Migrations-hintergrund | M9: mit Migrationshintergrund
I10: Insgesamt1) | J10: mit | K10: ohne | M10: Insgesamt1) | N10: mit | O10: ohne
J11: eigene Migrationserfahrung | N11: eigene Migrationserfahrung
F12: Anzahl4) | L12: Prozent2)
D13: 1 | E13: 2 | F13: 3 | G13: 4 | H13: 5 | I13: 6 | J13: 7 | K13: 8 | L13: 9 | M13: 10 | N13: 11 | O13: 12
D14: Männlich | E14: SGB II und SGB III | F14: 121 476 | G14: 96 530 | H14: 54 438 | I14: 42 092 | J14: 32 912 | K14: 8 116 | L14: 56.4 | M14: 43.6 | N14: 34.1 | O14: 8.4
D15: Weiblich | E15: SGB II und SGB III | F15: 100 120 | G15: 78 319 | H15: 44 150 | I15: 34 169 | J15: 27 486 | K15: 5 768 | L15: 56.4 | M15: 43.6 | N15: 35.1 | O15: 7.4
D16: Insgesamt | E16: SGB II und SGB III | F16: 221 597 | G16: 174 850 | H16: 98 588 | I16: 76 262 | J16: 60 399 | K16: 13 884 | L16: 56.4 | M16: 43.6 | N16: 34.5 | O16: 7.9
D17: Männlich | E17: SGB II | F17: 82 723 | G17: . | H17: . | I17: . | J17: . | K17: . | L17: . | M17: . | N17: . | O17: .
D18: Weiblich | E18: SGB II | F18: 68 069 | G18: . | H18: . | I18: . | J18: . | K18: . | L18: . | M18: . | N18: . | O18: .
D19: Insgesamt | E19: SGB II | F19: 150 792 | G19: 118 621 | H19: 59 341 | I19: 59 280 | J19: 47 395 | K19: 10 273 | L19: 50.0 | M19: 50.0 | N19: 40.0 | O19: 8.7
D20: Männlich | E20: SGB III | F20: 38 753 | G20: . | H20: . | I20: . | J20: . | K20: . | L20: . | M20: . | N20: . | O20: .
D21: Weiblich | E21: SGB III | F21: 32 051 | G21: . | H21: . | I21: . | J21: . | K21: . | L21: . | M21: . | N21: . | O21: .
D22: Insgesamt | E22: SGB III | F22: 70 805 | G22: 56 229 | H22: 39 247 | I22: 16 982 | J22: 13 004 | K22: 3 611 | L22: 69.8 | M22: 30.2 | N22: 23.1 | O22: 6.4
D24: 1) einschließlich Personen mit Migrationshintergrund ohne nähere Angabe
D25: 2) Anteile an der Gruppe der im Rahmen der Erhebung befragten Personen
D26: 3) Eine Differenzierung der Arbeitslosen in den beiden Rechtskreisen SGB II und III nach Geschlecht und Migrationshintergrund ist auf Grundlage der zur Verfügung stehenden Daten nicht möglich.
D27: 4) "." = Die Bundesagentur für Arbeit (BA) veröffentlicht keine Arbeitslosenquoten für Personengruppen mit weniger als 1 000 zivilen Erwerbspersonen, da bei zu kleinen Personengruppen überzeichnete oder unplausible Quoten nicht auszuschließen sind.
D29: Quelle: Beschäftigungsstatistik der Bundesagentur für Arbeit
D32: Abbildung C7-1: Arbeitslose im Juni 2018 nach Zuwanderungsgeschichte, Rechtskreis und Geschlecht
G42: ohne Migrationshintergrund | H42: mit Migrationshintergrund
F43: Insgesamt | G43: =L16 -> 56.4 | H43: =M16 -> 43.6
F44: Männer (SGBII und SGBIII) | G44: =L14 -> 56.4 | H44: =M14 -> 43.6
F45: Frauen (SGBII und SGBIII) | G45: =L15 -> 56.4 | H45: =M15 -> 43.6
F46: Insgesamt SGBII | G46: =L19 -> 50.0 | H46: =M19 -> 50.0
F47: Insgesamt SGBIII | G47: =L22 -> 69.8 | H47: =M22 -> 30.2
D77: Link zur LSN-Online-Datenbank
D78: Link zum Regionalmonitoring Niedersachsen

Sheet C8
D1: =Kopf -> Migration und Teilhabe in Niedersachsen - Integrationsmonitoring 2019 - aktuelle Ergebnisse
D3: Indikator C8: Anerkennungsverfahren nach dem Berufsqualifikationsfeststellungsgesetz (BQFG) sowie dem Niedersächsischen Berufsqualifikationsfeststellungsgesetz (NBQFG)
D4: Tabelle C8-1: Anerkennungsverfahren nach dem Berufsqualifikationsfeststellungsgesetz (BQFG) und dem Niedersächsischen Berufsqualifikationsfeststellungsgesetz (NBQFG) 2018 nach Entscheidung vor Rechtsbehelf und Geschlecht
D6: Anerkennungsverfahren nach dem Berufsqualifikationsfeststellungsgesetz (BQFG) und dem Niedersächsischen Berufsqualifikationsfeststellungsgesetz (NBQFG)6)
D7: Geschlecht / Berufshauptgruppe | E7: Insgesamt | G7: Entscheidung vor Rechtsbehelf | M7: sonstige Erledigung - Verfahren ohne Bescheid beendet | N7: Noch keine Entscheidung
F8: abgeschlossene Verfahren | G8: positiv volle Gleichwertigkeit | H8: Auflage einer Ausgleichsmaß- nahme1) | I8: positiv (beschränkter Berufszugang nach HwO)2) | J8: teilweise Gleichwertigkeit3) | K8: positive partieller Berufszugang4) | L8: negativ
E17: Anzahl5)
D18: 1 | E18: 2 | F18: 3 | G18: 4 | H18: 5 | I18: 6 | J18: 7 | K18: 8 | L18: 9 | M18: 10 | N18: 11
D19: Männer | E19: 2 112 | F19: 1 707 | G19: 888 | H19: 492 | I19: - | J19: 303 | K19: - | L19: 24 | M19: 72 | N19: 333
D20: Frauen | E20: 2 466 | F20: 1 845 | G20: 975 | H20: 645 | I20: - | J20: 108 | K20: 18 | L20: 96 | M20: 96 | N20: 525
D21: Insgesamt | E21: 4 578 | F21: 3 552 | G21: 1 863 | H21: 1 137 | I21: - | J21: 411 | K21: 18 | L21: 120 | M21: 171 | N21: 858
D23: darunter medizinische Gesundheitsberufe
D24: Männer | E24: 1 179 | F24: 951 | G24: 480 | H24: 462 | I24: - | J24: - | K24: - | L24: 6 | M24: 30 | N24: 198
D25: Frauen | E25: 1 710 | F25: 1 293 | G25: 750 | H25: 528 | I25: - | J25: 3 | K25: - | L25: 12 | M25: 51 | N25: 369
D26: Insgesamt | E26: 2 889 | F26: 2 244 | G26: 1 230 | H26: 990 | I26: - | J26: 3 | K26: - | L26: 18 | M26: 78 | N26: 567
D28: 1) Bescheide mit Auflage einer Ausgleichsmaßnahme sind nur bei reglementierten Berufen möglich.
D29: 2) Bescheide mit beschränktem positiven Berufszugang nach Handwerksordnung(HwO) sind nur bei reglementierten Berufen im Handwerk möglich.
D30: 3) Bescheide mit teilweiser Gleichwertigkeit der Berufsqualifikation sind nur bei nicht-reglementierten Berufen möglich.
D31: 4) Bescheide "positiv-partieller Berufszugang" sind nur bei reglementierten Berufen möglich.
D32: 5) Aus Datenschutzgründen sind alle Daten (Absolutwerte) jeweils auf ein Vielfaches von 3 gerundet. Der Insgesamtwert kann deshalb von der Summe der Einzelwerte abweichen.
D33: 6) Im Jahr 2016 ist eine Erweiterung der Ausprägungen vorgenommen worden. Die in der Zeitreihensammlung abgebildeten Daten der Vorjahre sind daher nicht direkt vergleichbar.
D35: Quelle: Statistik nach dem Berufsqualifikationsfeststellungsgesetz sowie dem Niedersächsischen Berufsqualifikationsfeststellungsgesetz
D39: Abbildung C8-1: Anerkennungsverfahren nach dem Berufsqualifikationsfeststellungsgesetz (BQFG) und dem Niedersächsischen Berufsqualifikationsfeststellungsgesetz (NBQFG) 2018 nach Entscheidung vor Rechtsbehelf und Geschlecht
D74: Link zur LSN-Online-Datenbank
D75: Link zum Regionalmonitoring Niedersachsen

Sheet D1
D1: =Kopf -> Migration und Teilhabe in Niedersachsen - Integrationsmonitoring 2019 - aktuelle Ergebnisse
D5: Indikator D1: Armutsgefährdungsquoten in Niedersachsen und Deutschland
D6: Tabelle D1-1: Armutsgefährdungsquoten1) 2005 bis 20182) in Niedersachsen und Deutschland nach Zuwanderungsgeschichte und Nationalität
D8: Nationalität / Migrationshintergrund3) | E8: Niedersachsen / Deutschland | F8: Armutsgefährdungsquote
F9: 2005 | G9: 2007 | H9: 2009 | I9: 2010 | J9: 2012 | K9: 2013 | L9: 2014 | M9: 2015 | N9: 2016 | O9: 2017 | P9: 2018
F10: Prozent
D11: 1 | E11: 2 | F11: 3 | G11: 4 | H11: 5 | I11: 6 | J11: 7 | K11: 8 | L11: 9 | M11: 10 | N11: 11 | O11: 12 | P11: 13
D12: deutsche Staatsangehörigkeit | E12: Niedersachsen | F12: 13.1 | G12: 12.8 | H12: 13.0 | I12: 12.9 | J12: 13.9 | K12: 14.5 | L12: 13.8 | M12: 14.0 | N12: 13.5 | O12: 13.3 | P12: 12.5
D13: nichtdeutsche Staatsangehörigkeit | E13: Niedersachsen | F13: 43.0 | G13: 40.3 | H13: 37.9 | I13: 36.7 | J13: 36.5 | K13: 36.0 | L13: 36.6 | M13: 40.5 | N13: 43.0 | O13: 41.0 | P13: 38.5
D14: mit Migrationshintergrund | E14: Niedersachsen | F14: 33.2 | G14: 32.2 | H14: 29.7 | I14: 29.1 | J14: 28.7 | K14: 28.5 | L14: 27.7 | M14: 30.2 | N14: 30.9 | O14: 30.1 | P14: 28.2
D15: ohne Migrationshintergrund | E15: Niedersachsen | F15: 11.7 | G15: 11.3 | H15: 11.5 | I15: 11.5 | J15: 12.4 | K15: 13.0 | L15: 12.6 | M15: 12.7 | N15: 12.2 | O15: 11.9 | P15: 11.2
D16: Insgesamt | E16: Niedersachsen | F16: 15.1 | G16: 14.7 | H16: 14.6 | I16: 14.5 | J16: 15.2 | K16: 15.8 | L16: 15.3 | M16: 15.9 | N16: 16.0 | O16: 15.8 | P16: 15.0
D17: deutsche Staatsangehörigkeit | E17: Deutschland | F17: 12.8 | G17: 12.5 | H17: 13.0 | I17: 12.9 | J17: 13.6 | K17: 13.9 | L17: 13.7 | M17: 13.8 | N17: 13.3 | O17: 13.1 | P17: 12.8
D18: nichtdeutsche Staatsangehörigkeit | E18: Deutschland | F18: 34.3 | G18: 32.6 | H18: 31.8 | I18: 31.7 | J18: 31.5 | K18: 32.0 | L18: 32.5 | M18: 33.7 | N18: 35.5 | O18: 36.2 | P18: 34.8
D19: mit Migrationshintergrund | E19: Deutschland | F19: 28.2 | G19: 26.9 | H19: 26.6 | I19: 26.2 | J19: 26.3 | K19: 26.6 | L19: 26.7 | M19: 27.7 | N19: 28.0 | O19: 28.6 | P19: 27.2
D20: ohne Migrationshintergrund | E20: Deutschland | F20: 11.6 | G20: 11.3 | H20: 11.7 | I20: 11.7 | J20: 12.3 | K20: 12.6 | L20: 12.5 | M20: 12.5 | N20: 12.1 | O20: 11.8 | P20: 11.4
D21: Insgesamt | E21: Deutschland | F21: 14.7 | G21: 14.3 | H21: 14.6 | I21: 14.5 | J21: 15.0 | K21: 15.5 | L21: 15.4 | M21: 15.7 | N21: 15.7 | O21: 15.8 | P21: 15.5
D23: 1) Anteil der Personen mit einem Äquivalenzeinkommen von weniger als 60% des Medians der Äquivalenzeinkommen der Bevölkerung in Privathaushalten am Ort der Hauptwohnung. Das Äquivalenzeinkommen wird auf Basis der neuen OECD-Skala berechnet.
D24: 2) Ergebnisse des Mikrozensus, IT.NRW - Die Hochrechnung basiert ab 2011 auf den fortgeschriebenen Ergebnissen des Zensus 2011 (für die Jahre davor auf den fortgeschriebenen Ergebnissen der Volkszählung 1987). Durch Effekte der Umstellung auf eine neue Stichprobe sowie durch Sondereffekte im Kontext der Bevölkerungsentwicklung ist die Vergleichbarkeit der Mikrozensusergebnisse für das Berichtsjahr 2016 mit den Vorjahren eingeschränkt.
D25: 3) Eine Person hat einen Migrationshintergrund, wenn sie selbst oder mindestens ein Elternteil die deutsche Staatsangehörigkeit nicht durch Geburt besitzt (vgl. Statistisches Bundesamt: Fachserie 1. Reihe 2.2). In den Jahren 2005, 2009, 2013 und ab 2018 können auch Personen, deren Zuordnung zur Bevölkerung mit Migrationshintergrund ausschließlich aus Merkmalen eines nicht im Haushalt lebenden Elternteils resultiert, identifiziert werden und werden mitgezählt (=Migrationshintergrund im weiteren Sinn).
D27: Quelle: Ergebnisse des Mikrozensus, IT.NRW.
D29: Abbildung D1-1: Armutsgefährdungsquoten 2005-2018 in Niedersachsen nach Zuwanderungsgeschichte und Nationalität in Prozent
C33: Niedersachsen
C34: Deutschland
D76: Link zur LSN-Online-Datenbank
D77: Link zum Regionalmonitoring Niedersachsen

Sheet D2
D1: =Kopf -> Migration und Teilhabe in Niedersachsen - Integrationsmonitoring 2019 - aktuelle Ergebnisse
D5: Indikator D2: Empfängerinnen und Empfänger von Mindestsicherungsleistungen
D6: Tabelle D2-1: Empfängerinnen und Empfänger von Mindestsicherungsleistungen nach Nationalität und Statistischen Regionen am 31.12.2018
D7: Statistische Region Land | E7: Empfänger/-innen von Mindestsicherungsleistungen1)
E8: Empfänger/-innen | H8: je 1000 Einwohnerinnen und Einwohner der betreffenden Bevölkerungsgruppe
E9: Insgesamt2) | F9: Deutsche | G9: Ausländerinnen und Ausländer3) | H9: Insgesamt2) | I9: Deutsche | J9: Ausländerinnen und Ausländer3)
E10: Anzahl | H10: Anzahl
D11: 1 | E11: 2 | F11: 3 | G11: 4 | H11: 5 | I11: 6 | J11: 7
D12: Stat. Region Braunschweig | E12: 141 726 | F12: 94 683 | G12: 47 043 | H12: 89 | I12: 65 | J12: 320
D13: Stat. Region Hannover | E13: 234 083 | F13: 139 714 | G13: 94 369 | H13: 109 | I13: 73 | J13: 388
D14: Stat. Region Lüneburg | E14: 131 495 | F14: 89 790 | G14: 41 705 | H14: 77 | I14: 56 | J14: 343
D15: Stat. Region Weser-Ems | E15: 202 412 | F15: 134 728 | G15: 67 684 | H15: 80 | I15: 59 | J15: 284
D16: Niedersachsen | E16: 709 716 | F16: 458 915 | G16: 250 801 | H16: 89 | I16: 63 | J16: 335
D18: 1) SGB II: erwerbsfähige Leistungsberechtigte und nicht erwerbsfähige Leistungsberechtigte. Von der Bundesagentur für Arbeit wurde im April 2016 die SGB-II-Statistik revidiert, und zwar rückwirkend. Es kann daher zu geringfügigen Abweichungen zu Veröffentlichungen der BA kommen. SGB XII: Hilfe zum Lebensunterhalt außerhalb von Einrichtungen (HLU, nach Wohnort); Grundsicherung im Alter und bei Erwerbsminderung nach Wohnort der Bedarfsgemeinschaft, in- und außerhalb von Einrichtungen. Regelleistungen nach dem Asylbewerberleistungsgesetz (örtliche Träger, nach Wohnort).
D19: 2) Einschließlich "keine Zuordnung möglich".
D20: 3) Einschließlich "ohne Angabe", "ungeklärt", "staatenlos", "unbekanntes Ausland".
D22: Quellen: Leistungen nach SGB II: Statistik der Bundesagentur für Arbeit, alle weiteren Daten: Statistische Ämter des Bundes und der Länder. Eigene Berechnung LSN.
D24: Abbildung D2-1: Empfängerinnen und Empfänger von Mindestsicherungsleistungen nach Nationalität und Statistischen Regionen am 31.12.2018
D73: Link zur LSN-Online-Datenbank
D74: Link zum Regionalmonitoring Niedersachsen

Sheet D3
D1: =Kopf -> Migration und Teilhabe in Niedersachsen - Integrationsmonitoring 2019 - aktuelle Ergebnisse
D5: Indikator D3: Empfängerinnen und Empfänger von Mindestsicherungsleistungen nach Altersgruppen
D6: Tabelle D3-1: Empfängerinnen und Empfänger von Mindestsicherungsleistungen nach Nationalität, Altersgruppen und Statistischen Regionen am 31.12.2018
D7: Statistische Region Land | E7: Empfänger/-innen von Mindestsicherungsleistungen1)
E8: Insgesamt | H8: Deutsche | K8: Ausländerinnen und Ausländer
E9: im Alter bis unter 18 Jahren | F9: im Alter von 18 bis unter 65 Jahren | G9: im Alter von 65 Jahren und älter | H9: im Alter bis unter 18 Jahren | I9: im Alter von 18 bis unter 65 Jahren | J9: im Alter von 65 Jahren und älter | K9: im Alter bis unter 18 Jahren | L9: im Alter von 18 bis unter 65 Jahren | M9: im Alter von 65 Jahren und älter
E10: Anzahl je 1 000 Einwohner/-innen der betreffenden Bevölkerungsgruppe
D11: 1 | E11: 2 | F11: 3 | G11: 4 | H11: 5 | I11: 6 | J11: 7 | K11: 8 | L11: 9 | M11: 10
D12: Stat. Region Braunschweig | E12: 148 | F12: 95 | G12: 31 | H12: 99 | I12: 73 | J12: 26 | K12: 585 | L12: 275 | M12: 176
D13: Stat. Region Hannover | E13: 189 | F13: 112 | G13: 42 | H13: 123 | I13: 77 | J13: 30 | K13: 661 | L13: 336 | M13: 284
D14: Stat. Region Lüneburg | E14: 126 | F14: 82 | G14: 26 | H14: 86 | I14: 62 | J14: 23 | K14: 570 | L14: 296 | M14: 180
D15: Stat. Region Weser-Ems | E15: 128 | F15: 83 | G15: 32 | H15: 84 | I15: 64 | J15: 27 | K15: 484 | L15: 238 | M15: 184
D16: Niedersachsen | E16: 147 | F16: 93 | G16: 33 | H16: 97 | I16: 69 | J16: 27 | K16: 571 | L16: 286 | M16: 220
D18: 1) SGB II: erwerbsfähige Leistungsberechtigte und nicht erwerbsfähige Leistungsberechtigte. Von der Bundesagentur für Arbeit wurde im April 2016 die SGB-II-Statistik revidiert, und zwar rückwirkend. Es kann daher zu geringfügigen Abweichungen zu Veröffentlichungen der BA kommen. SGB XII: Hilfe zum Lebensunterhalt außerhalb von Einrichtungen (HLU, nach Wohnort); Grundsicherung im Alter und bei Erwerbsminderung nach Wohnort der Bedarfsgemeinschaft, in- und außerhalb von Einrichtungen. Regelleistungen nach dem Asylbewerberleistungsgesetz (örtliche Träger, nach Wohnort).
D20: Quellen: Leistungen nach SGB II: Statistik der Bundesagentur für Arbeit, alle weiteren Daten: Statistische Ämter des Bundes und der Länder. Eigene Berechnung LSN.
D23: Abbildung D3-1: Empfängerinnen und Empfänger von Mindestsicherlungsleistungen nach Nationalität, Altersgruppen und Statistischen Regionen
D67: Link zur LSN-Online-Datenbank
D68: Link zum Regionalmonitoring Niedersachsen

Sheet D4
D1: =Kopf -> Migration und Teilhabe in Niedersachsen - Integrationsmonitoring 2019 - aktuelle Ergebnisse
D5: Indikator D4: Empfängerinnen und Empfänger von Mindestsicherungsleistungen nach Jahren
D6: Tabelle D4-1: Empfängerinnen und Empfänger von Mindestsicherungsleistungen nach Nationalität
D8: Jahr (Stichtag: 31.12.) | E8: Empfängerinnen und Empfänger von Mindestsicherungsleistungen1)
E9: Deutsche | I9: Ausländerinnen und Ausländer2)
E10: Insgesamt | F10: im Alter bis unter 18 Jahren | G10: im Alter von 18 bis unter 65 Jahren | H10: im Alter von 65 Jahren und älter | I10: Insgesamt | J10: im Alter bis unter 18 Jahren | K10: im Alter von 18 bis unter 65 Jahren | L10: im Alter von 65 Jahren und älter
D11: je 1 000 Einwohnerinnen und Einwohner der jeweiligen Bevölkerungsgruppe3)
D12: 1 | E12: 2 | F12: 3 | G12: 4 | H12: 5 | I12: 6 | J12: 7 | K12: 8 | L12: 9
D13: 2007 | E13: 87 | F13: 145 | G13: 93 | H13: 21 | I13: 263 | J13: 484 | K13: 228 | L13: 147
D14: 2012 | E14: 78 | F14: 129 | G14: 82 | H14: 24 | I14: 283 | J14: 510 | K14: 252 | L14: 206
D15: 2014 | E15: 77 | F15: 131 | G15: 80 | H15: 26 | I15: 308 | J15: 551 | K15: 274 | L15: 207
D16: 2016 | E16: 71 | F16: =11.1*10 -> 111 | G16: =7.5*10 -> 75 | H16: =2.6*10 -> 26 | I16: 342 | J16: =62*10 -> 620 | K16: =33.3*10 -> 333 | L16: =21.7*10 -> 217
D17: 2018 | E17: 63 | F17: 97 | G17: 69 | H17: 27 | I17: 335 | J17: 571 | K17: 286 | L17: 220
D19: 1) SGB II: erwerbsfähige Leistungsberechtigte und nicht erwerbsfähige Leistungsberechtigte. Von der Bundesagentur für Arbeit wurde im April 2016 die SGB-II-Statistik revidiert, und zwar rückwirkend. Es kann daher zu geringfügigen Abweichungen zu Veröffentlichungen der BA kommen. SGB XII: Hilfe zum Lebensunterhalt außerhalb von Einrichtungen (HLU, nach Wohnort); Grundsicherung im Alter und bei Erwerbsminderung nach Wohnort der Bedarfsgemeinschaft, in- und außerhalb von Einrichtungen. Regelleistungen nach dem Asylbewerberleistungsgesetz (örtliche Träger, nach Wohnort).
D20: 2) einschließlich "ohne Angabe", "ungeklärt", "staatenlos", "unbekanntes Ausland"
D21: 3) Bis einschließlich 2010 auf Basis der Bevölkerungsfortschreibung nach der Volkszählung 1987. Ab 2011 auf Basis des Zensus 2011. Das Ergebnis für 2012 wurde im Oktober 2015 auf Grundlage der Ergebnisse des Zensus 2011 revidiert. Es kann daher zu Abweichungen von den bisher veröffentlichten Werten kommen.
D23: Quellen: Leistungen nach SGB II: Statistik der Bundesagentur für Arbeit, alle weiteren Daten: Statistische Ämter des Bundes und der Länder. Eigene Berechnung LSN.
D26: Abbildung D3-1: Empfängerinnen und Empfänger von Mindestsicherungsleistungen nach Nationalität und Altersgruppen
D75: Link zur LSN-Online-Datenbank
D76: Link zum Regionalmonitoring Niedersachsen

Sheet D5
D1: =Kopf -> Migration und Teilhabe in Niedersachsen - Integrationsmonitoring 2019 - aktuelle Ergebnisse
D5: Indikator D5: Mittlere Wohnfläche in m² und mittlere Bruttokaltmiete in Niedersachsen nach Zuwanderungsgeschichte
D6: Tabelle D5-1: Mittlere Wohnfläche in m² und mittlere Bruttokaltmiete in Niedersachsen 2018 nach Zuwanderungsgeschichte
D8: Merkmal | E8: Einheit | F8: Personen insgesamt | G8: ohne | H8: mit | I8: davon
G9: Migrationshintergrund3) | I9: ohne | J9: mit
I10: eigener Migrationserfahrung
F11: Personen Insgesamt | G11: ohne Migrationshintergrund | H11: mit Migrationshintergrund | I11: ohne eigene Migrationsferfahrung | J11: mit eigener Migrationserfahrung
D12: Wohnfläche1) | E12: m 2 | F12: 53.8 | G12: 55.7 | H12: 42.6 | I12: 36.4 | J12: 47.0
D13: Bruttokaltmiete2) | E13: € | F13: 6.71 € | G13: 6.57 € | H13: 7.03 € | I13: 6.92 € | J13: 7.08 €
D15: 1) mittlere Wohnungsgrösse je Person
D16: 2) mittlere Bruttokaltmiete pro m²
D17: 3) Seit dem Jahr 2018 wird im Mikrozensus der Migrationshintergrund im weiteren Sinne jährlich berichtet. Durch eine rückwirkende Revision der Mikrozensusdaten wird auch für das Jahr 2017 der Migrationshintergrund im weiteren Sinne dargestellt. Die in den Tabellen ab dem Jahr 2017 berichteten Daten zum Migrationshintergrund entsprechen dem Migrationshintergrund im weiteren Sinne, bis 2016 wird der Migrationshintergrund im engeren Sinne abgebildet. Die Vergleichbarkeit zwischen den Jahren sowie für das Berichtsjahr 2017 zwischen den Berichten des Integrationsmonitoring Niedersachsen 2018 und 2019 ist dadurch eingeschränkt.
D19: Quelle: Mikrozensus
D21: Abbildung D5-1: Mittlere Wohnfläche in m² und mittlere Bruttokaltmiete in Niedersachsen 2018 nach Zuwanderungsgeschichte
D69: Link zur LSN-Online-Datenbank
D70: Link zum Regionalmonitoring Niedersachsen

Sheet D6
D1: =Kopf -> Migration und Teilhabe in Niedersachsen - Integrationsmonitoring 2019 - aktuelle Ergebnisse
D5: Indikator D6: Bevölkerung am Ort der Hauptwohnung nach Zuwanderungsgeschichte und überwiegendem Lebensunterhalt
D6: Tabelle D6-1: Bevölkerung am Ort der Hauptwohnung nach Zuwanderungsgeschichte und überwiegendem Lebensunterhalt im Jahr 2018
D8: Migrationsstatus1) | E8: Geschlecht | F8: Jahr | G8: Überwiegender Lebensunterhalt
G9: Insgesamt | H9: eigene Erwerbs-/ Berufstätigkeit | I9: Arbeitslosengeld I | J9: Rente und Pension | K9: Einkünfte von Angehörigen | L9: eigenes Vermögen, Vermietung, Zinsen, Altenteil | M9: lfd. Hilfe zum Lebens- unterhalt2) | N9: Leistungen nach dem SGB II | O9: sonstige Unter- stützungen (z.B. BAföG, Elterngeld) | P9: Elterngeld
G10: Prozent
D11: 1 | E11: 2 | F11: 3 | G11: 4 | H11: 5 | I11: 6 | J11: 7 | K11: 8 | L11: 9 | M11: 10 | N11: 11 | O11: 12 | P11: 13
D12: Insgesamt | E12: Insgesamt | F12: 2018 | G12: 100.0 | H12: 45.3 | I12: 0.7 | J12: 21.7 | K12: 25.9 | L12: 0.7 | M12: 0.9 | N12: 3.0 | O12: 1.3 | P12: 0.4
D13: ohne Migrationshintergrund | E13: Männer | F13: 2018 | G13: 100.0 | H13: 51.6 | I13: 0.8 | J13: 24.8 | K13: 18.2 | L13: 1.0 | M13: 0.5 | N13: 2.1 | O13: 1.0 | P13: 0.0
D14: mit Migrationshintergrund | E14: Männer | F14: 2018 | G14: 100.0 | H14: 48.2 | I14: 1.1 | J14: 8.7 | K14: 29.1 | L14: 0.4 | M14: 2.4 | N14: 7.4 | O14: 2.6 | P14: -
D15: Insgesamt | E15: Männer | F15: 2018 | G15: 100.0 | H15: 50.8 | I15: 0.8 | J15: 21.1 | K15: 20.7 | L15: 0.9 | M15: 1.0 | N15: 3.3 | O15: 1.3 | P15: 0.0
D16: ohne Migrationshintergrund | E16: Frauen | F16: 2018 | G16: 100.0 | H16: 41.5 | I16: 0.5 | J16: 25.7 | K16: 27.7 | L16: 0.7 | M16: 0.5 | N16: 1.8 | O16: 1.0 | P16: 0.7
D17: mit Migrationshintergrund | E17: Frauen | F17: 2018 | G17: 100.0 | H17: 34.0 | I17: 0.7 | J17: 9.8 | K17: 43.7 | L17: 0.3 | M17: 2.3 | N17: 6.3 | O17: 2.2 | P17: 0.8
D18: Insgesamt | E18: Frauen | F18: 2018 | G18: 100.0 | H18: 39.9 | I18: 0.5 | J18: 22.3 | K18: 31.1 | L18: 0.6 | M18: 0.9 | N18: 2.7 | O18: 1.3 | P18: 0.7
D20: 1)Seit dem Jahr 2018 wird im Mikrozensus der Migrationshintergrund im weiteren Sinne jährlich berichtet. Durch eine rückwirkende Revision der Mikrozensusdaten wird auch für das Jahr 2017 der Migrationshintergrund im weiteren Sinne dargestellt. Die in den Tabellen ab dem Jahr 2017 berichteten Daten zum Migrationshintergrund entsprechen dem Migrationshintergrund im weiteren Sinne, bis 2016 wird der Migrationshintergrund im engeren Sinne abgebildet. Die Vergleichbarkeit zwischen den Jahren sowie für das Berichtsjahr 2017 zwischen den Berichten des Integrationsmonitoring Niedersachsen 2018 und 2019 ist dadurch eingeschränkt.
D21: 2) Einschl. Grundsicherung im Alter und bei Erwerbsminderung und andere Hilfen in besonderen Lebenslagen.
D23: Quelle: Mikrozensus
D25: Abbildung D6-1:Bevölkerung am Ort der Hauptwohnung nach Zuwanderungsgeschichte und überwiegendem Lebensunterhalt
D77: Link zur LSN-Online-Datenbank
D78: Link zum Regionalmonitoring Niedersachsen

Sheet D7
D1: =Kopf -> Migration und Teilhabe in Niedersachsen - Integrationsmonitoring 2019 - aktuelle Ergebnisse
D5: Indikator D7: Paare ohne Kinder und Familien nach Paar-Familientyp und Zuwanderungsgeschichte sowie Familien nach Zahl der Kinder
D6: Tabelle D7-1: Paare ohne Kinder und Familien nach Paar-Familientyp und Zuwanderungsgeschichte sowie Familien nach Zahl der Kinder im Jahr 2018
D9: Migrationsstatus1) der Familie | E9: Lebensform | F9: Jahr | G9: Insgesamt | H9: Ohne ledige Kinder | I9: Mit ... ledigen Kind(ern) (ohne Altersbegrenzung)
I10: Zusammen | J10: 1 | K10: 2 | L10: 3 und mehr | M10: darunter mit ... Kind(ern) unter 18 Jahren
M13: zusammen | N13: 1 | O13: 2 | P13: 3 und mehr
F15: 1000
D16: 1 | E16: 2 | F16: 3 | G16: 3 | H16: 4 | I16: 5 | J16: 6 | K16: 7 | L16: 8 | M16: 9 | N16: 10 | O16: 11 | P16: 12
D17: Insgesamt | E17: Insgesamt | F17: 2018 | G17: 2255.4 | H17: 1172.7 | I17: 1082.7 | J17: 541.4 | K17: 398.9 | L17: 142.3 | M17: 763.4 | N17: 381.3 | O17: 283.6 | P17: 98.5
D18: ohne Migrationshintergrund | E18: Insgesamt | F18: 2018 | G18: 1713 | H18: 954.3 | I18: 758.7 | J18: 405.6 | K18: 276.1 | L18: 76.9 | M18: 508.7 | N18: 270.5 | O18: 187.3 | P18: 51
D19: mit Migrationshintergrund | E19: Insgesamt | F19: 2018 | G19: 542.3 | H19: 218.3 | I19: 324 | J19: 135.8 | K19: 122.8 | L19: 65.4 | M19: 254.7 | N19: 110.8 | O19: 96.3 | P19: 47.6
D20: Insgesamt | E20: Ehepaare | F20: 2018 | G20: 1717.1 | H20: 955.6 | I20: 761.4 | J20: 332 | K20: 314.2 | L20: 115.2 | M20: 553.2 | N20: 244.2 | O20: 228.8 | P20: 80.1
D21: ohne Migrationshintergrund | E21: Ehepaare | F21: 2018 | G21: 1294.3 | H21: 782.3 | I21: 511.9 | J21: 239.9 | K21: 212.4 | L21: 59.6 | M21: 353.5 | N21: 167.5 | O21: 146.2 | P21: 39.8
D22: mit Migrationshintergrund | E22: Ehepaare | F22: 2018 | G22: 422.8 | H22: 173.3 | I22: 249.5 | J22: 92.1 | K22: 101.8 | L22: 55.6 | M22: 199.7 | N22: 76.7 | O22: 82.6 | P22: 40.4
D23: ein Partner mit Migrationshintergr. | E23: Ehepaare | F23: 2018 | G23: 144.3 | H23: 69.9 | I23: 74.4 | J23: 33.9 | K23: 30.1 | L23: 10.4 | M23: 58.5 | N23: 25 | O23: 25.6 | P23: 7.9
D24: beide Partner mit Migrationshintergr. | E24: Ehepaare | F24: 2018 | G24: 278.5 | H24: 103.3 | I24: 175.1 | J24: 58.2 | K24: 71.7 | L24: 45.2 | M24: 141.2 | N24: 51.7 | O24: 57 | P24: 32.5
D25: Insgesamt | E25: Lebensgemeinschaften | F25: 2018 | G25: 300.8 | H25: 217 | I25: 83.7 | J25: 50.6 | K25: 25.5 | L25: 7.7 | M25: 72.7 | N25: 45.8 | O25: 20.8 | P25: 6.1
D26: ohne Migrationshintergrund | E26: Lebensgemeinschaften | F26: 2018 | G26: 234 | H26: 172 | I26: 62.1 | J26: 38 | K26: 19.1 | L26: 5 | M26: 52.6 | N26: 33.3 | O26: 15.5 | P26: /
D27: mit Migrationshintergrund | E27: Lebensgemeinschaften | F27: 2018 | G27: 66.8 | H27: 45.1 | I27: 21.7 | J27: 12.6 | K27: 6.3 | L27: / | M27: 20.1 | N27: 12.5 | O27: 5.3 | P27: /
D28: ein Partner mit Migrationshintergr. | E28: Lebensgemeinschaften | F28: 2018 | G28: 40.9 | H28: 29.9 | I28: 10.9 | J28: 6.9 | K28: / | L28: / | M28: 10.2 | N28: 6.8 | O28: / | P28: /
D29: beide Partner mit Migrationshintergr. | E29: Lebensgemeinschaften | F29: 2018 | G29: 25.9 | H29: 15.1 | I29: 10.8 | J29: 5.7 | K29: / | L29: / | M29: 9.9 | N29: 5.7 | O29: / | P29: /
D30: Insgesamt | E30: Darunter: Nichteheliche Lebensgemeinschaften | F30: 2018 | G30: 294 | H30: 210.7 | I30: 83.3 | J30: 50.3 | K30: 25.4 | L30: 7.7 | M30: 72.3 | N30: 45.5 | O30: 20.7 | P30: 6.1
D31: ohne Migrationshintergrund | E31: Darunter: Nichteheliche Lebensgemeinschaften | F31: 2018 | G31: 228.1 | H31: 166.4 | I31: 61.6 | J31: 37.6 | K31: 19 | L31: 5 | M31: 52.2 | N31: 33 | O31: 15.4 | P31: /
D32: mit Migrationshintergrund | E32: Darunter: Nichteheliche Lebensgemeinschaften | F32: 2018 | G32: 65.9 | H32: 44.2 | I32: 21.7 | J32: 12.6 | K32: 6.3 | L32: / | M32: 20.1 | N32: 12.5 | O32: 5.3 | P32: /
D33: ein Partner mit Migrationshintergr. | E33: Darunter: Nichteheliche Lebensgemeinschaften | F33: 2018 | G33: 40.3 | H33: 29.4 | I33: 10.9 | J33: 6.9 | K33: / | L33: / | M33: 10.2 | N33: 6.8 | O33: / | P33: /
D34: beide Partner mit Migrationshintergr. | E34: Darunter: Nichteheliche Lebensgemeinschaften | F34: 2018 | G34: 25.6 | H34: 14.8 | I34: 10.8 | J34: 5.7 | K34: / | L34: / | M34: 9.9 | N34: 5.7 | O34: / | P34: /
D35: Insgesamt | E35: Alleinerziehende | F35: 2018 | G35: 237.5 | H35: X | I35: 237.5 | J35: 158.8 | K35: 59.3 | L35: 19.4 | M35: 137.5 | N35: 91.3 | O35: 33.9 | P35: 12.3
D36: ohne Migrationshintergrund | E36: Alleinerziehende | F36: 2018 | G36: 184.7 | H36: X | I36: 184.7 | J36: 127.7 | K36: 44.6 | L36: 12.4 | M36: 102.6 | N36: 69.6 | O36: 25.5 | P36: 7.5
D37: mit Migrationshintergrund | E37: Alleinerziehende | F37: 2018 | G37: 52.8 | H37: X | I37: 52.8 | J37: 31.1 | K37: 14.7 | L37: 7 | M37: 34.8 | N37: 21.6 | O37: 8.4 | P37: /
D38: Insgesamt | E38: Davon: Alleinerziehende Väter | F38: 2018 | G38: 39 | H38: X | I38: 39 | J38: 29.5 | K38: 8.2 | L38: / | M38: 16.6 | N38: 13.5 | O38: / | P38: /
D39: ohne Migrationshintergrund | E39: Davon: Alleinerziehende Väter | F39: 2018 | G39: 32.2 | H39: X | I39: 32.2 | J39: 24.6 | K39: 6.7 | L39: / | M39: 12.7 | N39: 10.5 | O39: / | P39: /
D40: mit Migrationshintergrund | E40: Davon: Alleinerziehende Väter | F40: 2018 | G40: 6.8 | H40: X | I40: 6.8 | J40: / | K40: / | L40: / | M40: / | N40: / | O40: / | P40: /
D41: Insgesamt | E41: Alleinerziehende Mütter | F41: 2018 | G41: 198.5 | H41: X | I41: 198.5 | J41: 129.3 | K41: 51.1 | L41: 18 | M41: 120.9 | N41: 77.8 | O41: 31.8 | P41: 11.3
D42: ohne Migrationshintergrund | E42: Alleinerziehende Mütter | F42: 2018 | G42: 152.5 | H42: X | I42: 152.5 | J42: 103.1 | K42: 37.9 | L42: 11.5 | M42: 89.9 | N42: 59.2 | O42: 23.9 | P42: 6.8
D43: mit Migrationshintergrund | E43: Alleinerziehende Mütter | F43: 2018 | G43: 46 | H43: X | I43: 46 | J43: 26.2 | K43: 13.2 | L43: 6.6 | M43: 31 | N43: 18.6 | O43: 7.9 | P43: 4.5
D45: 1) Seit dem Jahr 2018 wird im Mikrozensus der Migrationshintergrund im weiteren Sinne jährlich berichtet. Durch eine rückwirkende Revision der Mikrozensusdaten wird auch für das Jahr 2017 der Migrationshintergrund im weiteren Sinne dargestellt. Die in den Tabellen ab dem Jahr 2017 berichteten Daten zum Migrationshintergrund entsprechen dem Migrationshintergrund im weiteren Sinne, bis 2016 wird der Migrationshintergrund im engeren Sinne abgebildet. Die Vergleichbarkeit zwischen den Jahren sowie für das Berichtsjahr 2017 zwischen den Berichten des Integrationsmonitoring Niedersachsen 2018 und 2019 ist dadurch eingeschränkt.
D47: Quelle: Mikrozensus
D49: Abbildung D7-1: Paare ohne Kinder und Familien nach Paar-Familientyp und Zuwanderungsgeschichte sowie Familien nach Zahl der Kinder
D100: Link zur LSN-Online-Datenbank
D101: Link zum Regionalmonitoring Niedersachsen
